Workbook

Sheet Manual Inputs
B1: Company | D1: Kentucky Power Co.
B2: State/Jurisdiction | D2: Kentucky
B3: Customer Class | D3: Street Lighting
B4: Sample Year Begins | D4: 2019-04-01 | E4: =+D4+0/24 -> 2019-04-01
B5: Reporting Year Begins | D5: 2019-04-01 | E5: =+D5+0/24 -> 2019-04-01
B6: Days in Sample Year | D6: =DATE(YEAR(TYBegin)+1,MONTH(TYBegin),DAY(TYBegin))-TYBegin -> 366
A9: Test Year Inputs from Revenue Process
A10: Year | B10: Month | C10: kWh | D10: Customers | F10: SummaryID | G10: NCPTotal | H10: NCPOnPk | I10: NCPOffPk
A11: =YEAR(D5) -> 2019 | B11: =MONTH(D4) -> 4 | C11: 630998.8783 | D11: 11943 | F11: LRAPKPCSL | G11: 38.87196864 | H11: 38.87196864 | I11: 38.87196864
A12: =IF(B12=1,A11+1,A11) -> 2019 | B12: =IF(B11=12,1,B11+1) -> 5 | C12: 562916.8168 | D12: 11943
A13: =IF(B13=1,A12+1,A12) -> 2019 | B13: =IF(B12=12,1,B12+1) -> 6 | C13: 507904.4596 | D13: 11943 | F13: Last Case | G13: 10.09560122 | H13: 9.348384738 | I13: 9.50374013
A14: 2019 | B14: 7 | C14: 541836.8099 | D14: 11943
A15: 2019 | B15: 8 | C15: 613812.3372 | D15: 11943
A16: 2019 | B16: 9 | C16: 677660.3675 | D16: 11943
A17: 2019 | B17: 10 | C17: 788916.1261 | D17: 11943
A18: 2019 | B18: 11 | C18: 841173.9089 | D18: 11943
A19: 2019 | B19: 12 | C19: 907138.4539 | D19: 11943
A20: 2020 | B20: 1 | C20: 890626.0323 | D20: 11943
A21: 2020 | B21: 2 | C21: 748999.8385 | D21: 11943
A22: 2020 | B22: 3 | C22: 749041.9084 | D22: 11943
C23: =SUM(C11:C22) -> 8461025.938 | D23: =SUM(D11:D22) -> 143316
A25: Coincident Peaks
A26: Year | B26: Month | C26: Day | D26: Hour Ended | E26: Concident Peak
A27: =YEAR(TYBegin) -> 2019 | B27: =MONTH(TYBegin) -> 4 | C27: 1 | D27: 7 | E27: =DATEVALUE(B27&"/"&C27&"/"&A27)+(D27-1)/24 -> 2019-04-01T06:00:00
A28: =IF(B28=1,A27+1,A27) -> 2019 | B28: =IF(B27=12,1,B27+1) -> 5 | C28: 28 | D28: 16 | E28: =DATEVALUE(B28&"/"&C28&"/"&A28)+(D28-1)/24 -> 2019-05-28T15:00:00
A29: =IF(B29=1,A28+1,A28) -> 2019 | B29: =IF(B28=12,1,B28+1) -> 6 | C29: 27 | D29: 16 | E29: 2019-06-27T15:00:00
A30: 2019 | B30: 7 | C30: 19 | D30: 16 | E30: 2019-07-19T15:00:00
A31: 2019 | B31: 8 | C31: 19 | D31: 16 | E31: 2019-08-19T15:00:00
A32: 2019 | B32: 9 | C32: 11 | D32: 16 | E32: 2019-09-11T15:00:00
A33: 2019 | B33: 10 | C33: 1 | D33: 16 | E33: 2019-10-01T15:00:00
A34: 2019 | B34: 11 | C34: 13 | D34: 8 | E34: 2019-11-13T07:00:00
A35: 2019 | B35: 12 | C35: 19 | D35: 8 | E35: 2019-12-19T07:00:00
A36: 2020 | B36: 1 | C36: 22 | D36: 8 | E36: 2020-01-22T07:00:00
A37: 2020 | B37: 2 | C37: 15 | D37: 8 | E37: 2020-02-15T07:00:00
A38: 2020 | B38: 3 | C38: 1 | D38: 8 | E38: 2020-03-01T07:00:00

Sheet TOD Inputs
A1: Peak Times for TOD Tariffs | F1: Holidays
B2: Hour | C2: Formatted | F2: Description | G2: Date
A3: Peak Start Hour | B3: 7 | C3: =TEXT(B3/24,"h:mm AM/PM") -> 7:00 AM | F3: New Year's Day
A4: Peak End Hour | B4: 21 | C4: =TEXT(B4/24,"h:mm AM/PM") -> 9:00 PM | F4: President's Day
F5: Memorial Day
F6: Independence Day
A7: Daylight Savings Time | F7: Labor Day
A8: Starts | B8: 2020-03-08 | F8: Thanksgiving Day
A9: Ends | B9: 2019-11-03 | F9: Christmas Day
A19: DST Dates
B20: 2011 | C20: 2012 | D20: 2013 | E20: 2014
A21: Starts | B21: 2011-03-13 | C21: 2012-03-11 | D21: 2013-03-10 | E21: 2014-03-09
A22: Ends | B22: 2011-11-06 | C22: 2012-11-04 | D22: 2013-11-03 | E22: 2014-11-02
B24: 2015 | C24: 2016
B25: 2015-03-08 | C25: 2016-03-13
B26: 2015-11-01 | C26: 2016-11-06

Sheet LR Monthly
A1: STATISTICID | B1: CNAME | C1: YEAR | D1: MONTH | E1: ENERGY_MPU | F1: NCP | G1: NCP_ON | H1: NCP_OFF | I1: ClassPeak_Mont | J1: CLASS_PEAK_ON | K1: CLASS_PEAK_OFF
A2: LRKPCSL | B2: KPC SL CLASS RLW | C2: 2019 | D2: 4 | E2: 11416.04932 | F2: =MAX(G2:H2) -> 38.87196864 | G2: 23.97104733 | H2: 38.87196864 | I2: 38.87196864 | J2: 23.97104733 | K2: 38.87196864
A3: LRKPCSL | B3: KPC SL CLASS RLW | C3: 2019 | D3: 5 | E3: 10525.88124 | F3: =MAX(G3:H3) -> 38.87196864 | G3: 5.830795296 | H3: 38.87196864 | I3: 38.87196864 | J3: 5.830795296 | K3: 38.87196864
A4: LRKPCSL | B4: KPC SL CLASS RLW | C4: 2019 | D4: 6 | E4: 9562.504286 | F4: 38.87196864 | G4: 0 | H4: 38.87196864 | I4: 38.87196864 | J4: 0 | K4: 38.87196864
A5: LRKPCSL | B5: KPC SL CLASS RLW | C5: 2019 | D5: 7 | E5: 10201.3003 | F5: 38.87196864 | G5: 0 | H5: 38.87196864 | I5: 38.87196864 | J5: 0 | K5: 38.87196864
A6: LRKPCSL | B6: KPC SL CLASS RLW | C6: 2019 | D6: 8 | E6: 11306.55995 | F6: 38.87196864 | G6: 17.49238589 | H6: 38.87196864 | I6: 38.87196864 | J6: 17.49238589 | K6: 38.87196864
A7: LRKPCSL | B7: KPC SL CLASS RLW | C7: 2019 | D7: 9 | E7: 12328.89272 | F7: 38.87196864 | G7: 38.87196864 | H7: 38.87196864 | I7: 38.87196864 | J7: 38.87196864 | K7: 38.87196864
A8: LRKPCSL | B8: KPC SL CLASS RLW | C8: 2019 | D8: 10 | E8: 14229.73199 | F8: 38.87196864 | G8: 38.87196864 | H8: 38.87196864 | I8: 38.87196864 | J8: 38.87196864 | K8: 38.87196864
A9: LRKPCSL | B9: KPC SL CLASS RLW | C9: 2019 | D9: 11 | E9: 15037.62107 | F9: 38.87196864 | G9: 38.87196864 | H9: 38.87196864 | I9: 38.87196864 | J9: 38.87196864 | K9: 38.87196864
A10: LRKPCSL | B10: KPC SL CLASS RLW | C10: 2019 | D10: 12 | E10: 16219.32892 | F10: 38.87196864 | G10: 38.87196864 | H10: 38.87196864 | I10: 38.87196864 | J10: 38.87196864 | K10: 38.87196864
A11: LRKPCSL | B11: KPC SL CLASS RLW | C11: 2020 | D11: 1 | E11: 15860.41107 | F11: 38.87196864 | G11: 38.87196864 | H11: 38.87196864 | I11: 38.87196864 | J11: 38.87196864 | K11: 38.87196864
A12: LRKPCSL | B12: KPC SL CLASS RLW | C12: 2020 | D12: 2 | E12: 13770.39489 | F12: 38.87196864 | G12: 38.87196864 | H12: 38.87196864 | I12: 38.87196864 | J12: 38.87196864 | K12: 38.87196864
A13: LRKPCSL | B13: KPC SL CLASS RLW | C13: 2020 | D13: 3 | E13: 13260.52424 | F13: 38.87196864 | G13: 38.87196864 | H13: 38.87196864 | I13: 38.87196864 | J13: 38.87196864 | K13: 38.87196864

Sheet LR 8760 Loads
A1: ClassID | B1: Date | E1: IN | F1: UM | G1: CH | H1: TYP | I1: 01:00:00 | J1: 02:00:00 | K1: 03:00:00 | L1: 04:00:00 | M1: 05:00:00 | N1: 06:00:00 | O1: 07:00:00 | P1: 08:00:00 | Q1: 09:00:00 | R1: 10:00:00 | S1: 11:00:00 | T1: 12:00:00 | U1: 13:00:00 | V1: 14:00:00 | W1: 15:00:00 | X1: 16:00:00 | Y1: 17:00:00 | Z1: 18:00:00 | AA1: 19:00:00 | AB1: 20:00:00 | AC1: 21:00:00 | AD1: 22:00:00 | AE1: 23:00:00 | AF1: 1
A2: LRKPCSL | B2: 040119 | C2: 1 | D2: 2400 | E2: 60 | F2: 1 | G2: 1 | H2: KW | I2: 38.87196864 | J2: 38.87196864 | K2: 38.87196864 | L2: 38.87196864 | M2: 38.87196864 | N2: 38.87196864 | O2: 29.15397648 | P2: 0 | Q2: 0 | R2: 0 | S2: 0 | T2: 0 | U2: 0 | V2: 0 | W2: 0 | X2: 0 | Y2: 0 | Z2: 0 | AA2: 0 | AB2: 0 | AC2: 23.97104733 | AD2: 38.87196864 | AE2: 38.87196864 | AF2: 38.87196864
A3: LRKPCSL | B3: 040219 | C3: 1 | D3: 2400 | E3: 60 | F3: 1 | G3: 1 | H3: KW | I3: 38.87196864 | J3: 38.87196864 | K3: 38.87196864 | L3: 38.87196864 | M3: 38.87196864 | N3: 38.87196864 | O3: 27.85824419 | P3: 0 | Q3: 0 | R3: 0 | S3: 0 | T3: 0 | U3: 0 | V3: 0 | W3: 0 | X3: 0 | Y3: 0 | Z3: 0 | AA3: 0 | AB3: 0 | AC3: 23.32318119 | AD3: 38.87196864 | AE3: 38.87196864 | AF3: 38.87196864
A4: LRKPCSL | B4: 040319 | C4: 1 | D4: 2400 | E4: 60 | F4: 1 | G4: 1 | H4: KW | I4: 38.87196864 | J4: 38.87196864 | K4: 38.87196864 | L4: 38.87196864 | M4: 38.87196864 | N4: 38.87196864 | O4: 27.21037805 | P4: 0 | Q4: 0 | R4: 0 | S4: 0 | T4: 0 | U4: 0 | V4: 0 | W4: 0 | X4: 0 | Y4: 0 | Z4: 0 | AA4: 0 | AB4: 0 | AC4: 22.67531504 | AD4: 38.87196864 | AE4: 38.87196864 | AF4: 38.87196864
A5: LRKPCSL | B5: 040419 | C5: 1 | D5: 2400 | E5: 60 | F5: 1 | G5: 1 | H5: KW | I5: 38.87196864 | J5: 38.87196864 | K5: 38.87196864 | L5: 38.87196864 | M5: 38.87196864 | N5: 38.87196864 | O5: 25.91464576 | P5: 0 | Q5: 0 | R5: 0 | S5: 0 | T5: 0 | U5: 0 | V5: 0 | W5: 0 | X5: 0 | Y5: 0 | Z5: 0 | AA5: 0 | AB5: 0 | AC5: 22.0274489 | AD5: 38.87196864 | AE5: 38.87196864 | AF5: 38.87196864
A6: LRKPCSL | B6: 040519 | C6: 1 | D6: 2400 | E6: 60 | F6: 1 | G6: 1 | H6: KW | I6: 38.87196864 | J6: 38.87196864 | K6: 38.87196864 | L6: 38.87196864 | M6: 38.87196864 | N6: 38.87196864 | O6: 25.26677962 | P6: 0 | Q6: 0 | R6: 0 | S6: 0 | T6: 0 | U6: 0 | V6: 0 | W6: 0 | X6: 0 | Y6: 0 | Z6: 0 | AA6: 0 | AB6: 0 | AC6: 21.37958275 | AD6: 38.87196864 | AE6: 38.87196864 | AF6: 38.87196864
A7: LRKPCSL | B7: 040619 | C7: 1 | D7: 2400 | E7: 60 | F7: 1 | G7: 1 | H7: KW | I7: 38.87196864 | J7: 38.87196864 | K7: 38.87196864 | L7: 38.87196864 | M7: 38.87196864 | N7: 38.87196864 | O7: 23.97104733 | P7: 0 | Q7: 0 | R7: 0 | S7: 0 | T7: 0 | U7: 0 | V7: 0 | W7: 0 | X7: 0 | Y7: 0 | Z7: 0 | AA7: 0 | AB7: 0 | AC7: 20.73171661 | AD7: 38.87196864 | AE7: 38.87196864 | AF7: 38.87196864
A8: LRKPCSL | B8: 040719 | C8: 1 | D8: 2400 | E8: 60 | F8: 1 | G8: 1 | H8: KW | I8: 38.87196864 | J8: 38.87196864 | K8: 38.87196864 | L8: 38.87196864 | M8: 38.87196864 | N8: 38.87196864 | O8: 23.32318119 | P8: 0 | Q8: 0 | R8: 0 | S8: 0 | T8: 0 | U8: 0 | V8: 0 | W8: 0 | X8: 0 | Y8: 0 | Z8: 0 | AA8: 0 | AB8: 0 | AC8: 20.08385047 | AD8: 38.87196864 | AE8: 38.87196864 | AF8: 38.87196864
A9: LRKPCSL | B9: 040819 | C9: 1 | D9: 2400 | E9: 60 | F9: 1 | G9: 1 | H9: KW | I9: 38.87196864 | J9: 38.87196864 | K9: 38.87196864 | L9: 38.87196864 | M9: 38.87196864 | N9: 38.87196864 | O9: 22.0274489 | P9: 0 | Q9: 0 | R9: 0 | S9: 0 | T9: 0 | U9: 0 | V9: 0 | W9: 0 | X9: 0 | Y9: 0 | Z9: 0 | AA9: 0 | AB9: 0 | AC9: 20.08385047 | AD9: 38.87196864 | AE9: 38.87196864 | AF9: 38.87196864
A10: LRKPCSL | B10: 040919 | C10: 1 | D10: 2400 | E10: 60 | F10: 1 | G10: 1 | H10: KW | I10: 38.87196864 | J10: 38.87196864 | K10: 38.87196864 | L10: 38.87196864 | M10: 38.87196864 | N10: 38.87196864 | O10: 21.37958275 | P10: 0 | Q10: 0 | R10: 0 | S10: 0 | T10: 0 | U10: 0 | V10: 0 | W10: 0 | X10: 0 | Y10: 0 | Z10: 0 | AA10: 0 | AB10: 0 | AC10: 19.43598432 | AD10: 38.87196864 | AE10: 38.87196864 | AF10: 38.87196864
A11: LRKPCSL | B11: 041019 | C11: 1 | D11: 2400 | E11: 60 | F11: 1 | G11: 1 | H11: KW | I11: 38.87196864 | J11: 38.87196864 | K11: 38.87196864 | L11: 38.87196864 | M11: 38.87196864 | N11: 38.87196864 | O11: 20.08385047 | P11: 0 | Q11: 0 | R11: 0 | S11: 0 | T11: 0 | U11: 0 | V11: 0 | W11: 0 | X11: 0 | Y11: 0 | Z11: 0 | AA11: 0 | AB11: 0 | AC11: 18.78811818 | AD11: 38.87196864 | AE11: 38.87196864 | AF11: 38.87196864
A12: LRKPCSL | B12: 041119 | C12: 1 | D12: 2400 | E12: 60 | F12: 1 | G12: 1 | H12: KW | I12: 38.87196864 | J12: 38.87196864 | K12: 38.87196864 | L12: 38.87196864 | M12: 38.87196864 | N12: 38.87196864 | O12: 19.43598432 | P12: 0 | Q12: 0 | R12: 0 | S12: 0 | T12: 0 | U12: 0 | V12: 0 | W12: 0 | X12: 0 | Y12: 0 | Z12: 0 | AA12: 0 | AB12: 0 | AC12: 18.14025203 | AD12: 38.87196864 | AE12: 38.87196864 | AF12: 38.87196864
A13: LRKPCSL | B13: 041219 | C13: 1 | D13: 2400 | E13: 60 | F13: 1 | G13: 1 | H13: KW | I13: 38.87196864 | J13: 38.87196864 | K13: 38.87196864 | L13: 38.87196864 | M13: 38.87196864 | N13: 38.87196864 | O13: 18.78811818 | P13: 0 | Q13: 0 | R13: 0 | S13: 0 | T13: 0 | U13: 0 | V13: 0 | W13: 0 | X13: 0 | Y13: 0 | Z13: 0 | AA13: 0 | AB13: 0 | AC13: 17.49238589 | AD13: 38.87196864 | AE13: 38.87196864 | AF13: 38.87196864
A14: LRKPCSL | B14: 041319 | C14: 1 | D14: 2400 | E14: 60 | F14: 1 | G14: 1 | H14: KW | I14: 38.87196864 | J14: 38.87196864 | K14: 38.87196864 | L14: 38.87196864 | M14: 38.87196864 | N14: 38.87196864 | O14: 17.49238589 | P14: 0 | Q14: 0 | R14: 0 | S14: 0 | T14: 0 | U14: 0 | V14: 0 | W14: 0 | X14: 0 | Y14: 0 | Z14: 0 | AA14: 0 | AB14: 0 | AC14: 16.84451975 | AD14: 38.87196864 | AE14: 38.87196864 | AF14: 38.87196864
A15: LRKPCSL | B15: 041419 | C15: 1 | D15: 2400 | E15: 60 | F15: 1 | G15: 1 | H15: KW | I15: 38.87196864 | J15: 38.87196864 | K15: 38.87196864 | L15: 38.87196864 | M15: 38.87196864 | N15: 38.87196864 | O15: 16.84451975 | P15: 0 | Q15: 0 | R15: 0 | S15: 0 | T15: 0 | U15: 0 | V15: 0 | W15: 0 | X15: 0 | Y15: 0 | Z15: 0 | AA15: 0 | AB15: 0 | AC15: 16.1966536 | AD15: 38.87196864 | AE15: 38.87196864 | AF15: 38.87196864
A16: LRKPCSL | B16: 041519 | C16: 1 | D16: 2400 | E16: 60 | F16: 1 | G16: 1 | H16: KW | I16: 38.87196864 | J16: 38.87196864 | K16: 38.87196864 | L16: 38.87196864 | M16: 38.87196864 | N16: 38.87196864 | O16: 15.54878746 | P16: 0 | Q16: 0 | R16: 0 | S16: 0 | T16: 0 | U16: 0 | V16: 0 | W16: 0 | X16: 0 | Y16: 0 | Z16: 0 | AA16: 0 | AB16: 0 | AC16: 15.54878746 | AD16: 38.87196864 | AE16: 38.87196864 | AF16: 38.87196864
A17: LRKPCSL | B17: 041619 | C17: 1 | D17: 2400 | E17: 60 | F17: 1 | G17: 1 | H17: KW | I17: 38.87196864 | J17: 38.87196864 | K17: 38.87196864 | L17: 38.87196864 | M17: 38.87196864 | N17: 38.87196864 | O17: 14.90092131 | P17: 0 | Q17: 0 | R17: 0 | S17: 0 | T17: 0 | U17: 0 | V17: 0 | W17: 0 | X17: 0 | Y17: 0 | Z17: 0 | AA17: 0 | AB17: 0 | AC17: 14.90092131 | AD17: 38.87196864 | AE17: 38.87196864 | AF17: 38.87196864
A18: LRKPCSL | B18: 041719 | C18: 1 | D18: 2400 | E18: 60 | F18: 1 | G18: 1 | H18: KW | I18: 38.87196864 | J18: 38.87196864 | K18: 38.87196864 | L18: 38.87196864 | M18: 38.87196864 | N18: 38.87196864 | O18: 13.60518903 | P18: 0 | Q18: 0 | R18: 0 | S18: 0 | T18: 0 | U18: 0 | V18: 0 | W18: 0 | X18: 0 | Y18: 0 | Z18: 0 | AA18: 0 | AB18: 0 | AC18: 14.25305517 | AD18: 38.87196864 | AE18: 38.87196864 | AF18: 38.87196864
A19: LRKPCSL | B19: 041819 | C19: 1 | D19: 2400 | E19: 60 | F19: 1 | G19: 1 | H19: KW | I19: 38.87196864 | J19: 38.87196864 | K19: 38.87196864 | L19: 38.87196864 | M19: 38.87196864 | N19: 38.87196864 | O19: 12.95732288 | P19: 0 | Q19: 0 | R19: 0 | S19: 0 | T19: 0 | U19: 0 | V19: 0 | W19: 0 | X19: 0 | Y19: 0 | Z19: 0 | AA19: 0 | AB19: 0 | AC19: 13.60518903 | AD19: 38.87196864 | AE19: 38.87196864 | AF19: 38.87196864
A20: LRKPCSL | B20: 041919 | C20: 1 | D20: 2400 | E20: 60 | F20: 1 | G20: 1 | H20: KW | I20: 38.87196864 | J20: 38.87196864 | K20: 38.87196864 | L20: 38.87196864 | M20: 38.87196864 | N20: 38.87196864 | O20: 12.30945674 | P20: 0 | Q20: 0 | R20: 0 | S20: 0 | T20: 0 | U20: 0 | V20: 0 | W20: 0 | X20: 0 | Y20: 0 | Z20: 0 | AA20: 0 | AB20: 0 | AC20: 12.95732288 | AD20: 38.87196864 | AE20: 38.87196864 | AF20: 38.87196864
A21: LRKPCSL | B21: 042019 | C21: 1 | D21: 2400 | E21: 60 | F21: 1 | G21: 1 | H21: KW | I21: 38.87196864 | J21: 38.87196864 | K21: 38.87196864 | L21: 38.87196864 | M21: 38.87196864 | N21: 38.87196864 | O21: 11.01372445 | P21: 0 | Q21: 0 | R21: 0 | S21: 0 | T21: 0 | U21: 0 | V21: 0 | W21: 0 | X21: 0 | Y21: 0 | Z21: 0 | AA21: 0 | AB21: 0 | AC21: 12.30945674 | AD21: 38.87196864 | AE21: 38.87196864 | AF21: 38.87196864
A22: LRKPCSL | B22: 042119 | C22: 1 | D22: 2400 | E22: 60 | F22: 1 | G22: 1 | H22: KW | I22: 38.87196864 | J22: 38.87196864 | K22: 38.87196864 | L22: 38.87196864 | M22: 38.87196864 | N22: 38.87196864 | O22: 10.3658583 | P22: 0 | Q22: 0 | R22: 0 | S22: 0 | T22: 0 | U22: 0 | V22: 0 | W22: 0 | X22: 0 | Y22: 0 | Z22: 0 | AA22: 0 | AB22: 0 | AC22: 11.66159059 | AD22: 38.87196864 | AE22: 38.87196864 | AF22: 38.87196864
A23: LRKPCSL | B23: 042219 | C23: 1 | D23: 2400 | E23: 60 | F23: 1 | G23: 1 | H23: KW | I23: 38.87196864 | J23: 38.87196864 | K23: 38.87196864 | L23: 38.87196864 | M23: 38.87196864 | N23: 38.87196864 | O23: 9.717992161 | P23: 0 | Q23: 0 | R23: 0 | S23: 0 | T23: 0 | U23: 0 | V23: 0 | W23: 0 | X23: 0 | Y23: 0 | Z23: 0 | AA23: 0 | AB23: 0 | AC23: 11.01372445 | AD23: 38.87196864 | AE23: 38.87196864 | AF23: 38.87196864
A24: LRKPCSL | B24: 042319 | C24: 1 | D24: 2400 | E24: 60 | F24: 1 | G24: 1 | H24: KW | I24: 38.87196864 | J24: 38.87196864 | K24: 38.87196864 | L24: 38.87196864 | M24: 38.87196864 | N24: 38.87196864 | O24: 8.422259873 | P24: 0 | Q24: 0 | R24: 0 | S24: 0 | T24: 0 | U24: 0 | V24: 0 | W24: 0 | X24: 0 | Y24: 0 | Z24: 0 | AA24: 0 | AB24: 0 | AC24: 10.3658583 | AD24: 38.87196864 | AE24: 38.87196864 | AF24: 38.87196864
A25: LRKPCSL | B25: 042419 | C25: 1 | D25: 2400 | E25: 60 | F25: 1 | G25: 1 | H25: KW | I25: 38.87196864 | J25: 38.87196864 | K25: 38.87196864 | L25: 38.87196864 | M25: 38.87196864 | N25: 38.87196864 | O25: 7.774393729 | P25: 0 | Q25: 0 | R25: 0 | S25: 0 | T25: 0 | U25: 0 | V25: 0 | W25: 0 | X25: 0 | Y25: 0 | Z25: 0 | AA25: 0 | AB25: 0 | AC25: 9.717992161 | AD25: 38.87196864 | AE25: 38.87196864 | AF25: 38.87196864
A26: LRKPCSL | B26: 042519 | C26: 1 | D26: 2400 | E26: 60 | F26: 1 | G26: 1 | H26: KW | I26: 38.87196864 | J26: 38.87196864 | K26: 38.87196864 | L26: 38.87196864 | M26: 38.87196864 | N26: 38.87196864 | O26: 7.126527585 | P26: 0 | Q26: 0 | R26: 0 | S26: 0 | T26: 0 | U26: 0 | V26: 0 | W26: 0 | X26: 0 | Y26: 0 | Z26: 0 | AA26: 0 | AB26: 0 | AC26: 9.717992161 | AD26: 38.87196864 | AE26: 38.87196864 | AF26: 38.87196864
A27: LRKPCSL | B27: 042619 | C27: 1 | D27: 2400 | E27: 60 | F27: 1 | G27: 1 | H27: KW | I27: 38.87196864 | J27: 38.87196864 | K27: 38.87196864 | L27: 38.87196864 | M27: 38.87196864 | N27: 38.87196864 | O27: 5.830795296 | P27: 0 | Q27: 0 | R27: 0 | S27: 0 | T27: 0 | U27: 0 | V27: 0 | W27: 0 | X27: 0 | Y27: 0 | Z27: 0 | AA27: 0 | AB27: 0 | AC27: 9.070126017 | AD27: 38.87196864 | AE27: 38.87196864 | AF27: 38.87196864
A28: LRKPCSL | B28: 042719 | C28: 1 | D28: 2400 | E28: 60 | F28: 1 | G28: 1 | H28: KW | I28: 38.87196864 | J28: 38.87196864 | K28: 38.87196864 | L28: 38.87196864 | M28: 38.87196864 | N28: 38.87196864 | O28: 5.182929152 | P28: 0 | Q28: 0 | R28: 0 | S28: 0 | T28: 0 | U28: 0 | V28: 0 | W28: 0 | X28: 0 | Y28: 0 | Z28: 0 | AA28: 0 | AB28: 0 | AC28: 8.422259873 | AD28: 38.87196864 | AE28: 38.87196864 | AF28: 38.87196864
A29: LRKPCSL | B29: 042819 | C29: 1 | D29: 2400 | E29: 60 | F29: 1 | G29: 1 | H29: KW | I29: 38.87196864 | J29: 38.87196864 | K29: 38.87196864 | L29: 38.87196864 | M29: 38.87196864 | N29: 38.87196864 | O29: 4.535063008 | P29: 0 | Q29: 0 | R29: 0 | S29: 0 | T29: 0 | U29: 0 | V29: 0 | W29: 0 | X29: 0 | Y29: 0 | Z29: 0 | AA29: 0 | AB29: 0 | AC29: 7.774393729 | AD29: 38.87196864 | AE29: 38.87196864 | AF29: 38.87196864
A30: LRKPCSL | B30: 042919 | C30: 1 | D30: 2400 | E30: 60 | F30: 1 | G30: 1 | H30: KW | I30: 38.87196864 | J30: 38.87196864 | K30: 38.87196864 | L30: 38.87196864 | M30: 38.87196864 | N30: 38.87196864 | O30: 3.887196864 | P30: 0 | Q30: 0 | R30: 0 | S30: 0 | T30: 0 | U30: 0 | V30: 0 | W30: 0 | X30: 0 | Y30: 0 | Z30: 0 | AA30: 0 | AB30: 0 | AC30: 7.126527585 | AD30: 38.87196864 | AE30: 38.87196864 | AF30: 38.87196864
A31: LRKPCSL | B31: 043019 | C31: 1 | D31: 2400 | E31: 60 | F31: 1 | G31: 1 | H31: KW | I31: 38.87196864 | J31: 38.87196864 | K31: 38.87196864 | L31: 38.87196864 | M31: 38.87196864 | N31: 38.87196864 | O31: 2.591464576 | P31: 0 | Q31: 0 | R31: 0 | S31: 0 | T31: 0 | U31: 0 | V31: 0 | W31: 0 | X31: 0 | Y31: 0 | Z31: 0 | AA31: 0 | AB31: 0 | AC31: 6.478661441 | AD31: 38.87196864 | AE31: 38.87196864 | AF31: 38.87196864
A32: LRKPCSL | B32: 050119 | C32: 1 | D32: 2400 | E32: 60 | F32: 1 | G32: 1 | H32: KW | I32: 38.87196864 | J32: 38.87196864 | K32: 38.87196864 | L32: 38.87196864 | M32: 38.87196864 | N32: 38.87196864 | O32: 1.943598432 | P32: 0 | Q32: 0 | R32: 0 | S32: 0 | T32: 0 | U32: 0 | V32: 0 | W32: 0 | X32: 0 | Y32: 0 | Z32: 0 | AA32: 0 | AB32: 0 | AC32: 5.830795296 | AD32: 38.87196864 | AE32: 38.87196864 | AF32: 38.87196864
A33: LRKPCSL | B33: 050219 | C33: 1 | D33: 2400 | E33: 60 | F33: 1 | G33: 1 | H33: KW | I33: 38.87196864 | J33: 38.87196864 | K33: 38.87196864 | L33: 38.87196864 | M33: 38.87196864 | N33: 38.87196864 | O33: 1.295732288 | P33: 0 | Q33: 0 | R33: 0 | S33: 0 | T33: 0 | U33: 0 | V33: 0 | W33: 0 | X33: 0 | Y33: 0 | Z33: 0 | AA33: 0 | AB33: 0 | AC33: 5.182929152 | AD33: 38.87196864 | AE33: 38.87196864 | AF33: 38.87196864
A34: LRKPCSL | B34: 050319 | C34: 1 | D34: 2400 | E34: 60 | F34: 1 | G34: 1 | H34: KW | I34: 38.87196864 | J34: 38.87196864 | K34: 38.87196864 | L34: 38.87196864 | M34: 38.87196864 | N34: 38.87196864 | O34: 0.6478661441 | P34: 0 | Q34: 0 | R34: 0 | S34: 0 | T34: 0 | U34: 0 | V34: 0 | W34: 0 | X34: 0 | Y34: 0 | Z34: 0 | AA34: 0 | AB34: 0 | AC34: 4.535063008 | AD34: 38.87196864 | AE34: 38.87196864 | AF34: 38.87196864
A35: LRKPCSL | B35: 050419 | C35: 1 | D35: 2400 | E35: 60 | F35: 1 | G35: 1 | H35: KW | I35: 38.87196864 | J35: 38.87196864 | K35: 38.87196864 | L35: 38.87196864 | M35: 38.87196864 | N35: 38.87196864 | O35: 0 | P35: 0 | Q35: 0 | R35: 0 | S35: 0 | T35: 0 | U35: 0 | V35: 0 | W35: 0 | X35: 0 | Y35: 0 | Z35: 0 | AA35: 0 | AB35: 0 | AC35: 3.887196864 | AD35: 38.87196864 | AE35: 38.87196864 | AF35: 38.87196864
A36: LRKPCSL | B36: 050519 | C36: 1 | D36: 2400 | E36: 60 | F36: 1 | G36: 1 | H36: KW | I36: 38.87196864 | J36: 38.87196864 | K36: 38.87196864 | L36: 38.87196864 | M36: 38.87196864 | N36: 38.2241025 | O36: 0 | P36: 0 | Q36: 0 | R36: 0 | S36: 0 | T36: 0 | U36: 0 | V36: 0 | W36: 0 | X36: 0 | Y36: 0 | Z36: 0 | AA36: 0 | AB36: 0 | AC36: 3.23933072 | AD36: 38.87196864 | AE36: 38.87196864 | AF36: 38.87196864
A37: LRKPCSL | B37: 050619 | C37: 1 | D37: 2400 | E37: 60 | F37: 1 | G37: 1 | H37: KW | I37: 38.87196864 | J37: 38.87196864 | K37: 38.87196864 | L37: 38.87196864 | M37: 38.87196864 | N37: 36.92837021 | O37: 0 | P37: 0 | Q37: 0 | R37: 0 | S37: 0 | T37: 0 | U37: 0 | V37: 0 | W37: 0 | X37: 0 | Y37: 0 | Z37: 0 | AA37: 0 | AB37: 0 | AC37: 2.591464576 | AD37: 38.87196864 | AE37: 38.87196864 | AF37: 38.87196864
A38: LRKPCSL | B38: 050719 | C38: 1 | D38: 2400 | E38: 60 | F38: 1 | G38: 1 | H38: KW | I38: 38.87196864 | J38: 38.87196864 | K38: 38.87196864 | L38: 38.87196864 | M38: 38.87196864 | N38: 36.28050407 | O38: 0 | P38: 0 | Q38: 0 | R38: 0 | S38: 0 | T38: 0 | U38: 0 | V38: 0 | W38: 0 | X38: 0 | Y38: 0 | Z38: 0 | AA38: 0 | AB38: 0 | AC38: 1.943598432 | AD38: 38.87196864 | AE38: 38.87196864 | AF38: 38.87196864
A39: LRKPCSL | B39: 050819 | C39: 1 | D39: 2400 | E39: 60 | F39: 1 | G39: 1 | H39: KW | I39: 38.87196864 | J39: 38.87196864 | K39: 38.87196864 | L39: 38.87196864 | M39: 38.87196864 | N39: 35.63263792 | O39: 0 | P39: 0 | Q39: 0 | R39: 0 | S39: 0 | T39: 0 | U39: 0 | V39: 0 | W39: 0 | X39: 0 | Y39: 0 | Z39: 0 | AA39: 0 | AB39: 0 | AC39: 1.295732288 | AD39: 38.87196864 | AE39: 38.87196864 | AF39: 38.87196864
A40: LRKPCSL | B40: 050919 | C40: 1 | D40: 2400 | E40: 60 | F40: 1 | G40: 1 | H40: KW | I40: 38.87196864 | J40: 38.87196864 | K40: 38.87196864 | L40: 38.87196864 | M40: 38.87196864 | N40: 34.98477178 | O40: 0 | P40: 0 | Q40: 0 | R40: 0 | S40: 0 | T40: 0 | U40: 0 | V40: 0 | W40: 0 | X40: 0 | Y40: 0 | Z40: 0 | AA40: 0 | AB40: 0 | AC40: 0.6478661441 | AD40: 38.87196864 | AE40: 38.87196864 | AF40: 38.87196864
A41: LRKPCSL | B41: 051019 | C41: 1 | D41: 2400 | E41: 60 | F41: 1 | G41: 1 | H41: KW | I41: 38.87196864 | J41: 38.87196864 | K41: 38.87196864 | L41: 38.87196864 | M41: 38.87196864 | N41: 34.33690563 | O41: 0 | P41: 0 | Q41: 0 | R41: 0 | S41: 0 | T41: 0 | U41: 0 | V41: 0 | W41: 0 | X41: 0 | Y41: 0 | Z41: 0 | AA41: 0 | AB41: 0 | AC41: 0 | AD41: 38.87196864 | AE41: 38.87196864 | AF41: 38.87196864
A42: LRKPCSL | B42: 051119 | C42: 1 | D42: 2400 | E42: 60 | F42: 1 | G42: 1 | H42: KW | I42: 38.87196864 | J42: 38.87196864 | K42: 38.87196864 | L42: 38.87196864 | M42: 38.87196864 | N42: 33.68903949 | O42: 0 | P42: 0 | Q42: 0 | R42: 0 | S42: 0 | T42: 0 | U42: 0 | V42: 0 | W42: 0 | X42: 0 | Y42: 0 | Z42: 0 | AA42: 0 | AB42: 0 | AC42: 0 | AD42: 38.87196864 | AE42: 38.87196864 | AF42: 38.87196864
A43: LRKPCSL | B43: 051219 | C43: 1 | D43: 2400 | E43: 60 | F43: 1 | G43: 1 | H43: KW | I43: 38.87196864 | J43: 38.87196864 | K43: 38.87196864 | L43: 38.87196864 | M43: 38.87196864 | N43: 33.04117335 | O43: 0 | P43: 0 | Q43: 0 | R43: 0 | S43: 0 | T43: 0 | U43: 0 | V43: 0 | W43: 0 | X43: 0 | Y43: 0 | Z43: 0 | AA43: 0 | AB43: 0 | AC43: 0 | AD43: 38.2241025 | AE43: 38.87196864 | AF43: 38.87196864
A44: LRKPCSL | B44: 051319 | C44: 1 | D44: 2400 | E44: 60 | F44: 1 | G44: 1 | H44: KW | I44: 38.87196864 | J44: 38.87196864 | K44: 38.87196864 | L44: 38.87196864 | M44: 38.87196864 | N44: 32.3933072 | O44: 0 | P44: 0 | Q44: 0 | R44: 0 | S44: 0 | T44: 0 | U44: 0 | V44: 0 | W44: 0 | X44: 0 | Y44: 0 | Z44: 0 | AA44: 0 | AB44: 0 | AC44: 0 | AD44: 37.57623636 | AE44: 38.87196864 | AF44: 38.87196864
A45: LRKPCSL | B45: 051419 | C45: 1 | D45: 2400 | E45: 60 | F45: 1 | G45: 1 | H45: KW | I45: 38.87196864 | J45: 38.87196864 | K45: 38.87196864 | L45: 38.87196864 | M45: 38.87196864 | N45: 32.3933072 | O45: 0 | P45: 0 | Q45: 0 | R45: 0 | S45: 0 | T45: 0 | U45: 0 | V45: 0 | W45: 0 | X45: 0 | Y45: 0 | Z45: 0 | AA45: 0 | AB45: 0 | AC45: 0 | AD45: 36.92837021 | AE45: 38.87196864 | AF45: 38.87196864
A46: LRKPCSL | B46: 051519 | C46: 1 | D46: 2400 | E46: 60 | F46: 1 | G46: 1 | H46: KW | I46: 38.87196864 | J46: 38.87196864 | K46: 38.87196864 | L46: 38.87196864 | M46: 38.87196864 | N46: 31.74544106 | O46: 0 | P46: 0 | Q46: 0 | R46: 0 | S46: 0 | T46: 0 | U46: 0 | V46: 0 | W46: 0 | X46: 0 | Y46: 0 | Z46: 0 | AA46: 0 | AB46: 0 | AC46: 0 | AD46: 36.28050407 | AE46: 38.87196864 | AF46: 38.87196864
A47: LRKPCSL | B47: 051619 | C47: 1 | D47: 2400 | E47: 60 | F47: 1 | G47: 1 | H47: KW | I47: 38.87196864 | J47: 38.87196864 | K47: 38.87196864 | L47: 38.87196864 | M47: 38.87196864 | N47: 31.09757491 | O47: 0 | P47: 0 | Q47: 0 | R47: 0 | S47: 0 | T47: 0 | U47: 0 | V47: 0 | W47: 0 | X47: 0 | Y47: 0 | Z47: 0 | AA47: 0 | AB47: 0 | AC47: 0 | AD47: 35.63263792 | AE47: 38.87196864 | AF47: 38.87196864
A48: LRKPCSL | B48: 051719 | C48: 1 | D48: 2400 | E48: 60 | F48: 1 | G48: 1 | H48: KW | I48: 38.87196864 | J48: 38.87196864 | K48: 38.87196864 | L48: 38.87196864 | M48: 38.87196864 | N48: 30.44970877 | O48: 0 | P48: 0 | Q48: 0 | R48: 0 | S48: 0 | T48: 0 | U48: 0 | V48: 0 | W48: 0 | X48: 0 | Y48: 0 | Z48: 0 | AA48: 0 | AB48: 0 | AC48: 0 | AD48: 34.98477178 | AE48: 38.87196864 | AF48: 38.87196864
A49: LRKPCSL | B49: 051819 | C49: 1 | D49: 2400 | E49: 60 | F49: 1 | G49: 1 | H49: KW | I49: 38.87196864 | J49: 38.87196864 | K49: 38.87196864 | L49: 38.87196864 | M49: 38.87196864 | N49: 29.80184263 | O49: 0 | P49: 0 | Q49: 0 | R49: 0 | S49: 0 | T49: 0 | U49: 0 | V49: 0 | W49: 0 | X49: 0 | Y49: 0 | Z49: 0 | AA49: 0 | AB49: 0 | AC49: 0 | AD49: 34.33690563 | AE49: 38.87196864 | AF49: 38.87196864
A50: LRKPCSL | B50: 051919 | C50: 1 | D50: 2400 | E50: 60 | F50: 1 | G50: 1 | H50: KW | I50: 38.87196864 | J50: 38.87196864 | K50: 38.87196864 | L50: 38.87196864 | M50: 38.87196864 | N50: 29.15397648 | O50: 0 | P50: 0 | Q50: 0 | R50: 0 | S50: 0 | T50: 0 | U50: 0 | V50: 0 | W50: 0 | X50: 0 | Y50: 0 | Z50: 0 | AA50: 0 | AB50: 0 | AC50: 0 | AD50: 33.68903949 | AE50: 38.87196864 | AF50: 38.87196864
A51: LRKPCSL | B51: 052019 | C51: 1 | D51: 2400 | E51: 60 | F51: 1 | G51: 1 | H51: KW | I51: 38.87196864 | J51: 38.87196864 | K51: 38.87196864 | L51: 38.87196864 | M51: 38.87196864 | N51: 29.15397648 | O51: 0 | P51: 0 | Q51: 0 | R51: 0 | S51: 0 | T51: 0 | U51: 0 | V51: 0 | W51: 0 | X51: 0 | Y51: 0 | Z51: 0 | AA51: 0 | AB51: 0 | AC51: 0 | AD51: 33.68903949 | AE51: 38.87196864 | AF51: 38.87196864
A52: LRKPCSL | B52: 052119 | C52: 1 | D52: 2400 | E52: 60 | F52: 1 | G52: 1 | H52: KW | I52: 38.87196864 | J52: 38.87196864 | K52: 38.87196864 | L52: 38.87196864 | M52: 38.87196864 | N52: 28.50611034 | O52: 0 | P52: 0 | Q52: 0 | R52: 0 | S52: 0 | T52: 0 | U52: 0 | V52: 0 | W52: 0 | X52: 0 | Y52: 0 | Z52: 0 | AA52: 0 | AB52: 0 | AC52: 0 | AD52: 33.04117335 | AE52: 38.87196864 | AF52: 38.87196864
A53: LRKPCSL | B53: 052219 | C53: 1 | D53: 2400 | E53: 60 | F53: 1 | G53: 1 | H53: KW | I53: 38.87196864 | J53: 38.87196864 | K53: 38.87196864 | L53: 38.87196864 | M53: 38.87196864 | N53: 27.85824419 | O53: 0 | P53: 0 | Q53: 0 | R53: 0 | S53: 0 | T53: 0 | U53: 0 | V53: 0 | W53: 0 | X53: 0 | Y53: 0 | Z53: 0 | AA53: 0 | AB53: 0 | AC53: 0 | AD53: 32.3933072 | AE53: 38.87196864 | AF53: 38.87196864
A54: LRKPCSL | B54: 052319 | C54: 1 | D54: 2400 | E54: 60 | F54: 1 | G54: 1 | H54: KW | I54: 38.87196864 | J54: 38.87196864 | K54: 38.87196864 | L54: 38.87196864 | M54: 38.87196864 | N54: 27.21037805 | O54: 0 | P54: 0 | Q54: 0 | R54: 0 | S54: 0 | T54: 0 | U54: 0 | V54: 0 | W54: 0 | X54: 0 | Y54: 0 | Z54: 0 | AA54: 0 | AB54: 0 | AC54: 0 | AD54: 31.74544106 | AE54: 38.87196864 | AF54: 38.87196864
A55: LRKPCSL | B55: 052419 | C55: 1 | D55: 2400 | E55: 60 | F55: 1 | G55: 1 | H55: KW | I55: 38.87196864 | J55: 38.87196864 | K55: 38.87196864 | L55: 38.87196864 | M55: 38.87196864 | N55: 27.21037805 | O55: 0 | P55: 0 | Q55: 0 | R55: 0 | S55: 0 | T55: 0 | U55: 0 | V55: 0 | W55: 0 | X55: 0 | Y55: 0 | Z55: 0 | AA55: 0 | AB55: 0 | AC55: 0 | AD55: 31.09757491 | AE55: 38.87196864 | AF55: 38.87196864
A56: LRKPCSL | B56: 052519 | C56: 1 | D56: 2400 | E56: 60 | F56: 1 | G56: 1 | H56: KW | I56: 38.87196864 | J56: 38.87196864 | K56: 38.87196864 | L56: 38.87196864 | M56: 38.87196864 | N56: 26.56251191 | O56: 0 | P56: 0 | Q56: 0 | R56: 0 | S56: 0 | T56: 0 | U56: 0 | V56: 0 | W56: 0 | X56: 0 | Y56: 0 | Z56: 0 | AA56: 0 | AB56: 0 | AC56: 0 | AD56: 30.44970877 | AE56: 38.87196864 | AF56: 38.87196864
A57: LRKPCSL | B57: 052619 | C57: 1 | D57: 2400 | E57: 60 | F57: 1 | G57: 1 | H57: KW | I57: 38.87196864 | J57: 38.87196864 | K57: 38.87196864 | L57: 38.87196864 | M57: 38.87196864 | N57: 26.56251191 | O57: 0 | P57: 0 | Q57: 0 | R57: 0 | S57: 0 | T57: 0 | U57: 0 | V57: 0 | W57: 0 | X57: 0 | Y57: 0 | Z57: 0 | AA57: 0 | AB57: 0 | AC57: 0 | AD57: 30.44970877 | AE57: 38.87196864 | AF57: 38.87196864
A58: LRKPCSL | B58: 052719 | C58: 1 | D58: 2400 | E58: 60 | F58: 1 | G58: 1 | H58: KW | I58: 38.87196864 | J58: 38.87196864 | K58: 38.87196864 | L58: 38.87196864 | M58: 38.87196864 | N58: 25.91464576 | O58: 0 | P58: 0 | Q58: 0 | R58: 0 | S58: 0 | T58: 0 | U58: 0 | V58: 0 | W58: 0 | X58: 0 | Y58: 0 | Z58: 0 | AA58: 0 | AB58: 0 | AC58: 0 | AD58: 29.80184263 | AE58: 38.87196864 | AF58: 38.87196864
A59: LRKPCSL | B59: 052819 | C59: 1 | D59: 2400 | E59: 60 | F59: 1 | G59: 1 | H59: KW | I59: 38.87196864 | J59: 38.87196864 | K59: 38.87196864 | L59: 38.87196864 | M59: 38.87196864 | N59: 25.91464576 | O59: 0 | P59: 0 | Q59: 0 | R59: 0 | S59: 0 | T59: 0 | U59: 0 | V59: 0 | W59: 0 | X59: 0 | Y59: 0 | Z59: 0 | AA59: 0 | AB59: 0 | AC59: 0 | AD59: 29.15397648 | AE59: 38.87196864 | AF59: 38.87196864
A60: LRKPCSL | B60: 052919 | C60: 1 | D60: 2400 | E60: 60 | F60: 1 | G60: 1 | H60: KW | I60: 38.87196864 | J60: 38.87196864 | K60: 38.87196864 | L60: 38.87196864 | M60: 38.87196864 | N60: 25.26677962 | O60: 0 | P60: 0 | Q60: 0 | R60: 0 | S60: 0 | T60: 0 | U60: 0 | V60: 0 | W60: 0 | X60: 0 | Y60: 0 | Z60: 0 | AA60: 0 | AB60: 0 | AC60: 0 | AD60: 28.50611034 | AE60: 38.87196864 | AF60: 38.87196864
A61: LRKPCSL | B61: 053019 | C61: 1 | D61: 2400 | E61: 60 | F61: 1 | G61: 1 | H61: KW | I61: 38.87196864 | J61: 38.87196864 | K61: 38.87196864 | L61: 38.87196864 | M61: 38.87196864 | N61: 25.26677962 | O61: 0 | P61: 0 | Q61: 0 | R61: 0 | S61: 0 | T61: 0 | U61: 0 | V61: 0 | W61: 0 | X61: 0 | Y61: 0 | Z61: 0 | AA61: 0 | AB61: 0 | AC61: 0 | AD61: 28.50611034 | AE61: 38.87196864 | AF61: 38.87196864
A62: LRKPCSL | B62: 053119 | C62: 1 | D62: 2400 | E62: 60 | F62: 1 | G62: 1 | H62: KW | I62: 38.87196864 | J62: 38.87196864 | K62: 38.87196864 | L62: 38.87196864 | M62: 38.87196864 | N62: 24.61891347 | O62: 0 | P62: 0 | Q62: 0 | R62: 0 | S62: 0 | T62: 0 | U62: 0 | V62: 0 | W62: 0 | X62: 0 | Y62: 0 | Z62: 0 | AA62: 0 | AB62: 0 | AC62: 0 | AD62: 27.85824419 | AE62: 38.87196864 | AF62: 38.87196864
A63: LRKPCSL | B63: 060119 | C63: 1 | D63: 2400 | E63: 60 | F63: 1 | G63: 1 | H63: KW | I63: 38.87196864 | J63: 38.87196864 | K63: 38.87196864 | L63: 38.87196864 | M63: 38.87196864 | N63: 24.61891347 | O63: 0 | P63: 0 | Q63: 0 | R63: 0 | S63: 0 | T63: 0 | U63: 0 | V63: 0 | W63: 0 | X63: 0 | Y63: 0 | Z63: 0 | AA63: 0 | AB63: 0 | AC63: 0 | AD63: 27.21037805 | AE63: 38.87196864 | AF63: 38.87196864
A64: LRKPCSL | B64: 060219 | C64: 1 | D64: 2400 | E64: 60 | F64: 1 | G64: 1 | H64: KW | I64: 38.87196864 | J64: 38.87196864 | K64: 38.87196864 | L64: 38.87196864 | M64: 38.87196864 | N64: 23.97104733 | O64: 0 | P64: 0 | Q64: 0 | R64: 0 | S64: 0 | T64: 0 | U64: 0 | V64: 0 | W64: 0 | X64: 0 | Y64: 0 | Z64: 0 | AA64: 0 | AB64: 0 | AC64: 0 | AD64: 27.21037805 | AE64: 38.87196864 | AF64: 38.87196864
A65: LRKPCSL | B65: 060319 | C65: 1 | D65: 2400 | E65: 60 | F65: 1 | G65: 1 | H65: KW | I65: 38.87196864 | J65: 38.87196864 | K65: 38.87196864 | L65: 38.87196864 | M65: 38.87196864 | N65: 23.97104733 | O65: 0 | P65: 0 | Q65: 0 | R65: 0 | S65: 0 | T65: 0 | U65: 0 | V65: 0 | W65: 0 | X65: 0 | Y65: 0 | Z65: 0 | AA65: 0 | AB65: 0 | AC65: 0 | AD65: 26.56251191 | AE65: 38.87196864 | AF65: 38.87196864
A66: LRKPCSL | B66: 060419 | C66: 1 | D66: 2400 | E66: 60 | F66: 1 | G66: 1 | H66: KW | I66: 38.87196864 | J66: 38.87196864 | K66: 38.87196864 | L66: 38.87196864 | M66: 38.87196864 | N66: 23.97104733 | O66: 0 | P66: 0 | Q66: 0 | R66: 0 | S66: 0 | T66: 0 | U66: 0 | V66: 0 | W66: 0 | X66: 0 | Y66: 0 | Z66: 0 | AA66: 0 | AB66: 0 | AC66: 0 | AD66: 25.91464576 | AE66: 38.87196864 | AF66: 38.87196864
A67: LRKPCSL | B67: 060519 | C67: 1 | D67: 2400 | E67: 60 | F67: 1 | G67: 1 | H67: KW | I67: 38.87196864 | J67: 38.87196864 | K67: 38.87196864 | L67: 38.87196864 | M67: 38.87196864 | N67: 23.32318119 | O67: 0 | P67: 0 | Q67: 0 | R67: 0 | S67: 0 | T67: 0 | U67: 0 | V67: 0 | W67: 0 | X67: 0 | Y67: 0 | Z67: 0 | AA67: 0 | AB67: 0 | AC67: 0 | AD67: 25.91464576 | AE67: 38.87196864 | AF67: 38.87196864
A68: LRKPCSL | B68: 060619 | C68: 1 | D68: 2400 | E68: 60 | F68: 1 | G68: 1 | H68: KW | I68: 38.87196864 | J68: 38.87196864 | K68: 38.87196864 | L68: 38.87196864 | M68: 38.87196864 | N68: 23.32318119 | O68: 0 | P68: 0 | Q68: 0 | R68: 0 | S68: 0 | T68: 0 | U68: 0 | V68: 0 | W68: 0 | X68: 0 | Y68: 0 | Z68: 0 | AA68: 0 | AB68: 0 | AC68: 0 | AD68: 25.26677962 | AE68: 38.87196864 | AF68: 38.87196864
A69: LRKPCSL | B69: 060719 | C69: 1 | D69: 2400 | E69: 60 | F69: 1 | G69: 1 | H69: KW | I69: 38.87196864 | J69: 38.87196864 | K69: 38.87196864 | L69: 38.87196864 | M69: 38.87196864 | N69: 23.32318119 | O69: 0 | P69: 0 | Q69: 0 | R69: 0 | S69: 0 | T69: 0 | U69: 0 | V69: 0 | W69: 0 | X69: 0 | Y69: 0 | Z69: 0 | AA69: 0 | AB69: 0 | AC69: 0 | AD69: 25.26677962 | AE69: 38.87196864 | AF69: 38.87196864
A70: LRKPCSL | B70: 060819 | C70: 1 | D70: 2400 | E70: 60 | F70: 1 | G70: 1 | H70: KW | I70: 38.87196864 | J70: 38.87196864 | K70: 38.87196864 | L70: 38.87196864 | M70: 38.87196864 | N70: 23.32318119 | O70: 0 | P70: 0 | Q70: 0 | R70: 0 | S70: 0 | T70: 0 | U70: 0 | V70: 0 | W70: 0 | X70: 0 | Y70: 0 | Z70: 0 | AA70: 0 | AB70: 0 | AC70: 0 | AD70: 24.61891347 | AE70: 38.87196864 | AF70: 38.87196864
A71: LRKPCSL | B71: 060919 | C71: 1 | D71: 2400 | E71: 60 | F71: 1 | G71: 1 | H71: KW | I71: 38.87196864 | J71: 38.87196864 | K71: 38.87196864 | L71: 38.87196864 | M71: 38.87196864 | N71: 23.32318119 | O71: 0 | P71: 0 | Q71: 0 | R71: 0 | S71: 0 | T71: 0 | U71: 0 | V71: 0 | W71: 0 | X71: 0 | Y71: 0 | Z71: 0 | AA71: 0 | AB71: 0 | AC71: 0 | AD71: 23.97104733 | AE71: 38.87196864 | AF71: 38.87196864
A72: LRKPCSL | B72: 061019 | C72: 1 | D72: 2400 | E72: 60 | F72: 1 | G72: 1 | H72: KW | I72: 38.87196864 | J72: 38.87196864 | K72: 38.87196864 | L72: 38.87196864 | M72: 38.87196864 | N72: 23.32318119 | O72: 0 | P72: 0 | Q72: 0 | R72: 0 | S72: 0 | T72: 0 | U72: 0 | V72: 0 | W72: 0 | X72: 0 | Y72: 0 | Z72: 0 | AA72: 0 | AB72: 0 | AC72: 0 | AD72: 23.97104733 | AE72: 38.87196864 | AF72: 38.87196864
A73: LRKPCSL | B73: 061119 | C73: 1 | D73: 2400 | E73: 60 | F73: 1 | G73: 1 | H73: KW | I73: 38.87196864 | J73: 38.87196864 | K73: 38.87196864 | L73: 38.87196864 | M73: 38.87196864 | N73: 22.67531504 | O73: 0 | P73: 0 | Q73: 0 | R73: 0 | S73: 0 | T73: 0 | U73: 0 | V73: 0 | W73: 0 | X73: 0 | Y73: 0 | Z73: 0 | AA73: 0 | AB73: 0 | AC73: 0 | AD73: 23.32318119 | AE73: 38.87196864 | AF73: 38.87196864
A74: LRKPCSL | B74: 061219 | C74: 1 | D74: 2400 | E74: 60 | F74: 1 | G74: 1 | H74: KW | I74: 38.87196864 | J74: 38.87196864 | K74: 38.87196864 | L74: 38.87196864 | M74: 38.87196864 | N74: 22.67531504 | O74: 0 | P74: 0 | Q74: 0 | R74: 0 | S74: 0 | T74: 0 | U74: 0 | V74: 0 | W74: 0 | X74: 0 | Y74: 0 | Z74: 0 | AA74: 0 | AB74: 0 | AC74: 0 | AD74: 23.32318119 | AE74: 38.87196864 | AF74: 38.87196864
A75: LRKPCSL | B75: 061319 | C75: 1 | D75: 2400 | E75: 60 | F75: 1 | G75: 1 | H75: KW | I75: 38.87196864 | J75: 38.87196864 | K75: 38.87196864 | L75: 38.87196864 | M75: 38.87196864 | N75: 22.67531504 | O75: 0 | P75: 0 | Q75: 0 | R75: 0 | S75: 0 | T75: 0 | U75: 0 | V75: 0 | W75: 0 | X75: 0 | Y75: 0 | Z75: 0 | AA75: 0 | AB75: 0 | AC75: 0 | AD75: 23.32318119 | AE75: 38.87196864 | AF75: 38.87196864
A76: LRKPCSL | B76: 061419 | C76: 1 | D76: 2400 | E76: 60 | F76: 1 | G76: 1 | H76: KW | I76: 38.87196864 | J76: 38.87196864 | K76: 38.87196864 | L76: 38.87196864 | M76: 38.87196864 | N76: 22.67531504 | O76: 0 | P76: 0 | Q76: 0 | R76: 0 | S76: 0 | T76: 0 | U76: 0 | V76: 0 | W76: 0 | X76: 0 | Y76: 0 | Z76: 0 | AA76: 0 | AB76: 0 | AC76: 0 | AD76: 22.67531504 | AE76: 38.87196864 | AF76: 38.87196864
A77: LRKPCSL | B77: 061519 | C77: 1 | D77: 2400 | E77: 60 | F77: 1 | G77: 1 | H77: KW | I77: 38.87196864 | J77: 38.87196864 | K77: 38.87196864 | L77: 38.87196864 | M77: 38.87196864 | N77: 22.67531504 | O77: 0 | P77: 0 | Q77: 0 | R77: 0 | S77: 0 | T77: 0 | U77: 0 | V77: 0 | W77: 0 | X77: 0 | Y77: 0 | Z77: 0 | AA77: 0 | AB77: 0 | AC77: 0 | AD77: 22.67531504 | AE77: 38.87196864 | AF77: 38.87196864
A78: LRKPCSL | B78: 061619 | C78: 1 | D78: 2400 | E78: 60 | F78: 1 | G78: 1 | H78: KW | I78: 38.87196864 | J78: 38.87196864 | K78: 38.87196864 | L78: 38.87196864 | M78: 38.87196864 | N78: 22.67531504 | O78: 0 | P78: 0 | Q78: 0 | R78: 0 | S78: 0 | T78: 0 | U78: 0 | V78: 0 | W78: 0 | X78: 0 | Y78: 0 | Z78: 0 | AA78: 0 | AB78: 0 | AC78: 0 | AD78: 22.0274489 | AE78: 38.87196864 | AF78: 38.87196864
A79: LRKPCSL | B79: 061719 | C79: 1 | D79: 2400 | E79: 60 | F79: 1 | G79: 1 | H79: KW | I79: 38.87196864 | J79: 38.87196864 | K79: 38.87196864 | L79: 38.87196864 | M79: 38.87196864 | N79: 23.32318119 | O79: 0 | P79: 0 | Q79: 0 | R79: 0 | S79: 0 | T79: 0 | U79: 0 | V79: 0 | W79: 0 | X79: 0 | Y79: 0 | Z79: 0 | AA79: 0 | AB79: 0 | AC79: 0 | AD79: 22.0274489 | AE79: 38.87196864 | AF79: 38.87196864
A80: LRKPCSL | B80: 061819 | C80: 1 | D80: 2400 | E80: 60 | F80: 1 | G80: 1 | H80: KW | I80: 38.87196864 | J80: 38.87196864 | K80: 38.87196864 | L80: 38.87196864 | M80: 38.87196864 | N80: 23.32318119 | O80: 0 | P80: 0 | Q80: 0 | R80: 0 | S80: 0 | T80: 0 | U80: 0 | V80: 0 | W80: 0 | X80: 0 | Y80: 0 | Z80: 0 | AA80: 0 | AB80: 0 | AC80: 0 | AD80: 22.0274489 | AE80: 38.87196864 | AF80: 38.87196864
A81: LRKPCSL | B81: 061919 | C81: 1 | D81: 2400 | E81: 60 | F81: 1 | G81: 1 | H81: KW | I81: 38.87196864 | J81: 38.87196864 | K81: 38.87196864 | L81: 38.87196864 | M81: 38.87196864 | N81: 23.32318119 | O81: 0 | P81: 0 | Q81: 0 | R81: 0 | S81: 0 | T81: 0 | U81: 0 | V81: 0 | W81: 0 | X81: 0 | Y81: 0 | Z81: 0 | AA81: 0 | AB81: 0 | AC81: 0 | AD81: 22.0274489 | AE81: 38.87196864 | AF81: 38.87196864
A82: LRKPCSL | B82: 062019 | C82: 1 | D82: 2400 | E82: 60 | F82: 1 | G82: 1 | H82: KW | I82: 38.87196864 | J82: 38.87196864 | K82: 38.87196864 | L82: 38.87196864 | M82: 38.87196864 | N82: 23.32318119 | O82: 0 | P82: 0 | Q82: 0 | R82: 0 | S82: 0 | T82: 0 | U82: 0 | V82: 0 | W82: 0 | X82: 0 | Y82: 0 | Z82: 0 | AA82: 0 | AB82: 0 | AC82: 0 | AD82: 21.37958275 | AE82: 38.87196864 | AF82: 38.87196864
A83: LRKPCSL | B83: 062119 | C83: 1 | D83: 2400 | E83: 60 | F83: 1 | G83: 1 | H83: KW | I83: 38.87196864 | J83: 38.87196864 | K83: 38.87196864 | L83: 38.87196864 | M83: 38.87196864 | N83: 23.32318119 | O83: 0 | P83: 0 | Q83: 0 | R83: 0 | S83: 0 | T83: 0 | U83: 0 | V83: 0 | W83: 0 | X83: 0 | Y83: 0 | Z83: 0 | AA83: 0 | AB83: 0 | AC83: 0 | AD83: 21.37958275 | AE83: 38.87196864 | AF83: 38.87196864
A84: LRKPCSL | B84: 062219 | C84: 1 | D84: 2400 | E84: 60 | F84: 1 | G84: 1 | H84: KW | I84: 38.87196864 | J84: 38.87196864 | K84: 38.87196864 | L84: 38.87196864 | M84: 38.87196864 | N84: 23.32318119 | O84: 0 | P84: 0 | Q84: 0 | R84: 0 | S84: 0 | T84: 0 | U84: 0 | V84: 0 | W84: 0 | X84: 0 | Y84: 0 | Z84: 0 | AA84: 0 | AB84: 0 | AC84: 0 | AD84: 21.37958275 | AE84: 38.87196864 | AF84: 38.87196864
A85: LRKPCSL | B85: 062319 | C85: 1 | D85: 2400 | E85: 60 | F85: 1 | G85: 1 | H85: KW | I85: 38.87196864 | J85: 38.87196864 | K85: 38.87196864 | L85: 38.87196864 | M85: 38.87196864 | N85: 23.97104733 | O85: 0 | P85: 0 | Q85: 0 | R85: 0 | S85: 0 | T85: 0 | U85: 0 | V85: 0 | W85: 0 | X85: 0 | Y85: 0 | Z85: 0 | AA85: 0 | AB85: 0 | AC85: 0 | AD85: 21.37958275 | AE85: 38.87196864 | AF85: 38.87196864
A86: LRKPCSL | B86: 062419 | C86: 1 | D86: 2400 | E86: 60 | F86: 1 | G86: 1 | H86: KW | I86: 38.87196864 | J86: 38.87196864 | K86: 38.87196864 | L86: 38.87196864 | M86: 38.87196864 | N86: 23.97104733 | O86: 0 | P86: 0 | Q86: 0 | R86: 0 | S86: 0 | T86: 0 | U86: 0 | V86: 0 | W86: 0 | X86: 0 | Y86: 0 | Z86: 0 | AA86: 0 | AB86: 0 | AC86: 0 | AD86: 21.37958275 | AE86: 38.87196864 | AF86: 38.87196864
A87: LRKPCSL | B87: 062519 | C87: 1 | D87: 2400 | E87: 60 | F87: 1 | G87: 1 | H87: KW | I87: 38.87196864 | J87: 38.87196864 | K87: 38.87196864 | L87: 38.87196864 | M87: 38.87196864 | N87: 23.97104733 | O87: 0 | P87: 0 | Q87: 0 | R87: 0 | S87: 0 | T87: 0 | U87: 0 | V87: 0 | W87: 0 | X87: 0 | Y87: 0 | Z87: 0 | AA87: 0 | AB87: 0 | AC87: 0 | AD87: 20.73171661 | AE87: 38.87196864 | AF87: 38.87196864
A88: LRKPCSL | B88: 062619 | C88: 1 | D88: 2400 | E88: 60 | F88: 1 | G88: 1 | H88: KW | I88: 38.87196864 | J88: 38.87196864 | K88: 38.87196864 | L88: 38.87196864 | M88: 38.87196864 | N88: 24.61891347 | O88: 0 | P88: 0 | Q88: 0 | R88: 0 | S88: 0 | T88: 0 | U88: 0 | V88: 0 | W88: 0 | X88: 0 | Y88: 0 | Z88: 0 | AA88: 0 | AB88: 0 | AC88: 0 | AD88: 20.73171661 | AE88: 38.87196864 | AF88: 38.87196864
A89: LRKPCSL | B89: 062719 | C89: 1 | D89: 2400 | E89: 60 | F89: 1 | G89: 1 | H89: KW | I89: 38.87196864 | J89: 38.87196864 | K89: 38.87196864 | L89: 38.87196864 | M89: 38.87196864 | N89: 24.61891347 | O89: 0 | P89: 0 | Q89: 0 | R89: 0 | S89: 0 | T89: 0 | U89: 0 | V89: 0 | W89: 0 | X89: 0 | Y89: 0 | Z89: 0 | AA89: 0 | AB89: 0 | AC89: 0 | AD89: 20.73171661 | AE89: 38.87196864 | AF89: 38.87196864
A90: LRKPCSL | B90: 062819 | C90: 1 | D90: 2400 | E90: 60 | F90: 1 | G90: 1 | H90: KW | I90: 38.87196864 | J90: 38.87196864 | K90: 38.87196864 | L90: 38.87196864 | M90: 38.87196864 | N90: 24.61891347 | O90: 0 | P90: 0 | Q90: 0 | R90: 0 | S90: 0 | T90: 0 | U90: 0 | V90: 0 | W90: 0 | X90: 0 | Y90: 0 | Z90: 0 | AA90: 0 | AB90: 0 | AC90: 0 | AD90: 20.73171661 | AE90: 38.87196864 | AF90: 38.87196864
A91: LRKPCSL | B91: 062919 | C91: 1 | D91: 2400 | E91: 60 | F91: 1 | G91: 1 | H91: KW | I91: 38.87196864 | J91: 38.87196864 | K91: 38.87196864 | L91: 38.87196864 | M91: 38.87196864 | N91: 25.26677962 | O91: 0 | P91: 0 | Q91: 0 | R91: 0 | S91: 0 | T91: 0 | U91: 0 | V91: 0 | W91: 0 | X91: 0 | Y91: 0 | Z91: 0 | AA91: 0 | AB91: 0 | AC91: 0 | AD91: 20.73171661 | AE91: 38.87196864 | AF91: 38.87196864
A92: LRKPCSL | B92: 063019 | C92: 1 | D92: 2400 | E92: 60 | F92: 1 | G92: 1 | H92: KW | I92: 38.87196864 | J92: 38.87196864 | K92: 38.87196864 | L92: 38.87196864 | M92: 38.87196864 | N92: 25.26677962 | O92: 0 | P92: 0 | Q92: 0 | R92: 0 | S92: 0 | T92: 0 | U92: 0 | V92: 0 | W92: 0 | X92: 0 | Y92: 0 | Z92: 0 | AA92: 0 | AB92: 0 | AC92: 0 | AD92: 20.73171661 | AE92: 38.87196864 | AF92: 38.87196864
A93: LRKPCSL | B93: 070119 | C93: 1 | D93: 2400 | E93: 60 | F93: 1 | G93: 1 | H93: KW | I93: 38.87196864 | J93: 38.87196864 | K93: 38.87196864 | L93: 38.87196864 | M93: 38.87196864 | N93: 25.91464576 | O93: 0 | P93: 0 | Q93: 0 | R93: 0 | S93: 0 | T93: 0 | U93: 0 | V93: 0 | W93: 0 | X93: 0 | Y93: 0 | Z93: 0 | AA93: 0 | AB93: 0 | AC93: 0 | AD93: 21.37958275 | AE93: 38.87196864 | AF93: 38.87196864
A94: LRKPCSL | B94: 070219 | C94: 1 | D94: 2400 | E94: 60 | F94: 1 | G94: 1 | H94: KW | I94: 38.87196864 | J94: 38.87196864 | K94: 38.87196864 | L94: 38.87196864 | M94: 38.87196864 | N94: 25.91464576 | O94: 0 | P94: 0 | Q94: 0 | R94: 0 | S94: 0 | T94: 0 | U94: 0 | V94: 0 | W94: 0 | X94: 0 | Y94: 0 | Z94: 0 | AA94: 0 | AB94: 0 | AC94: 0 | AD94: 21.37958275 | AE94: 38.87196864 | AF94: 38.87196864
A95: LRKPCSL | B95: 070319 | C95: 1 | D95: 2400 | E95: 60 | F95: 1 | G95: 1 | H95: KW | I95: 38.87196864 | J95: 38.87196864 | K95: 38.87196864 | L95: 38.87196864 | M95: 38.87196864 | N95: 26.56251191 | O95: 0 | P95: 0 | Q95: 0 | R95: 0 | S95: 0 | T95: 0 | U95: 0 | V95: 0 | W95: 0 | X95: 0 | Y95: 0 | Z95: 0 | AA95: 0 | AB95: 0 | AC95: 0 | AD95: 21.37958275 | AE95: 38.87196864 | AF95: 38.87196864
A96: LRKPCSL | B96: 070419 | C96: 1 | D96: 2400 | E96: 60 | F96: 1 | G96: 1 | H96: KW | I96: 38.87196864 | J96: 38.87196864 | K96: 38.87196864 | L96: 38.87196864 | M96: 38.87196864 | N96: 26.56251191 | O96: 0 | P96: 0 | Q96: 0 | R96: 0 | S96: 0 | T96: 0 | U96: 0 | V96: 0 | W96: 0 | X96: 0 | Y96: 0 | Z96: 0 | AA96: 0 | AB96: 0 | AC96: 0 | AD96: 21.37958275 | AE96: 38.87196864 | AF96: 38.87196864
A97: LRKPCSL | B97: 070519 | C97: 1 | D97: 2400 | E97: 60 | F97: 1 | G97: 1 | H97: KW | I97: 38.87196864 | J97: 38.87196864 | K97: 38.87196864 | L97: 38.87196864 | M97: 38.87196864 | N97: 27.21037805 | O97: 0 | P97: 0 | Q97: 0 | R97: 0 | S97: 0 | T97: 0 | U97: 0 | V97: 0 | W97: 0 | X97: 0 | Y97: 0 | Z97: 0 | AA97: 0 | AB97: 0 | AC97: 0 | AD97: 21.37958275 | AE97: 38.87196864 | AF97: 38.87196864
A98: LRKPCSL | B98: 070619 | C98: 1 | D98: 2400 | E98: 60 | F98: 1 | G98: 1 | H98: KW | I98: 38.87196864 | J98: 38.87196864 | K98: 38.87196864 | L98: 38.87196864 | M98: 38.87196864 | N98: 27.21037805 | O98: 0 | P98: 0 | Q98: 0 | R98: 0 | S98: 0 | T98: 0 | U98: 0 | V98: 0 | W98: 0 | X98: 0 | Y98: 0 | Z98: 0 | AA98: 0 | AB98: 0 | AC98: 0 | AD98: 21.37958275 | AE98: 38.87196864 | AF98: 38.87196864
A99: LRKPCSL | B99: 070719 | C99: 1 | D99: 2400 | E99: 60 | F99: 1 | G99: 1 | H99: KW | I99: 38.87196864 | J99: 38.87196864 | K99: 38.87196864 | L99: 38.87196864 | M99: 38.87196864 | N99: 27.85824419 | O99: 0 | P99: 0 | Q99: 0 | R99: 0 | S99: 0 | T99: 0 | U99: 0 | V99: 0 | W99: 0 | X99: 0 | Y99: 0 | Z99: 0 | AA99: 0 | AB99: 0 | AC99: 0 | AD99: 22.0274489 | AE99: 38.87196864 | AF99: 38.87196864
A100: LRKPCSL | B100: 070819 | C100: 1 | D100: 2400 | E100: 60 | F100: 1 | G100: 1 | H100: KW | I100: 38.87196864 | J100: 38.87196864 | K100: 38.87196864 | L100: 38.87196864 | M100: 38.87196864 | N100: 27.85824419 | O100: 0 | P100: 0 | Q100: 0 | R100: 0 | S100: 0 | T100: 0 | U100: 0 | V100: 0 | W100: 0 | X100: 0 | Y100: 0 | Z100: 0 | AA100: 0 | AB100: 0 | AC100: 0 | AD100: 22.0274489 | AE100: 38.87196864 | AF100: 38.87196864
A101: LRKPCSL | B101: 070919 | C101: 1 | D101: 2400 | E101: 60 | F101: 1 | G101: 1 | H101: KW | I101: 38.87196864 | J101: 38.87196864 | K101: 38.87196864 | L101: 38.87196864 | M101: 38.87196864 | N101: 28.50611034 | O101: 0 | P101: 0 | Q101: 0 | R101: 0 | S101: 0 | T101: 0 | U101: 0 | V101: 0 | W101: 0 | X101: 0 | Y101: 0 | Z101: 0 | AA101: 0 | AB101: 0 | AC101: 0 | AD101: 22.0274489 | AE101: 38.87196864 | AF101: 38.87196864
A102: LRKPCSL | B102: 071019 | C102: 1 | D102: 2400 | E102: 60 | F102: 1 | G102: 1 | H102: KW | I102: 38.87196864 | J102: 38.87196864 | K102: 38.87196864 | L102: 38.87196864 | M102: 38.87196864 | N102: 29.15397648 | O102: 0 | P102: 0 | Q102: 0 | R102: 0 | S102: 0 | T102: 0 | U102: 0 | V102: 0 | W102: 0 | X102: 0 | Y102: 0 | Z102: 0 | AA102: 0 | AB102: 0 | AC102: 0 | AD102: 22.67531504 | AE102: 38.87196864 | AF102: 38.87196864
A103: LRKPCSL | B103: 071119 | C103: 1 | D103: 2400 | E103: 60 | F103: 1 | G103: 1 | H103: KW | I103: 38.87196864 | J103: 38.87196864 | K103: 38.87196864 | L103: 38.87196864 | M103: 38.87196864 | N103: 29.15397648 | O103: 0 | P103: 0 | Q103: 0 | R103: 0 | S103: 0 | T103: 0 | U103: 0 | V103: 0 | W103: 0 | X103: 0 | Y103: 0 | Z103: 0 | AA103: 0 | AB103: 0 | AC103: 0 | AD103: 22.67531504 | AE103: 38.87196864 | AF103: 38.87196864
A104: LRKPCSL | B104: 071219 | C104: 1 | D104: 2400 | E104: 60 | F104: 1 | G104: 1 | H104: KW | I104: 38.87196864 | J104: 38.87196864 | K104: 38.87196864 | L104: 38.87196864 | M104: 38.87196864 | N104: 29.80184263 | O104: 0 | P104: 0 | Q104: 0 | R104: 0 | S104: 0 | T104: 0 | U104: 0 | V104: 0 | W104: 0 | X104: 0 | Y104: 0 | Z104: 0 | AA104: 0 | AB104: 0 | AC104: 0 | AD104: 22.67531504 | AE104: 38.87196864 | AF104: 38.87196864
A105: LRKPCSL | B105: 071319 | C105: 1 | D105: 2400 | E105: 60 | F105: 1 | G105: 1 | H105: KW | I105: 38.87196864 | J105: 38.87196864 | K105: 38.87196864 | L105: 38.87196864 | M105: 38.87196864 | N105: 30.44970877 | O105: 0 | P105: 0 | Q105: 0 | R105: 0 | S105: 0 | T105: 0 | U105: 0 | V105: 0 | W105: 0 | X105: 0 | Y105: 0 | Z105: 0 | AA105: 0 | AB105: 0 | AC105: 0 | AD105: 23.32318119 | AE105: 38.87196864 | AF105: 38.87196864
A106: LRKPCSL | B106: 071419 | C106: 1 | D106: 2400 | E106: 60 | F106: 1 | G106: 1 | H106: KW | I106: 38.87196864 | J106: 38.87196864 | K106: 38.87196864 | L106: 38.87196864 | M106: 38.87196864 | N106: 30.44970877 | O106: 0 | P106: 0 | Q106: 0 | R106: 0 | S106: 0 | T106: 0 | U106: 0 | V106: 0 | W106: 0 | X106: 0 | Y106: 0 | Z106: 0 | AA106: 0 | AB106: 0 | AC106: 0 | AD106: 23.32318119 | AE106: 38.87196864 | AF106: 38.87196864
A107: LRKPCSL | B107: 071519 | C107: 1 | D107: 2400 | E107: 60 | F107: 1 | G107: 1 | H107: KW | I107: 38.87196864 | J107: 38.87196864 | K107: 38.87196864 | L107: 38.87196864 | M107: 38.87196864 | N107: 31.09757491 | O107: 0 | P107: 0 | Q107: 0 | R107: 0 | S107: 0 | T107: 0 | U107: 0 | V107: 0 | W107: 0 | X107: 0 | Y107: 0 | Z107: 0 | AA107: 0 | AB107: 0 | AC107: 0 | AD107: 23.97104733 | AE107: 38.87196864 | AF107: 38.87196864
A108: LRKPCSL | B108: 071619 | C108: 1 | D108: 2400 | E108: 60 | F108: 1 | G108: 1 | H108: KW | I108: 38.87196864 | J108: 38.87196864 | K108: 38.87196864 | L108: 38.87196864 | M108: 38.87196864 | N108: 31.74544106 | O108: 0 | P108: 0 | Q108: 0 | R108: 0 | S108: 0 | T108: 0 | U108: 0 | V108: 0 | W108: 0 | X108: 0 | Y108: 0 | Z108: 0 | AA108: 0 | AB108: 0 | AC108: 0 | AD108: 23.97104733 | AE108: 38.87196864 | AF108: 38.87196864
A109: LRKPCSL | B109: 071719 | C109: 1 | D109: 2400 | E109: 60 | F109: 1 | G109: 1 | H109: KW | I109: 38.87196864 | J109: 38.87196864 | K109: 38.87196864 | L109: 38.87196864 | M109: 38.87196864 | N109: 31.74544106 | O109: 0 | P109: 0 | Q109: 0 | R109: 0 | S109: 0 | T109: 0 | U109: 0 | V109: 0 | W109: 0 | X109: 0 | Y109: 0 | Z109: 0 | AA109: 0 | AB109: 0 | AC109: 0 | AD109: 24.61891347 | AE109: 38.87196864 | AF109: 38.87196864
A110: LRKPCSL | B110: 071819 | C110: 1 | D110: 2400 | E110: 60 | F110: 1 | G110: 1 | H110: KW | I110: 38.87196864 | J110: 38.87196864 | K110: 38.87196864 | L110: 38.87196864 | M110: 38.87196864 | N110: 32.3933072 | O110: 0 | P110: 0 | Q110: 0 | R110: 0 | S110: 0 | T110: 0 | U110: 0 | V110: 0 | W110: 0 | X110: 0 | Y110: 0 | Z110: 0 | AA110: 0 | AB110: 0 | AC110: 0 | AD110: 25.26677962 | AE110: 38.87196864 | AF110: 38.87196864
A111: LRKPCSL | B111: 071919 | C111: 1 | D111: 2400 | E111: 60 | F111: 1 | G111: 1 | H111: KW | I111: 38.87196864 | J111: 38.87196864 | K111: 38.87196864 | L111: 38.87196864 | M111: 38.87196864 | N111: 33.04117335 | O111: 0 | P111: 0 | Q111: 0 | R111: 0 | S111: 0 | T111: 0 | U111: 0 | V111: 0 | W111: 0 | X111: 0 | Y111: 0 | Z111: 0 | AA111: 0 | AB111: 0 | AC111: 0 | AD111: 25.26677962 | AE111: 38.87196864 | AF111: 38.87196864
A112: LRKPCSL | B112: 072019 | C112: 1 | D112: 2400 | E112: 60 | F112: 1 | G112: 1 | H112: KW | I112: 38.87196864 | J112: 38.87196864 | K112: 38.87196864 | L112: 38.87196864 | M112: 38.87196864 | N112: 33.68903949 | O112: 0 | P112: 0 | Q112: 0 | R112: 0 | S112: 0 | T112: 0 | U112: 0 | V112: 0 | W112: 0 | X112: 0 | Y112: 0 | Z112: 0 | AA112: 0 | AB112: 0 | AC112: 0 | AD112: 25.91464576 | AE112: 38.87196864 | AF112: 38.87196864
A113: LRKPCSL | B113: 072119 | C113: 1 | D113: 2400 | E113: 60 | F113: 1 | G113: 1 | H113: KW | I113: 38.87196864 | J113: 38.87196864 | K113: 38.87196864 | L113: 38.87196864 | M113: 38.87196864 | N113: 34.33690563 | O113: 0 | P113: 0 | Q113: 0 | R113: 0 | S113: 0 | T113: 0 | U113: 0 | V113: 0 | W113: 0 | X113: 0 | Y113: 0 | Z113: 0 | AA113: 0 | AB113: 0 | AC113: 0 | AD113: 26.56251191 | AE113: 38.87196864 | AF113: 38.87196864
A114: LRKPCSL | B114: 072219 | C114: 1 | D114: 2400 | E114: 60 | F114: 1 | G114: 1 | H114: KW | I114: 38.87196864 | J114: 38.87196864 | K114: 38.87196864 | L114: 38.87196864 | M114: 38.87196864 | N114: 34.33690563 | O114: 0 | P114: 0 | Q114: 0 | R114: 0 | S114: 0 | T114: 0 | U114: 0 | V114: 0 | W114: 0 | X114: 0 | Y114: 0 | Z114: 0 | AA114: 0 | AB114: 0 | AC114: 0 | AD114: 26.56251191 | AE114: 38.87196864 | AF114: 38.87196864
A115: LRKPCSL | B115: 072319 | C115: 1 | D115: 2400 | E115: 60 | F115: 1 | G115: 1 | H115: KW | I115: 38.87196864 | J115: 38.87196864 | K115: 38.87196864 | L115: 38.87196864 | M115: 38.87196864 | N115: 34.98477178 | O115: 0 | P115: 0 | Q115: 0 | R115: 0 | S115: 0 | T115: 0 | U115: 0 | V115: 0 | W115: 0 | X115: 0 | Y115: 0 | Z115: 0 | AA115: 0 | AB115: 0 | AC115: 0 | AD115: 27.21037805 | AE115: 38.87196864 | AF115: 38.87196864
A116: LRKPCSL | B116: 072419 | C116: 1 | D116: 2400 | E116: 60 | F116: 1 | G116: 1 | H116: KW | I116: 38.87196864 | J116: 38.87196864 | K116: 38.87196864 | L116: 38.87196864 | M116: 38.87196864 | N116: 35.63263792 | O116: 0 | P116: 0 | Q116: 0 | R116: 0 | S116: 0 | T116: 0 | U116: 0 | V116: 0 | W116: 0 | X116: 0 | Y116: 0 | Z116: 0 | AA116: 0 | AB116: 0 | AC116: 0 | AD116: 27.85824419 | AE116: 38.87196864 | AF116: 38.87196864
A117: LRKPCSL | B117: 072519 | C117: 1 | D117: 2400 | E117: 60 | F117: 1 | G117: 1 | H117: KW | I117: 38.87196864 | J117: 38.87196864 | K117: 38.87196864 | L117: 38.87196864 | M117: 38.87196864 | N117: 36.28050407 | O117: 0 | P117: 0 | Q117: 0 | R117: 0 | S117: 0 | T117: 0 | U117: 0 | V117: 0 | W117: 0 | X117: 0 | Y117: 0 | Z117: 0 | AA117: 0 | AB117: 0 | AC117: 0 | AD117: 28.50611034 | AE117: 38.87196864 | AF117: 38.87196864
A118: LRKPCSL | B118: 072619 | C118: 1 | D118: 2400 | E118: 60 | F118: 1 | G118: 1 | H118: KW | I118: 38.87196864 | J118: 38.87196864 | K118: 38.87196864 | L118: 38.87196864 | M118: 38.87196864 | N118: 36.92837021 | O118: 0 | P118: 0 | Q118: 0 | R118: 0 | S118: 0 | T118: 0 | U118: 0 | V118: 0 | W118: 0 | X118: 0 | Y118: 0 | Z118: 0 | AA118: 0 | AB118: 0 | AC118: 0 | AD118: 29.15397648 | AE118: 38.87196864 | AF118: 38.87196864
A119: LRKPCSL | B119: 072719 | C119: 1 | D119: 2400 | E119: 60 | F119: 1 | G119: 1 | H119: KW | I119: 38.87196864 | J119: 38.87196864 | K119: 38.87196864 | L119: 38.87196864 | M119: 38.87196864 | N119: 36.92837021 | O119: 0 | P119: 0 | Q119: 0 | R119: 0 | S119: 0 | T119: 0 | U119: 0 | V119: 0 | W119: 0 | X119: 0 | Y119: 0 | Z119: 0 | AA119: 0 | AB119: 0 | AC119: 0 | AD119: 29.15397648 | AE119: 38.87196864 | AF119: 38.87196864
A120: LRKPCSL | B120: 072819 | C120: 1 | D120: 2400 | E120: 60 | F120: 1 | G120: 1 | H120: KW | I120: 38.87196864 | J120: 38.87196864 | K120: 38.87196864 | L120: 38.87196864 | M120: 38.87196864 | N120: 37.57623636 | O120: 0 | P120: 0 | Q120: 0 | R120: 0 | S120: 0 | T120: 0 | U120: 0 | V120: 0 | W120: 0 | X120: 0 | Y120: 0 | Z120: 0 | AA120: 0 | AB120: 0 | AC120: 0 | AD120: 29.80184263 | AE120: 38.87196864 | AF120: 38.87196864
A121: LRKPCSL | B121: 072919 | C121: 1 | D121: 2400 | E121: 60 | F121: 1 | G121: 1 | H121: KW | I121: 38.87196864 | J121: 38.87196864 | K121: 38.87196864 | L121: 38.87196864 | M121: 38.87196864 | N121: 38.2241025 | O121: 0 | P121: 0 | Q121: 0 | R121: 0 | S121: 0 | T121: 0 | U121: 0 | V121: 0 | W121: 0 | X121: 0 | Y121: 0 | Z121: 0 | AA121: 0 | AB121: 0 | AC121: 0 | AD121: 30.44970877 | AE121: 38.87196864 | AF121: 38.87196864
A122: LRKPCSL | B122: 073019 | C122: 1 | D122: 2400 | E122: 60 | F122: 1 | G122: 1 | H122: KW | I122: 38.87196864 | J122: 38.87196864 | K122: 38.87196864 | L122: 38.87196864 | M122: 38.87196864 | N122: 38.87196864 | O122: 0 | P122: 0 | Q122: 0 | R122: 0 | S122: 0 | T122: 0 | U122: 0 | V122: 0 | W122: 0 | X122: 0 | Y122: 0 | Z122: 0 | AA122: 0 | AB122: 0 | AC122: 0 | AD122: 31.09757491 | AE122: 38.87196864 | AF122: 38.87196864
A123: LRKPCSL | B123: 073119 | C123: 1 | D123: 2400 | E123: 60 | F123: 1 | G123: 1 | H123: KW | I123: 38.87196864 | J123: 38.87196864 | K123: 38.87196864 | L123: 38.87196864 | M123: 38.87196864 | N123: 38.87196864 | O123: 0.6478661441 | P123: 0 | Q123: 0 | R123: 0 | S123: 0 | T123: 0 | U123: 0 | V123: 0 | W123: 0 | X123: 0 | Y123: 0 | Z123: 0 | AA123: 0 | AB123: 0 | AC123: 0 | AD123: 31.74544106 | AE123: 38.87196864 | AF123: 38.87196864
A124: LRKPCSL | B124: 080119 | C124: 1 | D124: 2400 | E124: 60 | F124: 1 | G124: 1 | H124: KW | I124: 38.87196864 | J124: 38.87196864 | K124: 38.87196864 | L124: 38.87196864 | M124: 38.87196864 | N124: 38.87196864 | O124: 1.295732288 | P124: 0 | Q124: 0 | R124: 0 | S124: 0 | T124: 0 | U124: 0 | V124: 0 | W124: 0 | X124: 0 | Y124: 0 | Z124: 0 | AA124: 0 | AB124: 0 | AC124: 0 | AD124: 32.3933072 | AE124: 38.87196864 | AF124: 38.87196864
A125: LRKPCSL | B125: 080219 | C125: 1 | D125: 2400 | E125: 60 | F125: 1 | G125: 1 | H125: KW | I125: 38.87196864 | J125: 38.87196864 | K125: 38.87196864 | L125: 38.87196864 | M125: 38.87196864 | N125: 38.87196864 | O125: 1.943598432 | P125: 0 | Q125: 0 | R125: 0 | S125: 0 | T125: 0 | U125: 0 | V125: 0 | W125: 0 | X125: 0 | Y125: 0 | Z125: 0 | AA125: 0 | AB125: 0 | AC125: 0 | AD125: 33.04117335 | AE125: 38.87196864 | AF125: 38.87196864
A126: LRKPCSL | B126: 080319 | C126: 1 | D126: 2400 | E126: 60 | F126: 1 | G126: 1 | H126: KW | I126: 38.87196864 | J126: 38.87196864 | K126: 38.87196864 | L126: 38.87196864 | M126: 38.87196864 | N126: 38.87196864 | O126: 1.943598432 | P126: 0 | Q126: 0 | R126: 0 | S126: 0 | T126: 0 | U126: 0 | V126: 0 | W126: 0 | X126: 0 | Y126: 0 | Z126: 0 | AA126: 0 | AB126: 0 | AC126: 0 | AD126: 33.68903949 | AE126: 38.87196864 | AF126: 38.87196864
A127: LRKPCSL | B127: 080419 | C127: 1 | D127: 2400 | E127: 60 | F127: 1 | G127: 1 | H127: KW | I127: 38.87196864 | J127: 38.87196864 | K127: 38.87196864 | L127: 38.87196864 | M127: 38.87196864 | N127: 38.87196864 | O127: 2.591464576 | P127: 0 | Q127: 0 | R127: 0 | S127: 0 | T127: 0 | U127: 0 | V127: 0 | W127: 0 | X127: 0 | Y127: 0 | Z127: 0 | AA127: 0 | AB127: 0 | AC127: 0 | AD127: 34.33690563 | AE127: 38.87196864 | AF127: 38.87196864
A128: LRKPCSL | B128: 080519 | C128: 1 | D128: 2400 | E128: 60 | F128: 1 | G128: 1 | H128: KW | I128: 38.87196864 | J128: 38.87196864 | K128: 38.87196864 | L128: 38.87196864 | M128: 38.87196864 | N128: 38.87196864 | O128: 3.23933072 | P128: 0 | Q128: 0 | R128: 0 | S128: 0 | T128: 0 | U128: 0 | V128: 0 | W128: 0 | X128: 0 | Y128: 0 | Z128: 0 | AA128: 0 | AB128: 0 | AC128: 0 | AD128: 34.98477178 | AE128: 38.87196864 | AF128: 38.87196864
A129: LRKPCSL | B129: 080619 | C129: 1 | D129: 2400 | E129: 60 | F129: 1 | G129: 1 | H129: KW | I129: 38.87196864 | J129: 38.87196864 | K129: 38.87196864 | L129: 38.87196864 | M129: 38.87196864 | N129: 38.87196864 | O129: 3.887196864 | P129: 0 | Q129: 0 | R129: 0 | S129: 0 | T129: 0 | U129: 0 | V129: 0 | W129: 0 | X129: 0 | Y129: 0 | Z129: 0 | AA129: 0 | AB129: 0 | AC129: 0 | AD129: 35.63263792 | AE129: 38.87196864 | AF129: 38.87196864
A130: LRKPCSL | B130: 080719 | C130: 1 | D130: 2400 | E130: 60 | F130: 1 | G130: 1 | H130: KW | I130: 38.87196864 | J130: 38.87196864 | K130: 38.87196864 | L130: 38.87196864 | M130: 38.87196864 | N130: 38.87196864 | O130: 4.535063008 | P130: 0 | Q130: 0 | R130: 0 | S130: 0 | T130: 0 | U130: 0 | V130: 0 | W130: 0 | X130: 0 | Y130: 0 | Z130: 0 | AA130: 0 | AB130: 0 | AC130: 0 | AD130: 36.28050407 | AE130: 38.87196864 | AF130: 38.87196864
A131: LRKPCSL | B131: 080819 | C131: 1 | D131: 2400 | E131: 60 | F131: 1 | G131: 1 | H131: KW | I131: 38.87196864 | J131: 38.87196864 | K131: 38.87196864 | L131: 38.87196864 | M131: 38.87196864 | N131: 38.87196864 | O131: 5.182929152 | P131: 0 | Q131: 0 | R131: 0 | S131: 0 | T131: 0 | U131: 0 | V131: 0 | W131: 0 | X131: 0 | Y131: 0 | Z131: 0 | AA131: 0 | AB131: 0 | AC131: 0 | AD131: 37.57623636 | AE131: 38.87196864 | AF131: 38.87196864
A132: LRKPCSL | B132: 080919 | C132: 1 | D132: 2400 | E132: 60 | F132: 1 | G132: 1 | H132: KW | I132: 38.87196864 | J132: 38.87196864 | K132: 38.87196864 | L132: 38.87196864 | M132: 38.87196864 | N132: 38.87196864 | O132: 5.830795296 | P132: 0 | Q132: 0 | R132: 0 | S132: 0 | T132: 0 | U132: 0 | V132: 0 | W132: 0 | X132: 0 | Y132: 0 | Z132: 0 | AA132: 0 | AB132: 0 | AC132: 0 | AD132: 38.2241025 | AE132: 38.87196864 | AF132: 38.87196864
A133: LRKPCSL | B133: 081019 | C133: 1 | D133: 2400 | E133: 60 | F133: 1 | G133: 1 | H133: KW | I133: 38.87196864 | J133: 38.87196864 | K133: 38.87196864 | L133: 38.87196864 | M133: 38.87196864 | N133: 38.87196864 | O133: 6.478661441 | P133: 0 | Q133: 0 | R133: 0 | S133: 0 | T133: 0 | U133: 0 | V133: 0 | W133: 0 | X133: 0 | Y133: 0 | Z133: 0 | AA133: 0 | AB133: 0 | AC133: 0 | AD133: 38.87196864 | AE133: 38.87196864 | AF133: 38.87196864
A134: LRKPCSL | B134: 081119 | C134: 1 | D134: 2400 | E134: 60 | F134: 1 | G134: 1 | H134: KW | I134: 38.87196864 | J134: 38.87196864 | K134: 38.87196864 | L134: 38.87196864 | M134: 38.87196864 | N134: 38.87196864 | O134: 6.478661441 | P134: 0 | Q134: 0 | R134: 0 | S134: 0 | T134: 0 | U134: 0 | V134: 0 | W134: 0 | X134: 0 | Y134: 0 | Z134: 0 | AA134: 0 | AB134: 0 | AC134: 0.6478661441 | AD134: 38.87196864 | AE134: 38.87196864 | AF134: 38.87196864
A135: LRKPCSL | B135: 081219 | C135: 1 | D135: 2400 | E135: 60 | F135: 1 | G135: 1 | H135: KW | I135: 38.87196864 | J135: 38.87196864 | K135: 38.87196864 | L135: 38.87196864 | M135: 38.87196864 | N135: 38.87196864 | O135: 7.126527585 | P135: 0 | Q135: 0 | R135: 0 | S135: 0 | T135: 0 | U135: 0 | V135: 0 | W135: 0 | X135: 0 | Y135: 0 | Z135: 0 | AA135: 0 | AB135: 0 | AC135: 1.295732288 | AD135: 38.87196864 | AE135: 38.87196864 | AF135: 38.87196864
A136: LRKPCSL | B136: 081319 | C136: 1 | D136: 2400 | E136: 60 | F136: 1 | G136: 1 | H136: KW | I136: 38.87196864 | J136: 38.87196864 | K136: 38.87196864 | L136: 38.87196864 | M136: 38.87196864 | N136: 38.87196864 | O136: 7.774393729 | P136: 0 | Q136: 0 | R136: 0 | S136: 0 | T136: 0 | U136: 0 | V136: 0 | W136: 0 | X136: 0 | Y136: 0 | Z136: 0 | AA136: 0 | AB136: 0 | AC136: 2.591464576 | AD136: 38.87196864 | AE136: 38.87196864 | AF136: 38.87196864
A137: LRKPCSL | B137: 081419 | C137: 1 | D137: 2400 | E137: 60 | F137: 1 | G137: 1 | H137: KW | I137: 38.87196864 | J137: 38.87196864 | K137: 38.87196864 | L137: 38.87196864 | M137: 38.87196864 | N137: 38.87196864 | O137: 8.422259873 | P137: 0 | Q137: 0 | R137: 0 | S137: 0 | T137: 0 | U137: 0 | V137: 0 | W137: 0 | X137: 0 | Y137: 0 | Z137: 0 | AA137: 0 | AB137: 0 | AC137: 3.23933072 | AD137: 38.87196864 | AE137: 38.87196864 | AF137: 38.87196864
A138: LRKPCSL | B138: 081519 | C138: 1 | D138: 2400 | E138: 60 | F138: 1 | G138: 1 | H138: KW | I138: 38.87196864 | J138: 38.87196864 | K138: 38.87196864 | L138: 38.87196864 | M138: 38.87196864 | N138: 38.87196864 | O138: 9.070126017 | P138: 0 | Q138: 0 | R138: 0 | S138: 0 | T138: 0 | U138: 0 | V138: 0 | W138: 0 | X138: 0 | Y138: 0 | Z138: 0 | AA138: 0 | AB138: 0 | AC138: 3.887196864 | AD138: 38.87196864 | AE138: 38.87196864 | AF138: 38.87196864
A139: LRKPCSL | B139: 081619 | C139: 1 | D139: 2400 | E139: 60 | F139: 1 | G139: 1 | H139: KW | I139: 38.87196864 | J139: 38.87196864 | K139: 38.87196864 | L139: 38.87196864 | M139: 38.87196864 | N139: 38.87196864 | O139: 9.717992161 | P139: 0 | Q139: 0 | R139: 0 | S139: 0 | T139: 0 | U139: 0 | V139: 0 | W139: 0 | X139: 0 | Y139: 0 | Z139: 0 | AA139: 0 | AB139: 0 | AC139: 4.535063008 | AD139: 38.87196864 | AE139: 38.87196864 | AF139: 38.87196864
A140: LRKPCSL | B140: 081719 | C140: 1 | D140: 2400 | E140: 60 | F140: 1 | G140: 1 | H140: KW | I140: 38.87196864 | J140: 38.87196864 | K140: 38.87196864 | L140: 38.87196864 | M140: 38.87196864 | N140: 38.87196864 | O140: 10.3658583 | P140: 0 | Q140: 0 | R140: 0 | S140: 0 | T140: 0 | U140: 0 | V140: 0 | W140: 0 | X140: 0 | Y140: 0 | Z140: 0 | AA140: 0 | AB140: 0 | AC140: 5.830795296 | AD140: 38.87196864 | AE140: 38.87196864 | AF140: 38.87196864
A141: LRKPCSL | B141: 081819 | C141: 1 | D141: 2400 | E141: 60 | F141: 1 | G141: 1 | H141: KW | I141: 38.87196864 | J141: 38.87196864 | K141: 38.87196864 | L141: 38.87196864 | M141: 38.87196864 | N141: 38.87196864 | O141: 11.01372445 | P141: 0 | Q141: 0 | R141: 0 | S141: 0 | T141: 0 | U141: 0 | V141: 0 | W141: 0 | X141: 0 | Y141: 0 | Z141: 0 | AA141: 0 | AB141: 0 | AC141: 6.478661441 | AD141: 38.87196864 | AE141: 38.87196864 | AF141: 38.87196864
A142: LRKPCSL | B142: 081919 | C142: 1 | D142: 2400 | E142: 60 | F142: 1 | G142: 1 | H142: KW | I142: 38.87196864 | J142: 38.87196864 | K142: 38.87196864 | L142: 38.87196864 | M142: 38.87196864 | N142: 38.87196864 | O142: 11.66159059 | P142: 0 | Q142: 0 | R142: 0 | S142: 0 | T142: 0 | U142: 0 | V142: 0 | W142: 0 | X142: 0 | Y142: 0 | Z142: 0 | AA142: 0 | AB142: 0 | AC142: 7.126527585 | AD142: 38.87196864 | AE142: 38.87196864 | AF142: 38.87196864
A143: LRKPCSL | B143: 082019 | C143: 1 | D143: 2400 | E143: 60 | F143: 1 | G143: 1 | H143: KW | I143: 38.87196864 | J143: 38.87196864 | K143: 38.87196864 | L143: 38.87196864 | M143: 38.87196864 | N143: 38.87196864 | O143: 11.66159059 | P143: 0 | Q143: 0 | R143: 0 | S143: 0 | T143: 0 | U143: 0 | V143: 0 | W143: 0 | X143: 0 | Y143: 0 | Z143: 0 | AA143: 0 | AB143: 0 | AC143: 8.422259873 | AD143: 38.87196864 | AE143: 38.87196864 | AF143: 38.87196864
A144: LRKPCSL | B144: 082119 | C144: 1 | D144: 2400 | E144: 60 | F144: 1 | G144: 1 | H144: KW | I144: 38.87196864 | J144: 38.87196864 | K144: 38.87196864 | L144: 38.87196864 | M144: 38.87196864 | N144: 38.87196864 | O144: 12.30945674 | P144: 0 | Q144: 0 | R144: 0 | S144: 0 | T144: 0 | U144: 0 | V144: 0 | W144: 0 | X144: 0 | Y144: 0 | Z144: 0 | AA144: 0 | AB144: 0 | AC144: 9.070126017 | AD144: 38.87196864 | AE144: 38.87196864 | AF144: 38.87196864
A145: LRKPCSL | B145: 082219 | C145: 1 | D145: 2400 | E145: 60 | F145: 1 | G145: 1 | H145: KW | I145: 38.87196864 | J145: 38.87196864 | K145: 38.87196864 | L145: 38.87196864 | M145: 38.87196864 | N145: 38.87196864 | O145: 12.95732288 | P145: 0 | Q145: 0 | R145: 0 | S145: 0 | T145: 0 | U145: 0 | V145: 0 | W145: 0 | X145: 0 | Y145: 0 | Z145: 0 | AA145: 0 | AB145: 0 | AC145: 10.3658583 | AD145: 38.87196864 | AE145: 38.87196864 | AF145: 38.87196864
A146: LRKPCSL | B146: 082319 | C146: 1 | D146: 2400 | E146: 60 | F146: 1 | G146: 1 | H146: KW | I146: 38.87196864 | J146: 38.87196864 | K146: 38.87196864 | L146: 38.87196864 | M146: 38.87196864 | N146: 38.87196864 | O146: 13.60518903 | P146: 0 | Q146: 0 | R146: 0 | S146: 0 | T146: 0 | U146: 0 | V146: 0 | W146: 0 | X146: 0 | Y146: 0 | Z146: 0 | AA146: 0 | AB146: 0 | AC146: 11.01372445 | AD146: 38.87196864 | AE146: 38.87196864 | AF146: 38.87196864
A147: LRKPCSL | B147: 082419 | C147: 1 | D147: 2400 | E147: 60 | F147: 1 | G147: 1 | H147: KW | I147: 38.87196864 | J147: 38.87196864 | K147: 38.87196864 | L147: 38.87196864 | M147: 38.87196864 | N147: 38.87196864 | O147: 14.25305517 | P147: 0 | Q147: 0 | R147: 0 | S147: 0 | T147: 0 | U147: 0 | V147: 0 | W147: 0 | X147: 0 | Y147: 0 | Z147: 0 | AA147: 0 | AB147: 0 | AC147: 11.66159059 | AD147: 38.87196864 | AE147: 38.87196864 | AF147: 38.87196864
A148: LRKPCSL | B148: 082519 | C148: 1 | D148: 2400 | E148: 60 | F148: 1 | G148: 1 | H148: KW | I148: 38.87196864 | J148: 38.87196864 | K148: 38.87196864 | L148: 38.87196864 | M148: 38.87196864 | N148: 38.87196864 | O148: 14.90092131 | P148: 0 | Q148: 0 | R148: 0 | S148: 0 | T148: 0 | U148: 0 | V148: 0 | W148: 0 | X148: 0 | Y148: 0 | Z148: 0 | AA148: 0 | AB148: 0 | AC148: 12.95732288 | AD148: 38.87196864 | AE148: 38.87196864 | AF148: 38.87196864
A149: LRKPCSL | B149: 082619 | C149: 1 | D149: 2400 | E149: 60 | F149: 1 | G149: 1 | H149: KW | I149: 38.87196864 | J149: 38.87196864 | K149: 38.87196864 | L149: 38.87196864 | M149: 38.87196864 | N149: 38.87196864 | O149: 15.54878746 | P149: 0 | Q149: 0 | R149: 0 | S149: 0 | T149: 0 | U149: 0 | V149: 0 | W149: 0 | X149: 0 | Y149: 0 | Z149: 0 | AA149: 0 | AB149: 0 | AC149: 13.60518903 | AD149: 38.87196864 | AE149: 38.87196864 | AF149: 38.87196864
A150: LRKPCSL | B150: 082719 | C150: 1 | D150: 2400 | E150: 60 | F150: 1 | G150: 1 | H150: KW | I150: 38.87196864 | J150: 38.87196864 | K150: 38.87196864 | L150: 38.87196864 | M150: 38.87196864 | N150: 38.87196864 | O150: 16.1966536 | P150: 0 | Q150: 0 | R150: 0 | S150: 0 | T150: 0 | U150: 0 | V150: 0 | W150: 0 | X150: 0 | Y150: 0 | Z150: 0 | AA150: 0 | AB150: 0 | AC150: 14.90092131 | AD150: 38.87196864 | AE150: 38.87196864 | AF150: 38.87196864
A151: LRKPCSL | B151: 082819 | C151: 1 | D151: 2400 | E151: 60 | F151: 1 | G151: 1 | H151: KW | I151: 38.87196864 | J151: 38.87196864 | K151: 38.87196864 | L151: 38.87196864 | M151: 38.87196864 | N151: 38.87196864 | O151: 16.1966536 | P151: 0 | Q151: 0 | R151: 0 | S151: 0 | T151: 0 | U151: 0 | V151: 0 | W151: 0 | X151: 0 | Y151: 0 | Z151: 0 | AA151: 0 | AB151: 0 | AC151: 15.54878746 | AD151: 38.87196864 | AE151: 38.87196864 | AF151: 38.87196864
A152: LRKPCSL | B152: 082919 | C152: 1 | D152: 2400 | E152: 60 | F152: 1 | G152: 1 | H152: KW | I152: 38.87196864 | J152: 38.87196864 | K152: 38.87196864 | L152: 38.87196864 | M152: 38.87196864 | N152: 38.87196864 | O152: 16.84451975 | P152: 0 | Q152: 0 | R152: 0 | S152: 0 | T152: 0 | U152: 0 | V152: 0 | W152: 0 | X152: 0 | Y152: 0 | Z152: 0 | AA152: 0 | AB152: 0 | AC152: 16.84451975 | AD152: 38.87196864 | AE152: 38.87196864 | AF152: 38.87196864
A153: LRKPCSL | B153: 083019 | C153: 1 | D153: 2400 | E153: 60 | F153: 1 | G153: 1 | H153: KW | I153: 38.87196864 | J153: 38.87196864 | K153: 38.87196864 | L153: 38.87196864 | M153: 38.87196864 | N153: 38.87196864 | O153: 17.49238589 | P153: 0 | Q153: 0 | R153: 0 | S153: 0 | T153: 0 | U153: 0 | V153: 0 | W153: 0 | X153: 0 | Y153: 0 | Z153: 0 | AA153: 0 | AB153: 0 | AC153: 17.49238589 | AD153: 38.87196864 | AE153: 38.87196864 | AF153: 38.87196864
A154: LRKPCSL | B154: 083119 | C154: 1 | D154: 2400 | E154: 60 | F154: 1 | G154: 1 | H154: KW | I154: 38.87196864 | J154: 38.87196864 | K154: 38.87196864 | L154: 38.87196864 | M154: 38.87196864 | N154: 38.87196864 | O154: 18.14025203 | P154: 0 | Q154: 0 | R154: 0 | S154: 0 | T154: 0 | U154: 0 | V154: 0 | W154: 0 | X154: 0 | Y154: 0 | Z154: 0 | AA154: 0 | AB154: 0 | AC154: 18.78811818 | AD154: 38.87196864 | AE154: 38.87196864 | AF154: 38.87196864
A155: LRKPCSL | B155: 090119 | C155: 1 | D155: 2400 | E155: 60 | F155: 1 | G155: 1 | H155: KW | I155: 38.87196864 | J155: 38.87196864 | K155: 38.87196864 | L155: 38.87196864 | M155: 38.87196864 | N155: 38.87196864 | O155: 18.78811818 | P155: 0 | Q155: 0 | R155: 0 | S155: 0 | T155: 0 | U155: 0 | V155: 0 | W155: 0 | X155: 0 | Y155: 0 | Z155: 0 | AA155: 0 | AB155: 0 | AC155: 19.43598432 | AD155: 38.87196864 | AE155: 38.87196864 | AF155: 38.87196864
A156: LRKPCSL | B156: 090219 | C156: 1 | D156: 2400 | E156: 60 | F156: 1 | G156: 1 | H156: KW | I156: 38.87196864 | J156: 38.87196864 | K156: 38.87196864 | L156: 38.87196864 | M156: 38.87196864 | N156: 38.87196864 | O156: 19.43598432 | P156: 0 | Q156: 0 | R156: 0 | S156: 0 | T156: 0 | U156: 0 | V156: 0 | W156: 0 | X156: 0 | Y156: 0 | Z156: 0 | AA156: 0 | AB156: 0 | AC156: 20.73171661 | AD156: 38.87196864 | AE156: 38.87196864 | AF156: 38.87196864
A157: LRKPCSL | B157: 090319 | C157: 1 | D157: 2400 | E157: 60 | F157: 1 | G157: 1 | H157: KW | I157: 38.87196864 | J157: 38.87196864 | K157: 38.87196864 | L157: 38.87196864 | M157: 38.87196864 | N157: 38.87196864 | O157: 20.08385047 | P157: 0 | Q157: 0 | R157: 0 | S157: 0 | T157: 0 | U157: 0 | V157: 0 | W157: 0 | X157: 0 | Y157: 0 | Z157: 0 | AA157: 0 | AB157: 0 | AC157: 21.37958275 | AD157: 38.87196864 | AE157: 38.87196864 | AF157: 38.87196864
A158: LRKPCSL | B158: 090419 | C158: 1 | D158: 2400 | E158: 60 | F158: 1 | G158: 1 | H158: KW | I158: 38.87196864 | J158: 38.87196864 | K158: 38.87196864 | L158: 38.87196864 | M158: 38.87196864 | N158: 38.87196864 | O158: 20.73171661 | P158: 0 | Q158: 0 | R158: 0 | S158: 0 | T158: 0 | U158: 0 | V158: 0 | W158: 0 | X158: 0 | Y158: 0 | Z158: 0 | AA158: 0 | AB158: 0 | AC158: 22.67531504 | AD158: 38.87196864 | AE158: 38.87196864 | AF158: 38.87196864
A159: LRKPCSL | B159: 090519 | C159: 1 | D159: 2400 | E159: 60 | F159: 1 | G159: 1 | H159: KW | I159: 38.87196864 | J159: 38.87196864 | K159: 38.87196864 | L159: 38.87196864 | M159: 38.87196864 | N159: 38.87196864 | O159: 20.73171661 | P159: 0 | Q159: 0 | R159: 0 | S159: 0 | T159: 0 | U159: 0 | V159: 0 | W159: 0 | X159: 0 | Y159: 0 | Z159: 0 | AA159: 0 | AB159: 0 | AC159: 23.32318119 | AD159: 38.87196864 | AE159: 38.87196864 | AF159: 38.87196864
A160: LRKPCSL | B160: 090619 | C160: 1 | D160: 2400 | E160: 60 | F160: 1 | G160: 1 | H160: KW | I160: 38.87196864 | J160: 38.87196864 | K160: 38.87196864 | L160: 38.87196864 | M160: 38.87196864 | N160: 38.87196864 | O160: 21.37958275 | P160: 0 | Q160: 0 | R160: 0 | S160: 0 | T160: 0 | U160: 0 | V160: 0 | W160: 0 | X160: 0 | Y160: 0 | Z160: 0 | AA160: 0 | AB160: 0 | AC160: 24.61891347 | AD160: 38.87196864 | AE160: 38.87196864 | AF160: 38.87196864
A161: LRKPCSL | B161: 090719 | C161: 1 | D161: 2400 | E161: 60 | F161: 1 | G161: 1 | H161: KW | I161: 38.87196864 | J161: 38.87196864 | K161: 38.87196864 | L161: 38.87196864 | M161: 38.87196864 | N161: 38.87196864 | O161: 22.0274489 | P161: 0 | Q161: 0 | R161: 0 | S161: 0 | T161: 0 | U161: 0 | V161: 0 | W161: 0 | X161: 0 | Y161: 0 | Z161: 0 | AA161: 0 | AB161: 0 | AC161: 25.26677962 | AD161: 38.87196864 | AE161: 38.87196864 | AF161: 38.87196864
A162: LRKPCSL | B162: 090819 | C162: 1 | D162: 2400 | E162: 60 | F162: 1 | G162: 1 | H162: KW | I162: 38.87196864 | J162: 38.87196864 | K162: 38.87196864 | L162: 38.87196864 | M162: 38.87196864 | N162: 38.87196864 | O162: 22.67531504 | P162: 0 | Q162: 0 | R162: 0 | S162: 0 | T162: 0 | U162: 0 | V162: 0 | W162: 0 | X162: 0 | Y162: 0 | Z162: 0 | AA162: 0 | AB162: 0 | AC162: 26.56251191 | AD162: 38.87196864 | AE162: 38.87196864 | AF162: 38.87196864
A163: LRKPCSL | B163: 090919 | C163: 1 | D163: 2400 | E163: 60 | F163: 1 | G163: 1 | H163: KW | I163: 38.87196864 | J163: 38.87196864 | K163: 38.87196864 | L163: 38.87196864 | M163: 38.87196864 | N163: 38.87196864 | O163: 23.32318119 | P163: 0 | Q163: 0 | R163: 0 | S163: 0 | T163: 0 | U163: 0 | V163: 0 | W163: 0 | X163: 0 | Y163: 0 | Z163: 0 | AA163: 0 | AB163: 0 | AC163: 27.21037805 | AD163: 38.87196864 | AE163: 38.87196864 | AF163: 38.87196864
A164: LRKPCSL | B164: 091019 | C164: 1 | D164: 2400 | E164: 60 | F164: 1 | G164: 1 | H164: KW | I164: 38.87196864 | J164: 38.87196864 | K164: 38.87196864 | L164: 38.87196864 | M164: 38.87196864 | N164: 38.87196864 | O164: 23.97104733 | P164: 0 | Q164: 0 | R164: 0 | S164: 0 | T164: 0 | U164: 0 | V164: 0 | W164: 0 | X164: 0 | Y164: 0 | Z164: 0 | AA164: 0 | AB164: 0 | AC164: 28.50611034 | AD164: 38.87196864 | AE164: 38.87196864 | AF164: 38.87196864
A165: LRKPCSL | B165: 091119 | C165: 1 | D165: 2400 | E165: 60 | F165: 1 | G165: 1 | H165: KW | I165: 38.87196864 | J165: 38.87196864 | K165: 38.87196864 | L165: 38.87196864 | M165: 38.87196864 | N165: 38.87196864 | O165: 24.61891347 | P165: 0 | Q165: 0 | R165: 0 | S165: 0 | T165: 0 | U165: 0 | V165: 0 | W165: 0 | X165: 0 | Y165: 0 | Z165: 0 | AA165: 0 | AB165: 0 | AC165: 29.80184263 | AD165: 38.87196864 | AE165: 38.87196864 | AF165: 38.87196864
A166: LRKPCSL | B166: 091219 | C166: 1 | D166: 2400 | E166: 60 | F166: 1 | G166: 1 | H166: KW | I166: 38.87196864 | J166: 38.87196864 | K166: 38.87196864 | L166: 38.87196864 | M166: 38.87196864 | N166: 38.87196864 | O166: 25.26677962 | P166: 0 | Q166: 0 | R166: 0 | S166: 0 | T166: 0 | U166: 0 | V166: 0 | W166: 0 | X166: 0 | Y166: 0 | Z166: 0 | AA166: 0 | AB166: 0 | AC166: 30.44970877 | AD166: 38.87196864 | AE166: 38.87196864 | AF166: 38.87196864
A167: LRKPCSL | B167: 091319 | C167: 1 | D167: 2400 | E167: 60 | F167: 1 | G167: 1 | H167: KW | I167: 38.87196864 | J167: 38.87196864 | K167: 38.87196864 | L167: 38.87196864 | M167: 38.87196864 | N167: 38.87196864 | O167: 25.26677962 | P167: 0 | Q167: 0 | R167: 0 | S167: 0 | T167: 0 | U167: 0 | V167: 0 | W167: 0 | X167: 0 | Y167: 0 | Z167: 0 | AA167: 0 | AB167: 0 | AC167: 31.74544106 | AD167: 38.87196864 | AE167: 38.87196864 | AF167: 38.87196864
A168: LRKPCSL | B168: 091419 | C168: 1 | D168: 2400 | E168: 60 | F168: 1 | G168: 1 | H168: KW | I168: 38.87196864 | J168: 38.87196864 | K168: 38.87196864 | L168: 38.87196864 | M168: 38.87196864 | N168: 38.87196864 | O168: 25.91464576 | P168: 0 | Q168: 0 | R168: 0 | S168: 0 | T168: 0 | U168: 0 | V168: 0 | W168: 0 | X168: 0 | Y168: 0 | Z168: 0 | AA168: 0 | AB168: 0 | AC168: 32.3933072 | AD168: 38.87196864 | AE168: 38.87196864 | AF168: 38.87196864
A169: LRKPCSL | B169: 091519 | C169: 1 | D169: 2400 | E169: 60 | F169: 1 | G169: 1 | H169: KW | I169: 38.87196864 | J169: 38.87196864 | K169: 38.87196864 | L169: 38.87196864 | M169: 38.87196864 | N169: 38.87196864 | O169: 26.56251191 | P169: 0 | Q169: 0 | R169: 0 | S169: 0 | T169: 0 | U169: 0 | V169: 0 | W169: 0 | X169: 0 | Y169: 0 | Z169: 0 | AA169: 0 | AB169: 0 | AC169: 33.68903949 | AD169: 38.87196864 | AE169: 38.87196864 | AF169: 38.87196864
A170: LRKPCSL | B170: 091619 | C170: 1 | D170: 2400 | E170: 60 | F170: 1 | G170: 1 | H170: KW | I170: 38.87196864 | J170: 38.87196864 | K170: 38.87196864 | L170: 38.87196864 | M170: 38.87196864 | N170: 38.87196864 | O170: 27.21037805 | P170: 0 | Q170: 0 | R170: 0 | S170: 0 | T170: 0 | U170: 0 | V170: 0 | W170: 0 | X170: 0 | Y170: 0 | Z170: 0 | AA170: 0 | AB170: 0 | AC170: 34.33690563 | AD170: 38.87196864 | AE170: 38.87196864 | AF170: 38.87196864
A171: LRKPCSL | B171: 091719 | C171: 1 | D171: 2400 | E171: 60 | F171: 1 | G171: 1 | H171: KW | I171: 38.87196864 | J171: 38.87196864 | K171: 38.87196864 | L171: 38.87196864 | M171: 38.87196864 | N171: 38.87196864 | O171: 27.85824419 | P171: 0 | Q171: 0 | R171: 0 | S171: 0 | T171: 0 | U171: 0 | V171: 0 | W171: 0 | X171: 0 | Y171: 0 | Z171: 0 | AA171: 0 | AB171: 0 | AC171: 35.63263792 | AD171: 38.87196864 | AE171: 38.87196864 | AF171: 38.87196864
A172: LRKPCSL | B172: 091819 | C172: 1 | D172: 2400 | E172: 60 | F172: 1 | G172: 1 | H172: KW | I172: 38.87196864 | J172: 38.87196864 | K172: 38.87196864 | L172: 38.87196864 | M172: 38.87196864 | N172: 38.87196864 | O172: 28.50611034 | P172: 0 | Q172: 0 | R172: 0 | S172: 0 | T172: 0 | U172: 0 | V172: 0 | W172: 0 | X172: 0 | Y172: 0 | Z172: 0 | AA172: 0 | AB172: 0 | AC172: 36.92837021 | AD172: 38.87196864 | AE172: 38.87196864 | AF172: 38.87196864
A173: LRKPCSL | B173: 091919 | C173: 1 | D173: 2400 | E173: 60 | F173: 1 | G173: 1 | H173: KW | I173: 38.87196864 | J173: 38.87196864 | K173: 38.87196864 | L173: 38.87196864 | M173: 38.87196864 | N173: 38.87196864 | O173: 29.15397648 | P173: 0 | Q173: 0 | R173: 0 | S173: 0 | T173: 0 | U173: 0 | V173: 0 | W173: 0 | X173: 0 | Y173: 0 | Z173: 0 | AA173: 0 | AB173: 0 | AC173: 37.57623636 | AD173: 38.87196864 | AE173: 38.87196864 | AF173: 38.87196864
A174: LRKPCSL | B174: 092019 | C174: 1 | D174: 2400 | E174: 60 | F174: 1 | G174: 1 | H174: KW | I174: 38.87196864 | J174: 38.87196864 | K174: 38.87196864 | L174: 38.87196864 | M174: 38.87196864 | N174: 38.87196864 | O174: 29.15397648 | P174: 0 | Q174: 0 | R174: 0 | S174: 0 | T174: 0 | U174: 0 | V174: 0 | W174: 0 | X174: 0 | Y174: 0 | Z174: 0 | AA174: 0 | AB174: 0 | AC174: 38.87196864 | AD174: 38.87196864 | AE174: 38.87196864 | AF174: 38.87196864
A175: LRKPCSL | B175: 092119 | C175: 1 | D175: 2400 | E175: 60 | F175: 1 | G175: 1 | H175: KW | I175: 38.87196864 | J175: 38.87196864 | K175: 38.87196864 | L175: 38.87196864 | M175: 38.87196864 | N175: 38.87196864 | O175: 29.80184263 | P175: 0 | Q175: 0 | R175: 0 | S175: 0 | T175: 0 | U175: 0 | V175: 0 | W175: 0 | X175: 0 | Y175: 0 | Z175: 0 | AA175: 0 | AB175: 0.6478661441 | AC175: 38.87196864 | AD175: 38.87196864 | AE175: 38.87196864 | AF175: 38.87196864
A176: LRKPCSL | B176: 092219 | C176: 1 | D176: 2400 | E176: 60 | F176: 1 | G176: 1 | H176: KW | I176: 38.87196864 | J176: 38.87196864 | K176: 38.87196864 | L176: 38.87196864 | M176: 38.87196864 | N176: 38.87196864 | O176: 30.44970877 | P176: 0 | Q176: 0 | R176: 0 | S176: 0 | T176: 0 | U176: 0 | V176: 0 | W176: 0 | X176: 0 | Y176: 0 | Z176: 0 | AA176: 0 | AB176: 1.943598432 | AC176: 38.87196864 | AD176: 38.87196864 | AE176: 38.87196864 | AF176: 38.87196864
A177: LRKPCSL | B177: 092319 | C177: 1 | D177: 2400 | E177: 60 | F177: 1 | G177: 1 | H177: KW | I177: 38.87196864 | J177: 38.87196864 | K177: 38.87196864 | L177: 38.87196864 | M177: 38.87196864 | N177: 38.87196864 | O177: 31.09757491 | P177: 0 | Q177: 0 | R177: 0 | S177: 0 | T177: 0 | U177: 0 | V177: 0 | W177: 0 | X177: 0 | Y177: 0 | Z177: 0 | AA177: 0 | AB177: 3.23933072 | AC177: 38.87196864 | AD177: 38.87196864 | AE177: 38.87196864 | AF177: 38.87196864
A178: LRKPCSL | B178: 092419 | C178: 1 | D178: 2400 | E178: 60 | F178: 1 | G178: 1 | H178: KW | I178: 38.87196864 | J178: 38.87196864 | K178: 38.87196864 | L178: 38.87196864 | M178: 38.87196864 | N178: 38.87196864 | O178: 31.74544106 | P178: 0 | Q178: 0 | R178: 0 | S178: 0 | T178: 0 | U178: 0 | V178: 0 | W178: 0 | X178: 0 | Y178: 0 | Z178: 0 | AA178: 0 | AB178: 3.887196864 | AC178: 38.87196864 | AD178: 38.87196864 | AE178: 38.87196864 | AF178: 38.87196864
A179: LRKPCSL | B179: 092519 | C179: 1 | D179: 2400 | E179: 60 | F179: 1 | G179: 1 | H179: KW | I179: 38.87196864 | J179: 38.87196864 | K179: 38.87196864 | L179: 38.87196864 | M179: 38.87196864 | N179: 38.87196864 | O179: 32.3933072 | P179: 0 | Q179: 0 | R179: 0 | S179: 0 | T179: 0 | U179: 0 | V179: 0 | W179: 0 | X179: 0 | Y179: 0 | Z179: 0 | AA179: 0 | AB179: 5.182929152 | AC179: 38.87196864 | AD179: 38.87196864 | AE179: 38.87196864 | AF179: 38.87196864
A180: LRKPCSL | B180: 092619 | C180: 1 | D180: 2400 | E180: 60 | F180: 1 | G180: 1 | H180: KW | I180: 38.87196864 | J180: 38.87196864 | K180: 38.87196864 | L180: 38.87196864 | M180: 38.87196864 | N180: 38.87196864 | O180: 33.04117335 | P180: 0 | Q180: 0 | R180: 0 | S180: 0 | T180: 0 | U180: 0 | V180: 0 | W180: 0 | X180: 0 | Y180: 0 | Z180: 0 | AA180: 0 | AB180: 5.830795296 | AC180: 38.87196864 | AD180: 38.87196864 | AE180: 38.87196864 | AF180: 38.87196864
A181: LRKPCSL | B181: 092719 | C181: 1 | D181: 2400 | E181: 60 | F181: 1 | G181: 1 | H181: KW | I181: 38.87196864 | J181: 38.87196864 | K181: 38.87196864 | L181: 38.87196864 | M181: 38.87196864 | N181: 38.87196864 | O181: 33.68903949 | P181: 0 | Q181: 0 | R181: 0 | S181: 0 | T181: 0 | U181: 0 | V181: 0 | W181: 0 | X181: 0 | Y181: 0 | Z181: 0 | AA181: 0 | AB181: 7.126527585 | AC181: 38.87196864 | AD181: 38.87196864 | AE181: 38.87196864 | AF181: 38.87196864
A182: LRKPCSL | B182: 092819 | C182: 1 | D182: 2400 | E182: 60 | F182: 1 | G182: 1 | H182: KW | I182: 38.87196864 | J182: 38.87196864 | K182: 38.87196864 | L182: 38.87196864 | M182: 38.87196864 | N182: 38.87196864 | O182: 34.33690563 | P182: 0 | Q182: 0 | R182: 0 | S182: 0 | T182: 0 | U182: 0 | V182: 0 | W182: 0 | X182: 0 | Y182: 0 | Z182: 0 | AA182: 0 | AB182: 7.774393729 | AC182: 38.87196864 | AD182: 38.87196864 | AE182: 38.87196864 | AF182: 38.87196864
A183: LRKPCSL | B183: 092919 | C183: 1 | D183: 2400 | E183: 60 | F183: 1 | G183: 1 | H183: KW | I183: 38.87196864 | J183: 38.87196864 | K183: 38.87196864 | L183: 38.87196864 | M183: 38.87196864 | N183: 38.87196864 | O183: 34.33690563 | P183: 0 | Q183: 0 | R183: 0 | S183: 0 | T183: 0 | U183: 0 | V183: 0 | W183: 0 | X183: 0 | Y183: 0 | Z183: 0 | AA183: 0 | AB183: 9.070126017 | AC183: 38.87196864 | AD183: 38.87196864 | AE183: 38.87196864 | AF183: 38.87196864
A184: LRKPCSL | B184: 093019 | C184: 1 | D184: 2400 | E184: 60 | F184: 1 | G184: 1 | H184: KW | I184: 38.87196864 | J184: 38.87196864 | K184: 38.87196864 | L184: 38.87196864 | M184: 38.87196864 | N184: 38.87196864 | O184: 34.98477178 | P184: 0 | Q184: 0 | R184: 0 | S184: 0 | T184: 0 | U184: 0 | V184: 0 | W184: 0 | X184: 0 | Y184: 0 | Z184: 0 | AA184: 0 | AB184: 10.3658583 | AC184: 38.87196864 | AD184: 38.87196864 | AE184: 38.87196864 | AF184: 38.87196864
A185: LRKPCSL | B185: 100119 | C185: 1 | D185: 2400 | E185: 60 | F185: 1 | G185: 1 | H185: KW | I185: 38.87196864 | J185: 38.87196864 | K185: 38.87196864 | L185: 38.87196864 | M185: 38.87196864 | N185: 38.87196864 | O185: 35.63263792 | P185: 0 | Q185: 0 | R185: 0 | S185: 0 | T185: 0 | U185: 0 | V185: 0 | W185: 0 | X185: 0 | Y185: 0 | Z185: 0 | AA185: 0 | AB185: 11.01372445 | AC185: 38.87196864 | AD185: 38.87196864 | AE185: 38.87196864 | AF185: 38.87196864
A186: LRKPCSL | B186: 100219 | C186: 1 | D186: 2400 | E186: 60 | F186: 1 | G186: 1 | H186: KW | I186: 38.87196864 | J186: 38.87196864 | K186: 38.87196864 | L186: 38.87196864 | M186: 38.87196864 | N186: 38.87196864 | O186: 36.28050407 | P186: 0 | Q186: 0 | R186: 0 | S186: 0 | T186: 0 | U186: 0 | V186: 0 | W186: 0 | X186: 0 | Y186: 0 | Z186: 0 | AA186: 0 | AB186: 12.30945674 | AC186: 38.87196864 | AD186: 38.87196864 | AE186: 38.87196864 | AF186: 38.87196864
A187: LRKPCSL | B187: 100319 | C187: 1 | D187: 2400 | E187: 60 | F187: 1 | G187: 1 | H187: KW | I187: 38.87196864 | J187: 38.87196864 | K187: 38.87196864 | L187: 38.87196864 | M187: 38.87196864 | N187: 38.87196864 | O187: 36.92837021 | P187: 0 | Q187: 0 | R187: 0 | S187: 0 | T187: 0 | U187: 0 | V187: 0 | W187: 0 | X187: 0 | Y187: 0 | Z187: 0 | AA187: 0 | AB187: 12.95732288 | AC187: 38.87196864 | AD187: 38.87196864 | AE187: 38.87196864 | AF187: 38.87196864
A188: LRKPCSL | B188: 100419 | C188: 1 | D188: 2400 | E188: 60 | F188: 1 | G188: 1 | H188: KW | I188: 38.87196864 | J188: 38.87196864 | K188: 38.87196864 | L188: 38.87196864 | M188: 38.87196864 | N188: 38.87196864 | O188: 37.57623636 | P188: 0 | Q188: 0 | R188: 0 | S188: 0 | T188: 0 | U188: 0 | V188: 0 | W188: 0 | X188: 0 | Y188: 0 | Z188: 0 | AA188: 0 | AB188: 14.25305517 | AC188: 38.87196864 | AD188: 38.87196864 | AE188: 38.87196864 | AF188: 38.87196864
A189: LRKPCSL | B189: 100519 | C189: 1 | D189: 2400 | E189: 60 | F189: 1 | G189: 1 | H189: KW | I189: 38.87196864 | J189: 38.87196864 | K189: 38.87196864 | L189: 38.87196864 | M189: 38.87196864 | N189: 38.87196864 | O189: 38.2241025 | P189: 0 | Q189: 0 | R189: 0 | S189: 0 | T189: 0 | U189: 0 | V189: 0 | W189: 0 | X189: 0 | Y189: 0 | Z189: 0 | AA189: 0 | AB189: 14.90092131 | AC189: 38.87196864 | AD189: 38.87196864 | AE189: 38.87196864 | AF189: 38.87196864
A190: LRKPCSL | B190: 100619 | C190: 1 | D190: 2400 | E190: 60 | F190: 1 | G190: 1 | H190: KW | I190: 38.87196864 | J190: 38.87196864 | K190: 38.87196864 | L190: 38.87196864 | M190: 38.87196864 | N190: 38.87196864 | O190: 38.87196864 | P190: 0 | Q190: 0 | R190: 0 | S190: 0 | T190: 0 | U190: 0 | V190: 0 | W190: 0 | X190: 0 | Y190: 0 | Z190: 0 | AA190: 0 | AB190: 16.1966536 | AC190: 38.87196864 | AD190: 38.87196864 | AE190: 38.87196864 | AF190: 38.87196864
A191: LRKPCSL | B191: 100719 | C191: 1 | D191: 2400 | E191: 60 | F191: 1 | G191: 1 | H191: KW | I191: 38.87196864 | J191: 38.87196864 | K191: 38.87196864 | L191: 38.87196864 | M191: 38.87196864 | N191: 38.87196864 | O191: 38.87196864 | P191: 0.6478661441 | Q191: 0 | R191: 0 | S191: 0 | T191: 0 | U191: 0 | V191: 0 | W191: 0 | X191: 0 | Y191: 0 | Z191: 0 | AA191: 0 | AB191: 16.84451975 | AC191: 38.87196864 | AD191: 38.87196864 | AE191: 38.87196864 | AF191: 38.87196864
A192: LRKPCSL | B192: 100819 | C192: 1 | D192: 2400 | E192: 60 | F192: 1 | G192: 1 | H192: KW | I192: 38.87196864 | J192: 38.87196864 | K192: 38.87196864 | L192: 38.87196864 | M192: 38.87196864 | N192: 38.87196864 | O192: 38.87196864 | P192: 1.295732288 | Q192: 0 | R192: 0 | S192: 0 | T192: 0 | U192: 0 | V192: 0 | W192: 0 | X192: 0 | Y192: 0 | Z192: 0 | AA192: 0 | AB192: 18.14025203 | AC192: 38.87196864 | AD192: 38.87196864 | AE192: 38.87196864 | AF192: 38.87196864
A193: LRKPCSL | B193: 100919 | C193: 1 | D193: 2400 | E193: 60 | F193: 1 | G193: 1 | H193: KW | I193: 38.87196864 | J193: 38.87196864 | K193: 38.87196864 | L193: 38.87196864 | M193: 38.87196864 | N193: 38.87196864 | O193: 38.87196864 | P193: 1.943598432 | Q193: 0 | R193: 0 | S193: 0 | T193: 0 | U193: 0 | V193: 0 | W193: 0 | X193: 0 | Y193: 0 | Z193: 0 | AA193: 0 | AB193: 18.78811818 | AC193: 38.87196864 | AD193: 38.87196864 | AE193: 38.87196864 | AF193: 38.87196864
A194: LRKPCSL | B194: 101019 | C194: 1 | D194: 2400 | E194: 60 | F194: 1 | G194: 1 | H194: KW | I194: 38.87196864 | J194: 38.87196864 | K194: 38.87196864 | L194: 38.87196864 | M194: 38.87196864 | N194: 38.87196864 | O194: 38.87196864 | P194: 2.591464576 | Q194: 0 | R194: 0 | S194: 0 | T194: 0 | U194: 0 | V194: 0 | W194: 0 | X194: 0 | Y194: 0 | Z194: 0 | AA194: 0 | AB194: 20.08385047 | AC194: 38.87196864 | AD194: 38.87196864 | AE194: 38.87196864 | AF194: 38.87196864
A195: LRKPCSL | B195: 101119 | C195: 1 | D195: 2400 | E195: 60 | F195: 1 | G195: 1 | H195: KW | I195: 38.87196864 | J195: 38.87196864 | K195: 38.87196864 | L195: 38.87196864 | M195: 38.87196864 | N195: 38.87196864 | O195: 38.87196864 | P195: 3.23933072 | Q195: 0 | R195: 0 | S195: 0 | T195: 0 | U195: 0 | V195: 0 | W195: 0 | X195: 0 | Y195: 0 | Z195: 0 | AA195: 0 | AB195: 20.73171661 | AC195: 38.87196864 | AD195: 38.87196864 | AE195: 38.87196864 | AF195: 38.87196864
A196: LRKPCSL | B196: 101219 | C196: 1 | D196: 2400 | E196: 60 | F196: 1 | G196: 1 | H196: KW | I196: 38.87196864 | J196: 38.87196864 | K196: 38.87196864 | L196: 38.87196864 | M196: 38.87196864 | N196: 38.87196864 | O196: 38.87196864 | P196: 3.887196864 | Q196: 0 | R196: 0 | S196: 0 | T196: 0 | U196: 0 | V196: 0 | W196: 0 | X196: 0 | Y196: 0 | Z196: 0 | AA196: 0 | AB196: 22.0274489 | AC196: 38.87196864 | AD196: 38.87196864 | AE196: 38.87196864 | AF196: 38.87196864
A197: LRKPCSL | B197: 101319 | C197: 1 | D197: 2400 | E197: 60 | F197: 1 | G197: 1 | H197: KW | I197: 38.87196864 | J197: 38.87196864 | K197: 38.87196864 | L197: 38.87196864 | M197: 38.87196864 | N197: 38.87196864 | O197: 38.87196864 | P197: 4.535063008 | Q197: 0 | R197: 0 | S197: 0 | T197: 0 | U197: 0 | V197: 0 | W197: 0 | X197: 0 | Y197: 0 | Z197: 0 | AA197: 0 | AB197: 22.67531504 | AC197: 38.87196864 | AD197: 38.87196864 | AE197: 38.87196864 | AF197: 38.87196864
A198: LRKPCSL | B198: 101419 | C198: 1 | D198: 2400 | E198: 60 | F198: 1 | G198: 1 | H198: KW | I198: 38.87196864 | J198: 38.87196864 | K198: 38.87196864 | L198: 38.87196864 | M198: 38.87196864 | N198: 38.87196864 | O198: 38.87196864 | P198: 4.535063008 | Q198: 0 | R198: 0 | S198: 0 | T198: 0 | U198: 0 | V198: 0 | W198: 0 | X198: 0 | Y198: 0 | Z198: 0 | AA198: 0 | AB198: 23.97104733 | AC198: 38.87196864 | AD198: 38.87196864 | AE198: 38.87196864 | AF198: 38.87196864
A199: LRKPCSL | B199: 101519 | C199: 1 | D199: 2400 | E199: 60 | F199: 1 | G199: 1 | H199: KW | I199: 38.87196864 | J199: 38.87196864 | K199: 38.87196864 | L199: 38.87196864 | M199: 38.87196864 | N199: 38.87196864 | O199: 38.87196864 | P199: 5.182929152 | Q199: 0 | R199: 0 | S199: 0 | T199: 0 | U199: 0 | V199: 0 | W199: 0 | X199: 0 | Y199: 0 | Z199: 0 | AA199: 0 | AB199: 24.61891347 | AC199: 38.87196864 | AD199: 38.87196864 | AE199: 38.87196864 | AF199: 38.87196864
A200: LRKPCSL | B200: 101619 | C200: 1 | D200: 2400 | E200: 60 | F200: 1 | G200: 1 | H200: KW | I200: 38.87196864 | J200: 38.87196864 | K200: 38.87196864 | L200: 38.87196864 | M200: 38.87196864 | N200: 38.87196864 | O200: 38.87196864 | P200: 5.830795296 | Q200: 0 | R200: 0 | S200: 0 | T200: 0 | U200: 0 | V200: 0 | W200: 0 | X200: 0 | Y200: 0 | Z200: 0 | AA200: 0 | AB200: 25.26677962 | AC200: 38.87196864 | AD200: 38.87196864 | AE200: 38.87196864 | AF200: 38.87196864
... 167 more rows

Sheet Expanded kW
A1: Month | B1: Holiday? | C1: On or Off Peak | D1: Date/Time | E1: Class | F1: Demand | G1: Monthly Weight | H1: Expanded | J1: Load shape in local time.
A2: =MONTH(D2) -> 4 | B2: =IF(ISNA(VLOOKUP(DATE(YEAR(D2),MONTH(D2),DAY(D2)),Holidays,1,FALSE)),FALSE,TRUE) -> FALSE | C2: =IF(OR(HOUR(D2)<PkStart,HOUR(D2)>OPkStart-1,WEEKDAY(D2,2)>5,B2)=TRUE,"OFF","ON") -> OFF | D2: =TYBegin -> 2019-04-01 | E2: ='LR 8760 Loads'!A2 -> LRKPCSL | F2: 38.87196732 | G2: =IF(SUMIF($A$2:$A$8785,A2,$F$2:$F$8785)=0,0,F2/SUMIF($A$2:$A$8785,A2,$F$2:$F$8785)) -> 0.003405028083 | H2: =G2*SUMIF('Manual Inputs'!$B$11:$B$22,'Expanded kW'!A2,'Manual Inputs'!$C$11:$C$22) -> 2148.568901
A3: 4 | B3: FALSE | C3: OFF | D3: =+D2+1/24 -> 2019-04-01T01:00:00 | E3: =+E2 -> LRKPCSL | F3: 38.87196732 | G3: 0.003405028083 | H3: =G3*SUMIF('Manual Inputs'!$B$11:$B$22,'Expanded kW'!A3,'Manual Inputs'!$C$11:$C$22) -> 2148.568901
A4: 4 | B4: FALSE | C4: OFF | D4: =+D3+1/24 -> 2019-04-01T02:00:00 | E4: =+E3 -> LRKPCSL | F4: 38.87196732 | G4: 0.003405028083 | H4: =G4*SUMIF('Manual Inputs'!$B$11:$B$22,'Expanded kW'!A4,'Manual Inputs'!$C$11:$C$22) -> 2148.568901
A5: 4 | B5: FALSE | C5: OFF | D5: 2019-04-01T03:00:00 | E5: LRKPCSL | F5: 38.87196732 | G5: 0.003405028083 | H5: =G5*SUMIF('Manual Inputs'!$B$11:$B$22,'Expanded kW'!A5,'Manual Inputs'!$C$11:$C$22) -> 2148.568901
A6: 4 | B6: FALSE | C6: OFF | D6: 2019-04-01T04:00:00 | E6: LRKPCSL | F6: 38.87196732 | G6: 0.003405028083 | H6: =G6*SUMIF('Manual Inputs'!$B$11:$B$22,'Expanded kW'!A6,'Manual Inputs'!$C$11:$C$22) -> 2148.568901
A7: 4 | B7: FALSE | C7: OFF | D7: 2019-04-01T05:00:00 | E7: LRKPCSL | F7: 38.87196732 | G7: 0.003405028083 | H7: =G7*SUMIF('Manual Inputs'!$B$11:$B$22,'Expanded kW'!A7,'Manual Inputs'!$C$11:$C$22) -> 2148.568901
A8: 4 | B8: FALSE | C8: OFF | D8: 2019-04-01T06:00:00 | E8: LRKPCSL | F8: 29.15397644 | G8: 0.002553771145 | H8: =G8*SUMIF('Manual Inputs'!$B$11:$B$22,'Expanded kW'!A8,'Manual Inputs'!$C$11:$C$22) -> 1611.426728
A9: 4 | B9: FALSE | C9: ON | D9: 2019-04-01T07:00:00 | E9: LRKPCSL | F9: 0 | G9: 0 | H9: =G9*SUMIF('Manual Inputs'!$B$11:$B$22,'Expanded kW'!A9,'Manual Inputs'!$C$11:$C$22) -> 0
A10: 4 | B10: FALSE | C10: ON | D10: 2019-04-01T08:00:00 | E10: LRKPCSL | F10: 0 | G10: 0 | H10: =G10*SUMIF('Manual Inputs'!$B$11:$B$22,'Expanded kW'!A10,'Manual Inputs'!$C$11:$C$22) -> 0
A11: 4 | B11: FALSE | C11: ON | D11: 2019-04-01T09:00:00 | E11: LRKPCSL | F11: 0 | G11: 0 | H11: =G11*SUMIF('Manual Inputs'!$B$11:$B$22,'Expanded kW'!A11,'Manual Inputs'!$C$11:$C$22) -> 0
A12: 4 | B12: FALSE | C12: ON | D12: 2019-04-01T10:00:00 | E12: LRKPCSL | F12: 0 | G12: 0 | H12: =G12*SUMIF('Manual Inputs'!$B$11:$B$22,'Expanded kW'!A12,'Manual Inputs'!$C$11:$C$22) -> 0
A13: 4 | B13: FALSE | C13: ON | D13: 2019-04-01T11:00:00 | E13: LRKPCSL | F13: 0 | G13: 0 | H13: =G13*SUMIF('Manual Inputs'!$B$11:$B$22,'Expanded kW'!A13,'Manual Inputs'!$C$11:$C$22) -> 0
A14: 4 | B14: FALSE | C14: ON | D14: 2019-04-01T12:00:00 | E14: LRKPCSL | F14: 0 | G14: 0 | H14: =G14*SUMIF('Manual Inputs'!$B$11:$B$22,'Expanded kW'!A14,'Manual Inputs'!$C$11:$C$22) -> 0
A15: 4 | B15: FALSE | C15: ON | D15: 2019-04-01T13:00:00 | E15: LRKPCSL | F15: 0 | G15: 0 | H15: =G15*SUMIF('Manual Inputs'!$B$11:$B$22,'Expanded kW'!A15,'Manual Inputs'!$C$11:$C$22) -> 0
A16: 4 | B16: FALSE | C16: ON | D16: 2019-04-01T14:00:00 | E16: LRKPCSL | F16: 0 | G16: 0 | H16: =G16*SUMIF('Manual Inputs'!$B$11:$B$22,'Expanded kW'!A16,'Manual Inputs'!$C$11:$C$22) -> 0
A17: 4 | B17: FALSE | C17: ON | D17: 2019-04-01T15:00:00 | E17: LRKPCSL | F17: 0 | G17: 0 | H17: =G17*SUMIF('Manual Inputs'!$B$11:$B$22,'Expanded kW'!A17,'Manual Inputs'!$C$11:$C$22) -> 0
A18: 4 | B18: FALSE | C18: ON | D18: 2019-04-01T16:00:00 | E18: LRKPCSL | F18: 0 | G18: 0 | H18: =G18*SUMIF('Manual Inputs'!$B$11:$B$22,'Expanded kW'!A18,'Manual Inputs'!$C$11:$C$22) -> 0
A19: 4 | B19: FALSE | C19: ON | D19: 2019-04-01T17:00:00 | E19: LRKPCSL | F19: 0 | G19: 0 | H19: =G19*SUMIF('Manual Inputs'!$B$11:$B$22,'Expanded kW'!A19,'Manual Inputs'!$C$11:$C$22) -> 0
A20: 4 | B20: FALSE | C20: ON | D20: 2019-04-01T18:00:00 | E20: LRKPCSL | F20: 0 | G20: 0 | H20: =G20*SUMIF('Manual Inputs'!$B$11:$B$22,'Expanded kW'!A20,'Manual Inputs'!$C$11:$C$22) -> 0
A21: 4 | B21: FALSE | C21: ON | D21: 2019-04-01T19:00:00 | E21: LRKPCSL | F21: 0 | G21: 0 | H21: =G21*SUMIF('Manual Inputs'!$B$11:$B$22,'Expanded kW'!A21,'Manual Inputs'!$C$11:$C$22) -> 0
A22: 4 | B22: FALSE | C22: ON | D22: 2019-04-01T20:00:00 | E22: LRKPCSL | F22: 23.97104645 | G22: 0.002099767312 | H22: =G22*SUMIF('Manual Inputs'!$B$11:$B$22,'Expanded kW'!A22,'Manual Inputs'!$C$11:$C$22) -> 1324.950819
A23: 4 | B23: FALSE | C23: OFF | D23: 2019-04-01T21:00:00 | E23: LRKPCSL | F23: 38.87196732 | G23: 0.003405028083 | H23: =G23*SUMIF('Manual Inputs'!$B$11:$B$22,'Expanded kW'!A23,'Manual Inputs'!$C$11:$C$22) -> 2148.568901
A24: 4 | B24: FALSE | C24: OFF | D24: 2019-04-01T22:00:00 | E24: LRKPCSL | F24: 38.87196732 | G24: 0.003405028083 | H24: =G24*SUMIF('Manual Inputs'!$B$11:$B$22,'Expanded kW'!A24,'Manual Inputs'!$C$11:$C$22) -> 2148.568901
A25: 4 | B25: FALSE | C25: OFF | D25: 2019-04-01T23:00:00 | E25: LRKPCSL | F25: 38.87196732 | G25: 0.003405028083 | H25: =G25*SUMIF('Manual Inputs'!$B$11:$B$22,'Expanded kW'!A25,'Manual Inputs'!$C$11:$C$22) -> 2148.568901
A26: 4 | B26: FALSE | C26: OFF | D26: 2019-04-02 | E26: LRKPCSL | F26: 38.87196732 | G26: 0.003405028083 | H26: =G26*SUMIF('Manual Inputs'!$B$11:$B$22,'Expanded kW'!A26,'Manual Inputs'!$C$11:$C$22) -> 2148.568901
A27: 4 | B27: FALSE | C27: OFF | D27: 2019-04-02T01:00:00 | E27: LRKPCSL | F27: 38.87196732 | G27: 0.003405028083 | H27: =G27*SUMIF('Manual Inputs'!$B$11:$B$22,'Expanded kW'!A27,'Manual Inputs'!$C$11:$C$22) -> 2148.568901
A28: 4 | B28: FALSE | C28: OFF | D28: 2019-04-02T02:00:00 | E28: LRKPCSL | F28: 38.87196732 | G28: 0.003405028083 | H28: =G28*SUMIF('Manual Inputs'!$B$11:$B$22,'Expanded kW'!A28,'Manual Inputs'!$C$11:$C$22) -> 2148.568901
A29: 4 | B29: FALSE | C29: OFF | D29: 2019-04-02T03:00:00 | E29: LRKPCSL | F29: 38.87196732 | G29: 0.003405028083 | H29: =G29*SUMIF('Manual Inputs'!$B$11:$B$22,'Expanded kW'!A29,'Manual Inputs'!$C$11:$C$22) -> 2148.568901
A30: 4 | B30: FALSE | C30: OFF | D30: 2019-04-02T04:00:00 | E30: LRKPCSL | F30: 38.87196732 | G30: 0.003405028083 | H30: =G30*SUMIF('Manual Inputs'!$B$11:$B$22,'Expanded kW'!A30,'Manual Inputs'!$C$11:$C$22) -> 2148.568901
A31: 4 | B31: FALSE | C31: OFF | D31: 2019-04-02T05:00:00 | E31: LRKPCSL | F31: 38.87196732 | G31: 0.003405028083 | H31: =G31*SUMIF('Manual Inputs'!$B$11:$B$22,'Expanded kW'!A31,'Manual Inputs'!$C$11:$C$22) -> 2148.568901
A32: 4 | B32: FALSE | C32: OFF | D32: 2019-04-02T06:00:00 | E32: LRKPCSL | F32: 27.85824394 | G32: 0.002440270187 | H32: =G32*SUMIF('Manual Inputs'!$B$11:$B$22,'Expanded kW'!A32,'Manual Inputs'!$C$11:$C$22) -> 1539.807751
A33: 4 | B33: FALSE | C33: ON | D33: 2019-04-02T07:00:00 | E33: LRKPCSL | F33: 0 | G33: 0 | H33: =G33*SUMIF('Manual Inputs'!$B$11:$B$22,'Expanded kW'!A33,'Manual Inputs'!$C$11:$C$22) -> 0
A34: 4 | B34: FALSE | C34: ON | D34: 2019-04-02T08:00:00 | E34: LRKPCSL | F34: 0 | G34: 0 | H34: =G34*SUMIF('Manual Inputs'!$B$11:$B$22,'Expanded kW'!A34,'Manual Inputs'!$C$11:$C$22) -> 0
A35: 4 | B35: FALSE | C35: ON | D35: 2019-04-02T09:00:00 | E35: LRKPCSL | F35: 0 | G35: 0 | H35: =G35*SUMIF('Manual Inputs'!$B$11:$B$22,'Expanded kW'!A35,'Manual Inputs'!$C$11:$C$22) -> 0
A36: 4 | B36: FALSE | C36: ON | D36: 2019-04-02T10:00:00 | E36: LRKPCSL | F36: 0 | G36: 0 | H36: =G36*SUMIF('Manual Inputs'!$B$11:$B$22,'Expanded kW'!A36,'Manual Inputs'!$C$11:$C$22) -> 0
A37: 4 | B37: FALSE | C37: ON | D37: 2019-04-02T11:00:00 | E37: LRKPCSL | F37: 0 | G37: 0 | H37: =G37*SUMIF('Manual Inputs'!$B$11:$B$22,'Expanded kW'!A37,'Manual Inputs'!$C$11:$C$22) -> 0
A38: 4 | B38: FALSE | C38: ON | D38: 2019-04-02T12:00:00 | E38: LRKPCSL | F38: 0 | G38: 0 | H38: =G38*SUMIF('Manual Inputs'!$B$11:$B$22,'Expanded kW'!A38,'Manual Inputs'!$C$11:$C$22) -> 0
A39: 4 | B39: FALSE | C39: ON | D39: 2019-04-02T13:00:00 | E39: LRKPCSL | F39: 0 | G39: 0 | H39: =G39*SUMIF('Manual Inputs'!$B$11:$B$22,'Expanded kW'!A39,'Manual Inputs'!$C$11:$C$22) -> 0
A40: 4 | B40: FALSE | C40: ON | D40: 2019-04-02T14:00:00 | E40: LRKPCSL | F40: 0 | G40: 0 | H40: =G40*SUMIF('Manual Inputs'!$B$11:$B$22,'Expanded kW'!A40,'Manual Inputs'!$C$11:$C$22) -> 0
A41: 4 | B41: FALSE | C41: ON | D41: 2019-04-02T15:00:00 | E41: LRKPCSL | F41: 0 | G41: 0 | H41: =G41*SUMIF('Manual Inputs'!$B$11:$B$22,'Expanded kW'!A41,'Manual Inputs'!$C$11:$C$22) -> 0
A42: 4 | B42: FALSE | C42: ON | D42: 2019-04-02T16:00:00 | E42: LRKPCSL | F42: 0 | G42: 0 | H42: =G42*SUMIF('Manual Inputs'!$B$11:$B$22,'Expanded kW'!A42,'Manual Inputs'!$C$11:$C$22) -> 0
A43: 4 | B43: FALSE | C43: ON | D43: 2019-04-02T17:00:00 | E43: LRKPCSL | F43: 0 | G43: 0 | H43: =G43*SUMIF('Manual Inputs'!$B$11:$B$22,'Expanded kW'!A43,'Manual Inputs'!$C$11:$C$22) -> 0
A44: 4 | B44: FALSE | C44: ON | D44: 2019-04-02T18:00:00 | E44: LRKPCSL | F44: 0 | G44: 0 | H44: =G44*SUMIF('Manual Inputs'!$B$11:$B$22,'Expanded kW'!A44,'Manual Inputs'!$C$11:$C$22) -> 0
A45: 4 | B45: FALSE | C45: ON | D45: 2019-04-02T19:00:00 | E45: LRKPCSL | F45: 0 | G45: 0 | H45: =G45*SUMIF('Manual Inputs'!$B$11:$B$22,'Expanded kW'!A45,'Manual Inputs'!$C$11:$C$22) -> 0
A46: 4 | B46: FALSE | C46: ON | D46: 2019-04-02T20:00:00 | E46: LRKPCSL | F46: 23.32318115 | G46: 0.002043016916 | H46: =G46*SUMIF('Manual Inputs'!$B$11:$B$22,'Expanded kW'!A46,'Manual Inputs'!$C$11:$C$22) -> 1289.141383
A47: 4 | B47: FALSE | C47: OFF | D47: 2019-04-02T21:00:00 | E47: LRKPCSL | F47: 38.87196732 | G47: 0.003405028083 | H47: =G47*SUMIF('Manual Inputs'!$B$11:$B$22,'Expanded kW'!A47,'Manual Inputs'!$C$11:$C$22) -> 2148.568901
A48: 4 | B48: FALSE | C48: OFF | D48: 2019-04-02T22:00:00 | E48: LRKPCSL | F48: 38.87196732 | G48: 0.003405028083 | H48: =G48*SUMIF('Manual Inputs'!$B$11:$B$22,'Expanded kW'!A48,'Manual Inputs'!$C$11:$C$22) -> 2148.568901
A49: 4 | B49: FALSE | C49: OFF | D49: 2019-04-02T23:00:00 | E49: LRKPCSL | F49: 38.87196732 | G49: 0.003405028083 | H49: =G49*SUMIF('Manual Inputs'!$B$11:$B$22,'Expanded kW'!A49,'Manual Inputs'!$C$11:$C$22) -> 2148.568901
A50: 4 | B50: FALSE | C50: OFF | D50: 2019-04-03 | E50: LRKPCSL | F50: 38.87196732 | G50: 0.003405028083 | H50: =G50*SUMIF('Manual Inputs'!$B$11:$B$22,'Expanded kW'!A50,'Manual Inputs'!$C$11:$C$22) -> 2148.568901
A51: 4 | B51: FALSE | C51: OFF | D51: 2019-04-03T01:00:00 | E51: LRKPCSL | F51: 38.87196732 | G51: 0.003405028083 | H51: =G51*SUMIF('Manual Inputs'!$B$11:$B$22,'Expanded kW'!A51,'Manual Inputs'!$C$11:$C$22) -> 2148.568901
A52: 4 | B52: FALSE | C52: OFF | D52: 2019-04-03T02:00:00 | E52: LRKPCSL | F52: 38.87196732 | G52: 0.003405028083 | H52: =G52*SUMIF('Manual Inputs'!$B$11:$B$22,'Expanded kW'!A52,'Manual Inputs'!$C$11:$C$22) -> 2148.568901
A53: 4 | B53: FALSE | C53: OFF | D53: 2019-04-03T03:00:00 | E53: LRKPCSL | F53: 38.87196732 | G53: 0.003405028083 | H53: =G53*SUMIF('Manual Inputs'!$B$11:$B$22,'Expanded kW'!A53,'Manual Inputs'!$C$11:$C$22) -> 2148.568901
A54: 4 | B54: FALSE | C54: OFF | D54: 2019-04-03T04:00:00 | E54: LRKPCSL | F54: 38.87196732 | G54: 0.003405028083 | H54: =G54*SUMIF('Manual Inputs'!$B$11:$B$22,'Expanded kW'!A54,'Manual Inputs'!$C$11:$C$22) -> 2148.568901
A55: 4 | B55: FALSE | C55: OFF | D55: 2019-04-03T05:00:00 | E55: LRKPCSL | F55: 38.87196732 | G55: 0.003405028083 | H55: =G55*SUMIF('Manual Inputs'!$B$11:$B$22,'Expanded kW'!A55,'Manual Inputs'!$C$11:$C$22) -> 2148.568901
A56: 4 | B56: FALSE | C56: OFF | D56: 2019-04-03T06:00:00 | E56: LRKPCSL | F56: 27.21037865 | G56: 0.002383519791 | H56: =G56*SUMIF('Manual Inputs'!$B$11:$B$22,'Expanded kW'!A56,'Manual Inputs'!$C$11:$C$22) -> 1503.998315
A57: 4 | B57: FALSE | C57: ON | D57: 2019-04-03T07:00:00 | E57: LRKPCSL | F57: 0 | G57: 0 | H57: =G57*SUMIF('Manual Inputs'!$B$11:$B$22,'Expanded kW'!A57,'Manual Inputs'!$C$11:$C$22) -> 0
A58: 4 | B58: FALSE | C58: ON | D58: 2019-04-03T08:00:00 | E58: LRKPCSL | F58: 0 | G58: 0 | H58: =G58*SUMIF('Manual Inputs'!$B$11:$B$22,'Expanded kW'!A58,'Manual Inputs'!$C$11:$C$22) -> 0
A59: 4 | B59: FALSE | C59: ON | D59: 2019-04-03T09:00:00 | E59: LRKPCSL | F59: 0 | G59: 0 | H59: =G59*SUMIF('Manual Inputs'!$B$11:$B$22,'Expanded kW'!A59,'Manual Inputs'!$C$11:$C$22) -> 0
A60: 4 | B60: FALSE | C60: ON | D60: 2019-04-03T10:00:00 | E60: LRKPCSL | F60: 0 | G60: 0 | H60: =G60*SUMIF('Manual Inputs'!$B$11:$B$22,'Expanded kW'!A60,'Manual Inputs'!$C$11:$C$22) -> 0
A61: 4 | B61: FALSE | C61: ON | D61: 2019-04-03T11:00:00 | E61: LRKPCSL | F61: 0 | G61: 0 | H61: =G61*SUMIF('Manual Inputs'!$B$11:$B$22,'Expanded kW'!A61,'Manual Inputs'!$C$11:$C$22) -> 0
A62: 4 | B62: FALSE | C62: ON | D62: 2019-04-03T12:00:00 | E62: LRKPCSL | F62: 0 | G62: 0 | H62: =G62*SUMIF('Manual Inputs'!$B$11:$B$22,'Expanded kW'!A62,'Manual Inputs'!$C$11:$C$22) -> 0
A63: 4 | B63: FALSE | C63: ON | D63: 2019-04-03T13:00:00 | E63: LRKPCSL | F63: 0 | G63: 0 | H63: =G63*SUMIF('Manual Inputs'!$B$11:$B$22,'Expanded kW'!A63,'Manual Inputs'!$C$11:$C$22) -> 0
A64: 4 | B64: FALSE | C64: ON | D64: 2019-04-03T14:00:00 | E64: LRKPCSL | F64: 0 | G64: 0 | H64: =G64*SUMIF('Manual Inputs'!$B$11:$B$22,'Expanded kW'!A64,'Manual Inputs'!$C$11:$C$22) -> 0
A65: 4 | B65: FALSE | C65: ON | D65: 2019-04-03T15:00:00 | E65: LRKPCSL | F65: 0 | G65: 0 | H65: =G65*SUMIF('Manual Inputs'!$B$11:$B$22,'Expanded kW'!A65,'Manual Inputs'!$C$11:$C$22) -> 0
A66: =MONTH(D66) -> 4 | B66: =IF(ISNA(VLOOKUP(DATE(YEAR(D66),MONTH(D66),DAY(D66)),Holidays,1,FALSE)),FALSE,TRUE) -> FALSE | C66: =IF(OR(HOUR(D66)<PkStart,HOUR(D66)>OPkStart-1,WEEKDAY(D66,2)>5,B66)=TRUE,"OFF","ON") -> ON | D66: 2019-04-03T16:00:00 | E66: LRKPCSL | F66: 0 | G66: =IF(SUMIF($A$2:$A$8785,A66,$F$2:$F$8785)=0,0,F66/SUMIF($A$2:$A$8785,A66,$F$2:$F$8785)) -> 0 | H66: =G66*SUMIF('Manual Inputs'!$B$11:$B$22,'Expanded kW'!A66,'Manual Inputs'!$C$11:$C$22) -> 0
A67: 4 | B67: FALSE | C67: ON | D67: 2019-04-03T17:00:00 | E67: LRKPCSL | F67: 0 | G67: 0 | H67: =G67*SUMIF('Manual Inputs'!$B$11:$B$22,'Expanded kW'!A67,'Manual Inputs'!$C$11:$C$22) -> 0
A68: 4 | B68: FALSE | C68: ON | D68: =+D67+1/24 -> 2019-04-03T18:00:00 | E68: =+E67 -> LRKPCSL | F68: 0 | G68: 0 | H68: =G68*SUMIF('Manual Inputs'!$B$11:$B$22,'Expanded kW'!A68,'Manual Inputs'!$C$11:$C$22) -> 0
A69: 4 | B69: FALSE | C69: ON | D69: 2019-04-03T19:00:00 | E69: LRKPCSL | F69: 0 | G69: 0 | H69: =G69*SUMIF('Manual Inputs'!$B$11:$B$22,'Expanded kW'!A69,'Manual Inputs'!$C$11:$C$22) -> 0
A70: 4 | B70: FALSE | C70: ON | D70: 2019-04-03T20:00:00 | E70: LRKPCSL | F70: 22.67531586 | G70: 0.001986266521 | H70: =G70*SUMIF('Manual Inputs'!$B$11:$B$22,'Expanded kW'!A70,'Manual Inputs'!$C$11:$C$22) -> 1253.331947
A71: 4 | B71: FALSE | C71: OFF | D71: 2019-04-03T21:00:00 | E71: LRKPCSL | F71: 38.87196732 | G71: 0.003405028083 | H71: =G71*SUMIF('Manual Inputs'!$B$11:$B$22,'Expanded kW'!A71,'Manual Inputs'!$C$11:$C$22) -> 2148.568901
A72: 4 | B72: FALSE | C72: OFF | D72: 2019-04-03T22:00:00 | E72: LRKPCSL | F72: 38.87196732 | G72: 0.003405028083 | H72: =G72*SUMIF('Manual Inputs'!$B$11:$B$22,'Expanded kW'!A72,'Manual Inputs'!$C$11:$C$22) -> 2148.568901
A73: 4 | B73: FALSE | C73: OFF | D73: 2019-04-03T23:00:00 | E73: LRKPCSL | F73: 38.87196732 | G73: 0.003405028083 | H73: =G73*SUMIF('Manual Inputs'!$B$11:$B$22,'Expanded kW'!A73,'Manual Inputs'!$C$11:$C$22) -> 2148.568901
A74: 4 | B74: FALSE | C74: OFF | D74: 2019-04-04 | E74: LRKPCSL | F74: 38.87196732 | G74: 0.003405028083 | H74: =G74*SUMIF('Manual Inputs'!$B$11:$B$22,'Expanded kW'!A74,'Manual Inputs'!$C$11:$C$22) -> 2148.568901
A75: 4 | B75: FALSE | C75: OFF | D75: 2019-04-04T01:00:00 | E75: LRKPCSL | F75: 38.87196732 | G75: 0.003405028083 | H75: =G75*SUMIF('Manual Inputs'!$B$11:$B$22,'Expanded kW'!A75,'Manual Inputs'!$C$11:$C$22) -> 2148.568901
A76: 4 | B76: FALSE | C76: OFF | D76: 2019-04-04T02:00:00 | E76: LRKPCSL | F76: 38.87196732 | G76: 0.003405028083 | H76: =G76*SUMIF('Manual Inputs'!$B$11:$B$22,'Expanded kW'!A76,'Manual Inputs'!$C$11:$C$22) -> 2148.568901
A77: 4 | B77: FALSE | C77: OFF | D77: 2019-04-04T03:00:00 | E77: LRKPCSL | F77: 38.87196732 | G77: 0.003405028083 | H77: =G77*SUMIF('Manual Inputs'!$B$11:$B$22,'Expanded kW'!A77,'Manual Inputs'!$C$11:$C$22) -> 2148.568901
A78: 4 | B78: FALSE | C78: OFF | D78: 2019-04-04T04:00:00 | E78: LRKPCSL | F78: 38.87196732 | G78: 0.003405028083 | H78: =G78*SUMIF('Manual Inputs'!$B$11:$B$22,'Expanded kW'!A78,'Manual Inputs'!$C$11:$C$22) -> 2148.568901
A79: 4 | B79: FALSE | C79: OFF | D79: 2019-04-04T05:00:00 | E79: LRKPCSL | F79: 38.87196732 | G79: 0.003405028083 | H79: =G79*SUMIF('Manual Inputs'!$B$11:$B$22,'Expanded kW'!A79,'Manual Inputs'!$C$11:$C$22) -> 2148.568901
A80: 4 | B80: FALSE | C80: OFF | D80: 2019-04-04T06:00:00 | E80: LRKPCSL | F80: 25.91464615 | G80: 0.002270018833 | H80: =G80*SUMIF('Manual Inputs'!$B$11:$B$22,'Expanded kW'!A80,'Manual Inputs'!$C$11:$C$22) -> 1432.379338
A81: 4 | B81: FALSE | C81: ON | D81: 2019-04-04T07:00:00 | E81: LRKPCSL | F81: 0 | G81: 0 | H81: =G81*SUMIF('Manual Inputs'!$B$11:$B$22,'Expanded kW'!A81,'Manual Inputs'!$C$11:$C$22) -> 0
A82: 4 | B82: FALSE | C82: ON | D82: 2019-04-04T08:00:00 | E82: LRKPCSL | F82: 0 | G82: 0 | H82: =G82*SUMIF('Manual Inputs'!$B$11:$B$22,'Expanded kW'!A82,'Manual Inputs'!$C$11:$C$22) -> 0
A83: 4 | B83: FALSE | C83: ON | D83: 2019-04-04T09:00:00 | E83: LRKPCSL | F83: 0 | G83: 0 | H83: =G83*SUMIF('Manual Inputs'!$B$11:$B$22,'Expanded kW'!A83,'Manual Inputs'!$C$11:$C$22) -> 0
A84: 4 | B84: FALSE | C84: ON | D84: 2019-04-04T10:00:00 | E84: LRKPCSL | F84: 0 | G84: 0 | H84: =G84*SUMIF('Manual Inputs'!$B$11:$B$22,'Expanded kW'!A84,'Manual Inputs'!$C$11:$C$22) -> 0
A85: 4 | B85: FALSE | C85: ON | D85: 2019-04-04T11:00:00 | E85: LRKPCSL | F85: 0 | G85: 0 | H85: =G85*SUMIF('Manual Inputs'!$B$11:$B$22,'Expanded kW'!A85,'Manual Inputs'!$C$11:$C$22) -> 0
A86: 4 | B86: FALSE | C86: ON | D86: 2019-04-04T12:00:00 | E86: LRKPCSL | F86: 0 | G86: 0 | H86: =G86*SUMIF('Manual Inputs'!$B$11:$B$22,'Expanded kW'!A86,'Manual Inputs'!$C$11:$C$22) -> 0
A87: 4 | B87: FALSE | C87: ON | D87: 2019-04-04T13:00:00 | E87: LRKPCSL | F87: 0 | G87: 0 | H87: =G87*SUMIF('Manual Inputs'!$B$11:$B$22,'Expanded kW'!A87,'Manual Inputs'!$C$11:$C$22) -> 0
A88: 4 | B88: FALSE | C88: ON | D88: 2019-04-04T14:00:00 | E88: LRKPCSL | F88: 0 | G88: 0 | H88: =G88*SUMIF('Manual Inputs'!$B$11:$B$22,'Expanded kW'!A88,'Manual Inputs'!$C$11:$C$22) -> 0
A89: 4 | B89: FALSE | C89: ON | D89: 2019-04-04T15:00:00 | E89: LRKPCSL | F89: 0 | G89: 0 | H89: =G89*SUMIF('Manual Inputs'!$B$11:$B$22,'Expanded kW'!A89,'Manual Inputs'!$C$11:$C$22) -> 0
A90: 4 | B90: FALSE | C90: ON | D90: 2019-04-04T16:00:00 | E90: LRKPCSL | F90: 0 | G90: 0 | H90: =G90*SUMIF('Manual Inputs'!$B$11:$B$22,'Expanded kW'!A90,'Manual Inputs'!$C$11:$C$22) -> 0
A91: 4 | B91: FALSE | C91: ON | D91: 2019-04-04T17:00:00 | E91: LRKPCSL | F91: 0 | G91: 0 | H91: =G91*SUMIF('Manual Inputs'!$B$11:$B$22,'Expanded kW'!A91,'Manual Inputs'!$C$11:$C$22) -> 0
A92: 4 | B92: FALSE | C92: ON | D92: 2019-04-04T18:00:00 | E92: LRKPCSL | F92: 0 | G92: 0 | H92: =G92*SUMIF('Manual Inputs'!$B$11:$B$22,'Expanded kW'!A92,'Manual Inputs'!$C$11:$C$22) -> 0
A93: 4 | B93: FALSE | C93: ON | D93: 2019-04-04T19:00:00 | E93: LRKPCSL | F93: 0 | G93: 0 | H93: =G93*SUMIF('Manual Inputs'!$B$11:$B$22,'Expanded kW'!A93,'Manual Inputs'!$C$11:$C$22) -> 0
A94: 4 | B94: FALSE | C94: ON | D94: 2019-04-04T20:00:00 | E94: LRKPCSL | F94: 22.02744865 | G94: 0.001929515958 | H94: =G94*SUMIF('Manual Inputs'!$B$11:$B$22,'Expanded kW'!A94,'Manual Inputs'!$C$11:$C$22) -> 1217.522405
A95: 4 | B95: FALSE | C95: OFF | D95: 2019-04-04T21:00:00 | E95: LRKPCSL | F95: 38.87196732 | G95: 0.003405028083 | H95: =G95*SUMIF('Manual Inputs'!$B$11:$B$22,'Expanded kW'!A95,'Manual Inputs'!$C$11:$C$22) -> 2148.568901
A96: 4 | B96: FALSE | C96: OFF | D96: 2019-04-04T22:00:00 | E96: LRKPCSL | F96: 38.87196732 | G96: 0.003405028083 | H96: =G96*SUMIF('Manual Inputs'!$B$11:$B$22,'Expanded kW'!A96,'Manual Inputs'!$C$11:$C$22) -> 2148.568901
A97: 4 | B97: FALSE | C97: OFF | D97: 2019-04-04T23:00:00 | E97: LRKPCSL | F97: 38.87196732 | G97: 0.003405028083 | H97: =G97*SUMIF('Manual Inputs'!$B$11:$B$22,'Expanded kW'!A97,'Manual Inputs'!$C$11:$C$22) -> 2148.568901
A98: 4 | B98: FALSE | C98: OFF | D98: 2019-04-05 | E98: LRKPCSL | F98: 38.87196732 | G98: 0.003405028083 | H98: =G98*SUMIF('Manual Inputs'!$B$11:$B$22,'Expanded kW'!A98,'Manual Inputs'!$C$11:$C$22) -> 2148.568901
A99: 4 | B99: FALSE | C99: OFF | D99: 2019-04-05T01:00:00 | E99: LRKPCSL | F99: 38.87196732 | G99: 0.003405028083 | H99: =G99*SUMIF('Manual Inputs'!$B$11:$B$22,'Expanded kW'!A99,'Manual Inputs'!$C$11:$C$22) -> 2148.568901
A100: 4 | B100: FALSE | C100: OFF | D100: 2019-04-05T02:00:00 | E100: LRKPCSL | F100: 38.87196732 | G100: 0.003405028083 | H100: =G100*SUMIF('Manual Inputs'!$B$11:$B$22,'Expanded kW'!A100,'Manual Inputs'!$C$11:$C$22) -> 2148.568901
A101: 4 | B101: FALSE | C101: OFF | D101: 2019-04-05T03:00:00 | E101: LRKPCSL | F101: 38.87196732 | G101: 0.003405028083 | H101: =G101*SUMIF('Manual Inputs'!$B$11:$B$22,'Expanded kW'!A101,'Manual Inputs'!$C$11:$C$22) -> 2148.568901
A102: 4 | B102: FALSE | C102: OFF | D102: 2019-04-05T04:00:00 | E102: LRKPCSL | F102: 38.87196732 | G102: 0.003405028083 | H102: =G102*SUMIF('Manual Inputs'!$B$11:$B$22,'Expanded kW'!A102,'Manual Inputs'!$C$11:$C$22) -> 2148.568901
A103: 4 | B103: FALSE | C103: OFF | D103: 2019-04-05T05:00:00 | E103: LRKPCSL | F103: 38.87196732 | G103: 0.003405028083 | H103: =G103*SUMIF('Manual Inputs'!$B$11:$B$22,'Expanded kW'!A103,'Manual Inputs'!$C$11:$C$22) -> 2148.568901
A104: 4 | B104: FALSE | C104: OFF | D104: 2019-04-05T06:00:00 | E104: LRKPCSL | F104: 25.26677895 | G104: 0.00221326827 | H104: =G104*SUMIF('Manual Inputs'!$B$11:$B$22,'Expanded kW'!A104,'Manual Inputs'!$C$11:$C$22) -> 1396.569796
A105: 4 | B105: FALSE | C105: ON | D105: 2019-04-05T07:00:00 | E105: LRKPCSL | F105: 0 | G105: 0 | H105: =G105*SUMIF('Manual Inputs'!$B$11:$B$22,'Expanded kW'!A105,'Manual Inputs'!$C$11:$C$22) -> 0
A106: 4 | B106: FALSE | C106: ON | D106: 2019-04-05T08:00:00 | E106: LRKPCSL | F106: 0 | G106: 0 | H106: =G106*SUMIF('Manual Inputs'!$B$11:$B$22,'Expanded kW'!A106,'Manual Inputs'!$C$11:$C$22) -> 0
A107: 4 | B107: FALSE | C107: ON | D107: 2019-04-05T09:00:00 | E107: LRKPCSL | F107: 0 | G107: 0 | H107: =G107*SUMIF('Manual Inputs'!$B$11:$B$22,'Expanded kW'!A107,'Manual Inputs'!$C$11:$C$22) -> 0
A108: 4 | B108: FALSE | C108: ON | D108: 2019-04-05T10:00:00 | E108: LRKPCSL | F108: 0 | G108: 0 | H108: =G108*SUMIF('Manual Inputs'!$B$11:$B$22,'Expanded kW'!A108,'Manual Inputs'!$C$11:$C$22) -> 0
A109: 4 | B109: FALSE | C109: ON | D109: 2019-04-05T11:00:00 | E109: LRKPCSL | F109: 0 | G109: 0 | H109: =G109*SUMIF('Manual Inputs'!$B$11:$B$22,'Expanded kW'!A109,'Manual Inputs'!$C$11:$C$22) -> 0
A110: 4 | B110: FALSE | C110: ON | D110: 2019-04-05T12:00:00 | E110: LRKPCSL | F110: 0 | G110: 0 | H110: =G110*SUMIF('Manual Inputs'!$B$11:$B$22,'Expanded kW'!A110,'Manual Inputs'!$C$11:$C$22) -> 0
A111: 4 | B111: FALSE | C111: ON | D111: 2019-04-05T13:00:00 | E111: LRKPCSL | F111: 0 | G111: 0 | H111: =G111*SUMIF('Manual Inputs'!$B$11:$B$22,'Expanded kW'!A111,'Manual Inputs'!$C$11:$C$22) -> 0
A112: 4 | B112: FALSE | C112: ON | D112: 2019-04-05T14:00:00 | E112: LRKPCSL | F112: 0 | G112: 0 | H112: =G112*SUMIF('Manual Inputs'!$B$11:$B$22,'Expanded kW'!A112,'Manual Inputs'!$C$11:$C$22) -> 0
A113: 4 | B113: FALSE | C113: ON | D113: 2019-04-05T15:00:00 | E113: LRKPCSL | F113: 0 | G113: 0 | H113: =G113*SUMIF('Manual Inputs'!$B$11:$B$22,'Expanded kW'!A113,'Manual Inputs'!$C$11:$C$22) -> 0
A114: 4 | B114: FALSE | C114: ON | D114: 2019-04-05T16:00:00 | E114: LRKPCSL | F114: 0 | G114: 0 | H114: =G114*SUMIF('Manual Inputs'!$B$11:$B$22,'Expanded kW'!A114,'Manual Inputs'!$C$11:$C$22) -> 0
A115: 4 | B115: FALSE | C115: ON | D115: 2019-04-05T17:00:00 | E115: LRKPCSL | F115: 0 | G115: 0 | H115: =G115*SUMIF('Manual Inputs'!$B$11:$B$22,'Expanded kW'!A115,'Manual Inputs'!$C$11:$C$22) -> 0
A116: 4 | B116: FALSE | C116: ON | D116: 2019-04-05T18:00:00 | E116: LRKPCSL | F116: 0 | G116: 0 | H116: =G116*SUMIF('Manual Inputs'!$B$11:$B$22,'Expanded kW'!A116,'Manual Inputs'!$C$11:$C$22) -> 0
A117: 4 | B117: FALSE | C117: ON | D117: 2019-04-05T19:00:00 | E117: LRKPCSL | F117: 0 | G117: 0 | H117: =G117*SUMIF('Manual Inputs'!$B$11:$B$22,'Expanded kW'!A117,'Manual Inputs'!$C$11:$C$22) -> 0
A118: 4 | B118: FALSE | C118: ON | D118: 2019-04-05T20:00:00 | E118: LRKPCSL | F118: 21.37958336 | G118: 0.001872765562 | H118: =G118*SUMIF('Manual Inputs'!$B$11:$B$22,'Expanded kW'!A118,'Manual Inputs'!$C$11:$C$22) -> 1181.712969
A119: 4 | B119: FALSE | C119: OFF | D119: 2019-04-05T21:00:00 | E119: LRKPCSL | F119: 38.87196732 | G119: 0.003405028083 | H119: =G119*SUMIF('Manual Inputs'!$B$11:$B$22,'Expanded kW'!A119,'Manual Inputs'!$C$11:$C$22) -> 2148.568901
A120: 4 | B120: FALSE | C120: OFF | D120: 2019-04-05T22:00:00 | E120: LRKPCSL | F120: 38.87196732 | G120: 0.003405028083 | H120: =G120*SUMIF('Manual Inputs'!$B$11:$B$22,'Expanded kW'!A120,'Manual Inputs'!$C$11:$C$22) -> 2148.568901
A121: 4 | B121: FALSE | C121: OFF | D121: 2019-04-05T23:00:00 | E121: LRKPCSL | F121: 38.87196732 | G121: 0.003405028083 | H121: =G121*SUMIF('Manual Inputs'!$B$11:$B$22,'Expanded kW'!A121,'Manual Inputs'!$C$11:$C$22) -> 2148.568901
A122: 4 | B122: FALSE | C122: OFF | D122: 2019-04-06 | E122: LRKPCSL | F122: 38.87196732 | G122: 0.003405028083 | H122: =G122*SUMIF('Manual Inputs'!$B$11:$B$22,'Expanded kW'!A122,'Manual Inputs'!$C$11:$C$22) -> 2148.568901
A123: 4 | B123: FALSE | C123: OFF | D123: 2019-04-06T01:00:00 | E123: LRKPCSL | F123: 38.87196732 | G123: 0.003405028083 | H123: =G123*SUMIF('Manual Inputs'!$B$11:$B$22,'Expanded kW'!A123,'Manual Inputs'!$C$11:$C$22) -> 2148.568901
A124: 4 | B124: FALSE | C124: OFF | D124: 2019-04-06T02:00:00 | E124: LRKPCSL | F124: 38.87196732 | G124: 0.003405028083 | H124: =G124*SUMIF('Manual Inputs'!$B$11:$B$22,'Expanded kW'!A124,'Manual Inputs'!$C$11:$C$22) -> 2148.568901
A125: 4 | B125: FALSE | C125: OFF | D125: 2019-04-06T03:00:00 | E125: LRKPCSL | F125: 38.87196732 | G125: 0.003405028083 | H125: =G125*SUMIF('Manual Inputs'!$B$11:$B$22,'Expanded kW'!A125,'Manual Inputs'!$C$11:$C$22) -> 2148.568901
A126: 4 | B126: FALSE | C126: OFF | D126: 2019-04-06T04:00:00 | E126: LRKPCSL | F126: 38.87196732 | G126: 0.003405028083 | H126: =G126*SUMIF('Manual Inputs'!$B$11:$B$22,'Expanded kW'!A126,'Manual Inputs'!$C$11:$C$22) -> 2148.568901
A127: 4 | B127: FALSE | C127: OFF | D127: 2019-04-06T05:00:00 | E127: LRKPCSL | F127: 38.87196732 | G127: 0.003405028083 | H127: =G127*SUMIF('Manual Inputs'!$B$11:$B$22,'Expanded kW'!A127,'Manual Inputs'!$C$11:$C$22) -> 2148.568901
A128: 4 | B128: FALSE | C128: OFF | D128: 2019-04-06T06:00:00 | E128: LRKPCSL | F128: 23.97104645 | G128: 0.002099767312 | H128: =G128*SUMIF('Manual Inputs'!$B$11:$B$22,'Expanded kW'!A128,'Manual Inputs'!$C$11:$C$22) -> 1324.950819
A129: 4 | B129: FALSE | C129: OFF | D129: 2019-04-06T07:00:00 | E129: LRKPCSL | F129: 0 | G129: 0 | H129: =G129*SUMIF('Manual Inputs'!$B$11:$B$22,'Expanded kW'!A129,'Manual Inputs'!$C$11:$C$22) -> 0
A130: =MONTH(D130) -> 4 | B130: =IF(ISNA(VLOOKUP(DATE(YEAR(D130),MONTH(D130),DAY(D130)),Holidays,1,FALSE)),FALSE,TRUE) -> FALSE | C130: =IF(OR(HOUR(D130)<PkStart,HOUR(D130)>OPkStart-1,WEEKDAY(D130,2)>5,B130)=TRUE,"OFF","ON") -> OFF | D130: 2019-04-06T08:00:00 | E130: LRKPCSL | F130: 0 | G130: =IF(SUMIF($A$2:$A$8785,A130,$F$2:$F$8785)=0,0,F130/SUMIF($A$2:$A$8785,A130,$F$2:$F$8785)) -> 0 | H130: =G130*SUMIF('Manual Inputs'!$B$11:$B$22,'Expanded kW'!A130,'Manual Inputs'!$C$11:$C$22) -> 0
A131: 4 | B131: FALSE | C131: OFF | D131: 2019-04-06T09:00:00 | E131: LRKPCSL | F131: 0 | G131: 0 | H131: =G131*SUMIF('Manual Inputs'!$B$11:$B$22,'Expanded kW'!A131,'Manual Inputs'!$C$11:$C$22) -> 0
A132: 4 | B132: FALSE | C132: OFF | D132: =+D131+1/24 -> 2019-04-06T10:00:00 | E132: =+E131 -> LRKPCSL | F132: 0 | G132: 0 | H132: =G132*SUMIF('Manual Inputs'!$B$11:$B$22,'Expanded kW'!A132,'Manual Inputs'!$C$11:$C$22) -> 0
A133: 4 | B133: FALSE | C133: OFF | D133: 2019-04-06T11:00:00 | E133: LRKPCSL | F133: 0 | G133: 0 | H133: =G133*SUMIF('Manual Inputs'!$B$11:$B$22,'Expanded kW'!A133,'Manual Inputs'!$C$11:$C$22) -> 0
A134: 4 | B134: FALSE | C134: OFF | D134: 2019-04-06T12:00:00 | E134: LRKPCSL | F134: 0 | G134: 0 | H134: =G134*SUMIF('Manual Inputs'!$B$11:$B$22,'Expanded kW'!A134,'Manual Inputs'!$C$11:$C$22) -> 0
A135: 4 | B135: FALSE | C135: OFF | D135: 2019-04-06T13:00:00 | E135: LRKPCSL | F135: 0 | G135: 0 | H135: =G135*SUMIF('Manual Inputs'!$B$11:$B$22,'Expanded kW'!A135,'Manual Inputs'!$C$11:$C$22) -> 0
A136: 4 | B136: FALSE | C136: OFF | D136: 2019-04-06T14:00:00 | E136: LRKPCSL | F136: 0 | G136: 0 | H136: =G136*SUMIF('Manual Inputs'!$B$11:$B$22,'Expanded kW'!A136,'Manual Inputs'!$C$11:$C$22) -> 0
A137: 4 | B137: FALSE | C137: OFF | D137: 2019-04-06T15:00:00 | E137: LRKPCSL | F137: 0 | G137: 0 | H137: =G137*SUMIF('Manual Inputs'!$B$11:$B$22,'Expanded kW'!A137,'Manual Inputs'!$C$11:$C$22) -> 0
A138: 4 | B138: FALSE | C138: OFF | D138: 2019-04-06T16:00:00 | E138: LRKPCSL | F138: 0 | G138: 0 | H138: =G138*SUMIF('Manual Inputs'!$B$11:$B$22,'Expanded kW'!A138,'Manual Inputs'!$C$11:$C$22) -> 0
A139: 4 | B139: FALSE | C139: OFF | D139: 2019-04-06T17:00:00 | E139: LRKPCSL | F139: 0 | G139: 0 | H139: =G139*SUMIF('Manual Inputs'!$B$11:$B$22,'Expanded kW'!A139,'Manual Inputs'!$C$11:$C$22) -> 0
A140: 4 | B140: FALSE | C140: OFF | D140: 2019-04-06T18:00:00 | E140: LRKPCSL | F140: 0 | G140: 0 | H140: =G140*SUMIF('Manual Inputs'!$B$11:$B$22,'Expanded kW'!A140,'Manual Inputs'!$C$11:$C$22) -> 0
A141: 4 | B141: FALSE | C141: OFF | D141: 2019-04-06T19:00:00 | E141: LRKPCSL | F141: 0 | G141: 0 | H141: =G141*SUMIF('Manual Inputs'!$B$11:$B$22,'Expanded kW'!A141,'Manual Inputs'!$C$11:$C$22) -> 0
A142: 4 | B142: FALSE | C142: OFF | D142: 2019-04-06T20:00:00 | E142: LRKPCSL | F142: 20.73171616 | G142: 0.001816015 | H142: =G142*SUMIF('Manual Inputs'!$B$11:$B$22,'Expanded kW'!A142,'Manual Inputs'!$C$11:$C$22) -> 1145.903428
A143: 4 | B143: FALSE | C143: OFF | D143: 2019-04-06T21:00:00 | E143: LRKPCSL | F143: 38.87196732 | G143: 0.003405028083 | H143: =G143*SUMIF('Manual Inputs'!$B$11:$B$22,'Expanded kW'!A143,'Manual Inputs'!$C$11:$C$22) -> 2148.568901
A144: 4 | B144: FALSE | C144: OFF | D144: 2019-04-06T22:00:00 | E144: LRKPCSL | F144: 38.87196732 | G144: 0.003405028083 | H144: =G144*SUMIF('Manual Inputs'!$B$11:$B$22,'Expanded kW'!A144,'Manual Inputs'!$C$11:$C$22) -> 2148.568901
A145: 4 | B145: FALSE | C145: OFF | D145: 2019-04-06T23:00:00 | E145: LRKPCSL | F145: 38.87196732 | G145: 0.003405028083 | H145: =G145*SUMIF('Manual Inputs'!$B$11:$B$22,'Expanded kW'!A145,'Manual Inputs'!$C$11:$C$22) -> 2148.568901
A146: 4 | B146: FALSE | C146: OFF | D146: 2019-04-07 | E146: LRKPCSL | F146: 38.87196732 | G146: 0.003405028083 | H146: =G146*SUMIF('Manual Inputs'!$B$11:$B$22,'Expanded kW'!A146,'Manual Inputs'!$C$11:$C$22) -> 2148.568901
A147: 4 | B147: FALSE | C147: OFF | D147: 2019-04-07T01:00:00 | E147: LRKPCSL | F147: 38.87196732 | G147: 0.003405028083 | H147: =G147*SUMIF('Manual Inputs'!$B$11:$B$22,'Expanded kW'!A147,'Manual Inputs'!$C$11:$C$22) -> 2148.568901
A148: 4 | B148: FALSE | C148: OFF | D148: 2019-04-07T02:00:00 | E148: LRKPCSL | F148: 38.87196732 | G148: 0.003405028083 | H148: =G148*SUMIF('Manual Inputs'!$B$11:$B$22,'Expanded kW'!A148,'Manual Inputs'!$C$11:$C$22) -> 2148.568901
A149: 4 | B149: FALSE | C149: OFF | D149: 2019-04-07T03:00:00 | E149: LRKPCSL | F149: 38.87196732 | G149: 0.003405028083 | H149: =G149*SUMIF('Manual Inputs'!$B$11:$B$22,'Expanded kW'!A149,'Manual Inputs'!$C$11:$C$22) -> 2148.568901
A150: 4 | B150: FALSE | C150: OFF | D150: 2019-04-07T04:00:00 | E150: LRKPCSL | F150: 38.87196732 | G150: 0.003405028083 | H150: =G150*SUMIF('Manual Inputs'!$B$11:$B$22,'Expanded kW'!A150,'Manual Inputs'!$C$11:$C$22) -> 2148.568901
A151: 4 | B151: FALSE | C151: OFF | D151: 2019-04-07T05:00:00 | E151: LRKPCSL | F151: 38.87196732 | G151: 0.003405028083 | H151: =G151*SUMIF('Manual Inputs'!$B$11:$B$22,'Expanded kW'!A151,'Manual Inputs'!$C$11:$C$22) -> 2148.568901
A152: 4 | B152: FALSE | C152: OFF | D152: 2019-04-07T06:00:00 | E152: LRKPCSL | F152: 23.32318115 | G152: 0.002043016916 | H152: =G152*SUMIF('Manual Inputs'!$B$11:$B$22,'Expanded kW'!A152,'Manual Inputs'!$C$11:$C$22) -> 1289.141383
A153: 4 | B153: FALSE | C153: OFF | D153: 2019-04-07T07:00:00 | E153: LRKPCSL | F153: 0 | G153: 0 | H153: =G153*SUMIF('Manual Inputs'!$B$11:$B$22,'Expanded kW'!A153,'Manual Inputs'!$C$11:$C$22) -> 0
A154: 4 | B154: FALSE | C154: OFF | D154: 2019-04-07T08:00:00 | E154: LRKPCSL | F154: 0 | G154: 0 | H154: =G154*SUMIF('Manual Inputs'!$B$11:$B$22,'Expanded kW'!A154,'Manual Inputs'!$C$11:$C$22) -> 0
A155: 4 | B155: FALSE | C155: OFF | D155: 2019-04-07T09:00:00 | E155: LRKPCSL | F155: 0 | G155: 0 | H155: =G155*SUMIF('Manual Inputs'!$B$11:$B$22,'Expanded kW'!A155,'Manual Inputs'!$C$11:$C$22) -> 0
A156: 4 | B156: FALSE | C156: OFF | D156: 2019-04-07T10:00:00 | E156: LRKPCSL | F156: 0 | G156: 0 | H156: =G156*SUMIF('Manual Inputs'!$B$11:$B$22,'Expanded kW'!A156,'Manual Inputs'!$C$11:$C$22) -> 0
A157: 4 | B157: FALSE | C157: OFF | D157: 2019-04-07T11:00:00 | E157: LRKPCSL | F157: 0 | G157: 0 | H157: =G157*SUMIF('Manual Inputs'!$B$11:$B$22,'Expanded kW'!A157,'Manual Inputs'!$C$11:$C$22) -> 0
A158: 4 | B158: FALSE | C158: OFF | D158: 2019-04-07T12:00:00 | E158: LRKPCSL | F158: 0 | G158: 0 | H158: =G158*SUMIF('Manual Inputs'!$B$11:$B$22,'Expanded kW'!A158,'Manual Inputs'!$C$11:$C$22) -> 0
A159: 4 | B159: FALSE | C159: OFF | D159: 2019-04-07T13:00:00 | E159: LRKPCSL | F159: 0 | G159: 0 | H159: =G159*SUMIF('Manual Inputs'!$B$11:$B$22,'Expanded kW'!A159,'Manual Inputs'!$C$11:$C$22) -> 0
A160: 4 | B160: FALSE | C160: OFF | D160: 2019-04-07T14:00:00 | E160: LRKPCSL | F160: 0 | G160: 0 | H160: =G160*SUMIF('Manual Inputs'!$B$11:$B$22,'Expanded kW'!A160,'Manual Inputs'!$C$11:$C$22) -> 0
A161: 4 | B161: FALSE | C161: OFF | D161: 2019-04-07T15:00:00 | E161: LRKPCSL | F161: 0 | G161: 0 | H161: =G161*SUMIF('Manual Inputs'!$B$11:$B$22,'Expanded kW'!A161,'Manual Inputs'!$C$11:$C$22) -> 0
A162: 4 | B162: FALSE | C162: OFF | D162: 2019-04-07T16:00:00 | E162: LRKPCSL | F162: 0 | G162: 0 | H162: =G162*SUMIF('Manual Inputs'!$B$11:$B$22,'Expanded kW'!A162,'Manual Inputs'!$C$11:$C$22) -> 0
A163: 4 | B163: FALSE | C163: OFF | D163: 2019-04-07T17:00:00 | E163: LRKPCSL | F163: 0 | G163: 0 | H163: =G163*SUMIF('Manual Inputs'!$B$11:$B$22,'Expanded kW'!A163,'Manual Inputs'!$C$11:$C$22) -> 0
A164: 4 | B164: FALSE | C164: OFF | D164: 2019-04-07T18:00:00 | E164: LRKPCSL | F164: 0 | G164: 0 | H164: =G164*SUMIF('Manual Inputs'!$B$11:$B$22,'Expanded kW'!A164,'Manual Inputs'!$C$11:$C$22) -> 0
A165: 4 | B165: FALSE | C165: OFF | D165: 2019-04-07T19:00:00 | E165: LRKPCSL | F165: 0 | G165: 0 | H165: =G165*SUMIF('Manual Inputs'!$B$11:$B$22,'Expanded kW'!A165,'Manual Inputs'!$C$11:$C$22) -> 0
A166: 4 | B166: FALSE | C166: OFF | D166: 2019-04-07T20:00:00 | E166: LRKPCSL | F166: 20.08385086 | G166: 0.001759264604 | H166: =G166*SUMIF('Manual Inputs'!$B$11:$B$22,'Expanded kW'!A166,'Manual Inputs'!$C$11:$C$22) -> 1110.093992
A167: 4 | B167: FALSE | C167: OFF | D167: 2019-04-07T21:00:00 | E167: LRKPCSL | F167: 38.87196732 | G167: 0.003405028083 | H167: =G167*SUMIF('Manual Inputs'!$B$11:$B$22,'Expanded kW'!A167,'Manual Inputs'!$C$11:$C$22) -> 2148.568901
A168: 4 | B168: FALSE | C168: OFF | D168: 2019-04-07T22:00:00 | E168: LRKPCSL | F168: 38.87196732 | G168: 0.003405028083 | H168: =G168*SUMIF('Manual Inputs'!$B$11:$B$22,'Expanded kW'!A168,'Manual Inputs'!$C$11:$C$22) -> 2148.568901
A169: 4 | B169: FALSE | C169: OFF | D169: 2019-04-07T23:00:00 | E169: LRKPCSL | F169: 38.87196732 | G169: 0.003405028083 | H169: =G169*SUMIF('Manual Inputs'!$B$11:$B$22,'Expanded kW'!A169,'Manual Inputs'!$C$11:$C$22) -> 2148.568901
A170: 4 | B170: FALSE | C170: OFF | D170: 2019-04-08 | E170: LRKPCSL | F170: 38.87196732 | G170: 0.003405028083 | H170: =G170*SUMIF('Manual Inputs'!$B$11:$B$22,'Expanded kW'!A170,'Manual Inputs'!$C$11:$C$22) -> 2148.568901
A171: 4 | B171: FALSE | C171: OFF | D171: 2019-04-08T01:00:00 | E171: LRKPCSL | F171: 38.87196732 | G171: 0.003405028083 | H171: =G171*SUMIF('Manual Inputs'!$B$11:$B$22,'Expanded kW'!A171,'Manual Inputs'!$C$11:$C$22) -> 2148.568901
A172: 4 | B172: FALSE | C172: OFF | D172: 2019-04-08T02:00:00 | E172: LRKPCSL | F172: 38.87196732 | G172: 0.003405028083 | H172: =G172*SUMIF('Manual Inputs'!$B$11:$B$22,'Expanded kW'!A172,'Manual Inputs'!$C$11:$C$22) -> 2148.568901
A173: 4 | B173: FALSE | C173: OFF | D173: 2019-04-08T03:00:00 | E173: LRKPCSL | F173: 38.87196732 | G173: 0.003405028083 | H173: =G173*SUMIF('Manual Inputs'!$B$11:$B$22,'Expanded kW'!A173,'Manual Inputs'!$C$11:$C$22) -> 2148.568901
A174: 4 | B174: FALSE | C174: OFF | D174: 2019-04-08T04:00:00 | E174: LRKPCSL | F174: 38.87196732 | G174: 0.003405028083 | H174: =G174*SUMIF('Manual Inputs'!$B$11:$B$22,'Expanded kW'!A174,'Manual Inputs'!$C$11:$C$22) -> 2148.568901
A175: 4 | B175: FALSE | C175: OFF | D175: 2019-04-08T05:00:00 | E175: LRKPCSL | F175: 38.87196732 | G175: 0.003405028083 | H175: =G175*SUMIF('Manual Inputs'!$B$11:$B$22,'Expanded kW'!A175,'Manual Inputs'!$C$11:$C$22) -> 2148.568901
A176: 4 | B176: FALSE | C176: OFF | D176: 2019-04-08T06:00:00 | E176: LRKPCSL | F176: 22.02744865 | G176: 0.001929515958 | H176: =G176*SUMIF('Manual Inputs'!$B$11:$B$22,'Expanded kW'!A176,'Manual Inputs'!$C$11:$C$22) -> 1217.522405
A177: 4 | B177: FALSE | C177: ON | D177: 2019-04-08T07:00:00 | E177: LRKPCSL | F177: 0 | G177: 0 | H177: =G177*SUMIF('Manual Inputs'!$B$11:$B$22,'Expanded kW'!A177,'Manual Inputs'!$C$11:$C$22) -> 0
A178: 4 | B178: FALSE | C178: ON | D178: 2019-04-08T08:00:00 | E178: LRKPCSL | F178: 0 | G178: 0 | H178: =G178*SUMIF('Manual Inputs'!$B$11:$B$22,'Expanded kW'!A178,'Manual Inputs'!$C$11:$C$22) -> 0
A179: 4 | B179: FALSE | C179: ON | D179: 2019-04-08T09:00:00 | E179: LRKPCSL | F179: 0 | G179: 0 | H179: =G179*SUMIF('Manual Inputs'!$B$11:$B$22,'Expanded kW'!A179,'Manual Inputs'!$C$11:$C$22) -> 0
A180: 4 | B180: FALSE | C180: ON | D180: 2019-04-08T10:00:00 | E180: LRKPCSL | F180: 0 | G180: 0 | H180: =G180*SUMIF('Manual Inputs'!$B$11:$B$22,'Expanded kW'!A180,'Manual Inputs'!$C$11:$C$22) -> 0
A181: 4 | B181: FALSE | C181: ON | D181: 2019-04-08T11:00:00 | E181: LRKPCSL | F181: 0 | G181: 0 | H181: =G181*SUMIF('Manual Inputs'!$B$11:$B$22,'Expanded kW'!A181,'Manual Inputs'!$C$11:$C$22) -> 0
A182: 4 | B182: FALSE | C182: ON | D182: 2019-04-08T12:00:00 | E182: LRKPCSL | F182: 0 | G182: 0 | H182: =G182*SUMIF('Manual Inputs'!$B$11:$B$22,'Expanded kW'!A182,'Manual Inputs'!$C$11:$C$22) -> 0
A183: 4 | B183: FALSE | C183: ON | D183: 2019-04-08T13:00:00 | E183: LRKPCSL | F183: 0 | G183: 0 | H183: =G183*SUMIF('Manual Inputs'!$B$11:$B$22,'Expanded kW'!A183,'Manual Inputs'!$C$11:$C$22) -> 0
A184: 4 | B184: FALSE | C184: ON | D184: 2019-04-08T14:00:00 | E184: LRKPCSL | F184: 0 | G184: 0 | H184: =G184*SUMIF('Manual Inputs'!$B$11:$B$22,'Expanded kW'!A184,'Manual Inputs'!$C$11:$C$22) -> 0
A185: 4 | B185: FALSE | C185: ON | D185: 2019-04-08T15:00:00 | E185: LRKPCSL | F185: 0 | G185: 0 | H185: =G185*SUMIF('Manual Inputs'!$B$11:$B$22,'Expanded kW'!A185,'Manual Inputs'!$C$11:$C$22) -> 0
A186: 4 | B186: FALSE | C186: ON | D186: 2019-04-08T16:00:00 | E186: LRKPCSL | F186: 0 | G186: 0 | H186: =G186*SUMIF('Manual Inputs'!$B$11:$B$22,'Expanded kW'!A186,'Manual Inputs'!$C$11:$C$22) -> 0
A187: 4 | B187: FALSE | C187: ON | D187: 2019-04-08T17:00:00 | E187: LRKPCSL | F187: 0 | G187: 0 | H187: =G187*SUMIF('Manual Inputs'!$B$11:$B$22,'Expanded kW'!A187,'Manual Inputs'!$C$11:$C$22) -> 0
A188: 4 | B188: FALSE | C188: ON | D188: 2019-04-08T18:00:00 | E188: LRKPCSL | F188: 0 | G188: 0 | H188: =G188*SUMIF('Manual Inputs'!$B$11:$B$22,'Expanded kW'!A188,'Manual Inputs'!$C$11:$C$22) -> 0
A189: 4 | B189: FALSE | C189: ON | D189: 2019-04-08T19:00:00 | E189: LRKPCSL | F189: 0 | G189: 0 | H189: =G189*SUMIF('Manual Inputs'!$B$11:$B$22,'Expanded kW'!A189,'Manual Inputs'!$C$11:$C$22) -> 0
A190: 4 | B190: FALSE | C190: ON | D190: 2019-04-08T20:00:00 | E190: LRKPCSL | F190: 20.08385086 | G190: 0.001759264604 | H190: =G190*SUMIF('Manual Inputs'!$B$11:$B$22,'Expanded kW'!A190,'Manual Inputs'!$C$11:$C$22) -> 1110.093992
A191: 4 | B191: FALSE | C191: OFF | D191: 2019-04-08T21:00:00 | E191: LRKPCSL | F191: 38.87196732 | G191: 0.003405028083 | H191: =G191*SUMIF('Manual Inputs'!$B$11:$B$22,'Expanded kW'!A191,'Manual Inputs'!$C$11:$C$22) -> 2148.568901
A192: 4 | B192: FALSE | C192: OFF | D192: 2019-04-08T22:00:00 | E192: LRKPCSL | F192: 38.87196732 | G192: 0.003405028083 | H192: =G192*SUMIF('Manual Inputs'!$B$11:$B$22,'Expanded kW'!A192,'Manual Inputs'!$C$11:$C$22) -> 2148.568901
A193: 4 | B193: FALSE | C193: OFF | D193: 2019-04-08T23:00:00 | E193: LRKPCSL | F193: 38.87196732 | G193: 0.003405028083 | H193: =G193*SUMIF('Manual Inputs'!$B$11:$B$22,'Expanded kW'!A193,'Manual Inputs'!$C$11:$C$22) -> 2148.568901
A194: =MONTH(D194) -> 4 | B194: =IF(ISNA(VLOOKUP(DATE(YEAR(D194),MONTH(D194),DAY(D194)),Holidays,1,FALSE)),FALSE,TRUE) -> FALSE | C194: =IF(OR(HOUR(D194)<PkStart,HOUR(D194)>OPkStart-1,WEEKDAY(D194,2)>5,B194)=TRUE,"OFF","ON") -> OFF | D194: 2019-04-09 | E194: LRKPCSL | F194: 38.87196732 | G194: =IF(SUMIF($A$2:$A$8785,A194,$F$2:$F$8785)=0,0,F194/SUMIF($A$2:$A$8785,A194,$F$2:$F$8785)) -> 0.003405028083 | H194: =G194*SUMIF('Manual Inputs'!$B$11:$B$22,'Expanded kW'!A194,'Manual Inputs'!$C$11:$C$22) -> 2148.568901
A195: 4 | B195: FALSE | C195: OFF | D195: 2019-04-09T01:00:00 | E195: LRKPCSL | F195: 38.87196732 | G195: 0.003405028083 | H195: =G195*SUMIF('Manual Inputs'!$B$11:$B$22,'Expanded kW'!A195,'Manual Inputs'!$C$11:$C$22) -> 2148.568901
A196: 4 | B196: FALSE | C196: OFF | D196: =+D195+1/24 -> 2019-04-09T02:00:00 | E196: =+E195 -> LRKPCSL | F196: 38.87196732 | G196: 0.003405028083 | H196: =G196*SUMIF('Manual Inputs'!$B$11:$B$22,'Expanded kW'!A196,'Manual Inputs'!$C$11:$C$22) -> 2148.568901
A197: 4 | B197: FALSE | C197: OFF | D197: 2019-04-09T03:00:00 | E197: LRKPCSL | F197: 38.87196732 | G197: 0.003405028083 | H197: =G197*SUMIF('Manual Inputs'!$B$11:$B$22,'Expanded kW'!A197,'Manual Inputs'!$C$11:$C$22) -> 2148.568901
A198: 4 | B198: FALSE | C198: OFF | D198: 2019-04-09T04:00:00 | E198: LRKPCSL | F198: 38.87196732 | G198: 0.003405028083 | H198: =G198*SUMIF('Manual Inputs'!$B$11:$B$22,'Expanded kW'!A198,'Manual Inputs'!$C$11:$C$22) -> 2148.568901
A199: 4 | B199: FALSE | C199: OFF | D199: 2019-04-09T05:00:00 | E199: LRKPCSL | F199: 38.87196732 | G199: 0.003405028083 | H199: =G199*SUMIF('Manual Inputs'!$B$11:$B$22,'Expanded kW'!A199,'Manual Inputs'!$C$11:$C$22) -> 2148.568901
A200: 4 | B200: FALSE | C200: OFF | D200: 2019-04-09T06:00:00 | E200: LRKPCSL | F200: 21.37958336 | G200: 0.001872765562 | H200: =G200*SUMIF('Manual Inputs'!$B$11:$B$22,'Expanded kW'!A200,'Manual Inputs'!$C$11:$C$22) -> 1181.712969
... 8585 more rows

Sheet Monthly Data
A1: ='Manual Inputs'!D1 -> Kentucky Power Co.
A2: =+'Manual Inputs'!D2 -> Kentucky
A3: Monthly Summary of Sample Data
A4: =CustClass & " Customers" -> Street Lighting Customers
A5: ="For the Test Year Ended " & TEXT(+DATE(YEAR(ReportYr)+1,MONTH(ReportYr),DAY(ReportYr))-1,"Mmmm d, yyyy") -> For the Test Year Ended March 31, 2020
A6: ="Based on Sample Period Ended " & TEXT(+DATE(YEAR(TYBegin)+1,MONTH(TYBegin),DAY(TYBegin))-1,"Mmmm d, yyyy") -> Based on Sample Period Ended March 31, 2020
C8: ON | E8: OFF
C9: NCP | H9: SNCP | N9: Energy
A10: Year | B10: Month | C10: On-Peak | D10: LF | E10: Off-Peak | F10: LF | H10: On-Peak | I10: LF | J10: Off-Peak | K10: LF | M10: CP | N10: On-Peak | O10: Off-Peak | P10: Total
A11: =+'Manual Inputs'!A11 -> 2019 | B11: =+'Manual Inputs'!B11 -> 4 | C11: =MAX(IF('Expanded kW'!$A$2:$A$8785=$B11,IF('Expanded kW'!$C$2:$C$8785=C$8,'Expanded kW'!$F$2:$F$8785,0),0)) -> 23.97104645 | D11: =IF(C11=0,0,$P11/C11/COUNTIF('Expanded kW'!$A$2:$A$8785,'Monthly Data'!$B11)) -> 0.6614489524 | E11: =MAX(IF('Expanded kW'!$A$2:$A$8785=$B11,IF('Expanded kW'!$C$2:$C$8785=E$8,'Expanded kW'!$F$2:$F$8785,0),0)) -> 38.87196732 | F11: =IF(E11=0,0,$P11/E11/COUNTIF('Expanded kW'!$A$2:$A$8785,'Monthly Data'!$B11)) -> 0.4078935196 | H11: =+'LR Monthly'!G2 -> 23.97104733 | I11: =IF(H11=0,0,$P11/H11/COUNTIF('Expanded kW'!$A$2:$A$8785,'Monthly Data'!$B11)) -> 0.6614489281 | J11: =+'LR Monthly'!H2 -> 38.87196864 | K11: =IF(J11=0,0,$P11/J11/COUNTIF('Expanded kW'!$A$2:$A$8785,'Monthly Data'!$B11)) -> 0.4078935057 | M11: =VLOOKUP('Manual Inputs'!E27,'Expanded kW'!$D$2:$F$8785,3) -> 29.15397644 | N11: =SUMIFS('Expanded kW'!$F$2:$F$8785,'Expanded kW'!$A$2:$A$8785,$B11,'Expanded kW'!$C$2:$C$8785,C$8) -> 342.0733223 | O11: =SUMIFS('Expanded kW'!$F$2:$F$8785,'Expanded kW'!$A$2:$A$8785,$B11,'Expanded kW'!$C$2:$C$8785,E$8) -> 11073.97564 | P11: =SUM(N11:O11) -> 11416.04896
A12: =+'Manual Inputs'!A12 -> 2019 | B12: =+'Manual Inputs'!B12 -> 5 | C12: =MAX(IF('Expanded kW'!$A$2:$A$8785=$B12,IF('Expanded kW'!$C$2:$C$8785=C$8,'Expanded kW'!$F$2:$F$8785,0),0)) -> 5.830795288 | D12: =IF(C12=0,0,$P12/C12/COUNTIF('Expanded kW'!$A$2:$A$8785,'Monthly Data'!$B12)) -> 2.426373887 | E12: =MAX(IF('Expanded kW'!$A$2:$A$8785=$B12,IF('Expanded kW'!$C$2:$C$8785=E$8,'Expanded kW'!$F$2:$F$8785,0),0)) -> 38.87196732 | F12: =IF(E12=0,0,$P12/E12/COUNTIF('Expanded kW'!$A$2:$A$8785,'Monthly Data'!$B12)) -> 0.3639560949 | H12: =+'LR Monthly'!G3 -> 5.830795296 | I12: =IF(H12=0,0,$P12/H12/COUNTIF('Expanded kW'!$A$2:$A$8785,'Monthly Data'!$B12)) -> 2.426373883 | J12: =+'LR Monthly'!H3 -> 38.87196864 | K12: =IF(J12=0,0,$P12/J12/COUNTIF('Expanded kW'!$A$2:$A$8785,'Monthly Data'!$B12)) -> 0.3639560825 | M12: =VLOOKUP('Manual Inputs'!E28,'Expanded kW'!$D$2:$F$8785,3) -> 0 | N12: =SUMIFS('Expanded kW'!$F$2:$F$8785,'Expanded kW'!$A$2:$A$8785,$B12,'Expanded kW'!$C$2:$C$8785,C$8) -> 22.02744842 | O12: =SUMIFS('Expanded kW'!$F$2:$F$8785,'Expanded kW'!$A$2:$A$8785,$B12,'Expanded kW'!$C$2:$C$8785,E$8) -> 10503.85348 | P12: =SUM(N12:O12) -> 10525.88093
A13: =+'Manual Inputs'!A13 -> 2019 | B13: =+'Manual Inputs'!B13 -> 6 | C13: =MAX(IF('Expanded kW'!$A$2:$A$8785=$B13,IF('Expanded kW'!$C$2:$C$8785=C$8,'Expanded kW'!$F$2:$F$8785,0),0)) -> 0 | D13: =IF(C13=0,0,$P13/C13/COUNTIF('Expanded kW'!$A$2:$A$8785,'Monthly Data'!$B13)) -> 0 | E13: =MAX(IF('Expanded kW'!$A$2:$A$8785=$B13,IF('Expanded kW'!$C$2:$C$8785=E$8,'Expanded kW'!$F$2:$F$8785,0),0)) -> 38.87196732 | F13: =IF(E13=0,0,$P13/E13/COUNTIF('Expanded kW'!$A$2:$A$8785,'Monthly Data'!$B13)) -> 0.3416666683 | H13: =+'LR Monthly'!G4 -> 0 | I13: =IF(H13=0,0,$P13/H13/COUNTIF('Expanded kW'!$A$2:$A$8785,'Monthly Data'!$B13)) -> 0 | J13: =+'LR Monthly'!H4 -> 38.87196864 | K13: =IF(J13=0,0,$P13/J13/COUNTIF('Expanded kW'!$A$2:$A$8785,'Monthly Data'!$B13)) -> 0.3416666566 | M13: =VLOOKUP('Manual Inputs'!E29,'Expanded kW'!$D$2:$F$8785,3) -> 0 | N13: =SUMIFS('Expanded kW'!$F$2:$F$8785,'Expanded kW'!$A$2:$A$8785,$B13,'Expanded kW'!$C$2:$C$8785,C$8) -> 0 | O13: =SUMIFS('Expanded kW'!$F$2:$F$8785,'Expanded kW'!$A$2:$A$8785,$B13,'Expanded kW'!$C$2:$C$8785,E$8) -> 9562.504005 | P13: 9562.504005
A14: =+'Manual Inputs'!A14 -> 2019 | B14: =+'Manual Inputs'!B14 -> 7 | C14: =MAX(IF('Expanded kW'!$A$2:$A$8785=$B14,IF('Expanded kW'!$C$2:$C$8785=C$8,'Expanded kW'!$F$2:$F$8785,0),0)) -> 0 | D14: =IF(C14=0,0,$P14/C14/COUNTIF('Expanded kW'!$A$2:$A$8785,'Monthly Data'!$B14)) -> 0 | E14: =MAX(IF('Expanded kW'!$A$2:$A$8785=$B14,IF('Expanded kW'!$C$2:$C$8785=E$8,'Expanded kW'!$F$2:$F$8785,0),0)) -> 38.87196732 | F14: =IF(E14=0,0,$P14/E14/COUNTIF('Expanded kW'!$A$2:$A$8785,'Monthly Data'!$B14)) -> 0.352732977 | H14: =+'LR Monthly'!G5 -> 0 | I14: =IF(H14=0,0,$P14/H14/COUNTIF('Expanded kW'!$A$2:$A$8785,'Monthly Data'!$B14)) -> 0 | J14: =+'LR Monthly'!H5 -> 38.87196864 | K14: =IF(J14=0,0,$P14/J14/COUNTIF('Expanded kW'!$A$2:$A$8785,'Monthly Data'!$B14)) -> 0.352732965 | M14: =VLOOKUP('Manual Inputs'!E30,'Expanded kW'!$D$2:$F$8785,3) -> 0 | N14: =SUMIFS('Expanded kW'!$F$2:$F$8785,'Expanded kW'!$A$2:$A$8785,$B14,'Expanded kW'!$C$2:$C$8785,C$8) -> 0 | O14: =SUMIFS('Expanded kW'!$F$2:$F$8785,'Expanded kW'!$A$2:$A$8785,$B14,'Expanded kW'!$C$2:$C$8785,E$8) -> 10201.30002 | P14: 10201.30002
A15: =+'Manual Inputs'!A15 -> 2019 | B15: =+'Manual Inputs'!B15 -> 8 | C15: =MAX(IF('Expanded kW'!$A$2:$A$8785=$B15,IF('Expanded kW'!$C$2:$C$8785=C$8,'Expanded kW'!$F$2:$F$8785,0),0)) -> 17.49238586 | D15: =IF(C15=0,0,$P15/C15/COUNTIF('Expanded kW'!$A$2:$A$8785,'Monthly Data'!$B15)) -> 0.868777353 | E15: =MAX(IF('Expanded kW'!$A$2:$A$8785=$B15,IF('Expanded kW'!$C$2:$C$8785=E$8,'Expanded kW'!$F$2:$F$8785,0),0)) -> 38.87196732 | F15: =IF(E15=0,0,$P15/E15/COUNTIF('Expanded kW'!$A$2:$A$8785,'Monthly Data'!$B15)) -> 0.3909498216 | H15: =+'LR Monthly'!G6 -> 17.49238589 | I15: =IF(H15=0,0,$P15/H15/COUNTIF('Expanded kW'!$A$2:$A$8785,'Monthly Data'!$B15)) -> 0.8687773517 | J15: =+'LR Monthly'!H6 -> 38.87196864 | K15: =IF(J15=0,0,$P15/J15/COUNTIF('Expanded kW'!$A$2:$A$8785,'Monthly Data'!$B15)) -> 0.3909498083 | M15: =VLOOKUP('Manual Inputs'!E31,'Expanded kW'!$D$2:$F$8785,3) -> 0 | N15: =SUMIFS('Expanded kW'!$F$2:$F$8785,'Expanded kW'!$A$2:$A$8785,$B15,'Expanded kW'!$C$2:$C$8785,C$8) -> 139.9390869 | O15: =SUMIFS('Expanded kW'!$F$2:$F$8785,'Expanded kW'!$A$2:$A$8785,$B15,'Expanded kW'!$C$2:$C$8785,E$8) -> 11166.6205 | P15: 11306.55958
A16: =+'Manual Inputs'!A16 -> 2019 | B16: =+'Manual Inputs'!B16 -> 9 | C16: =MAX(IF('Expanded kW'!$A$2:$A$8785=$B16,IF('Expanded kW'!$C$2:$C$8785=C$8,'Expanded kW'!$F$2:$F$8785,0),0)) -> 38.87196732 | D16: =IF(C16=0,0,$P16/C16/COUNTIF('Expanded kW'!$A$2:$A$8785,'Monthly Data'!$B16)) -> 0.440509261 | E16: =MAX(IF('Expanded kW'!$A$2:$A$8785=$B16,IF('Expanded kW'!$C$2:$C$8785=E$8,'Expanded kW'!$F$2:$F$8785,0),0)) -> 38.87196732 | F16: =IF(E16=0,0,$P16/E16/COUNTIF('Expanded kW'!$A$2:$A$8785,'Monthly Data'!$B16)) -> 0.440509261 | H16: =+'LR Monthly'!G7 -> 38.87196864 | I16: =IF(H16=0,0,$P16/H16/COUNTIF('Expanded kW'!$A$2:$A$8785,'Monthly Data'!$B16)) -> 0.440509246 | J16: =+'LR Monthly'!H7 -> 38.87196864 | K16: =IF(J16=0,0,$P16/J16/COUNTIF('Expanded kW'!$A$2:$A$8785,'Monthly Data'!$B16)) -> 0.440509246 | M16: =VLOOKUP('Manual Inputs'!E32,'Expanded kW'!$D$2:$F$8785,3) -> 0 | N16: =SUMIFS('Expanded kW'!$F$2:$F$8785,'Expanded kW'!$A$2:$A$8785,$B16,'Expanded kW'!$C$2:$C$8785,C$8) -> 712.6527526 | O16: =SUMIFS('Expanded kW'!$F$2:$F$8785,'Expanded kW'!$A$2:$A$8785,$B16,'Expanded kW'!$C$2:$C$8785,E$8) -> 11616.2396 | P16: 12328.89235
A17: =+'Manual Inputs'!A17 -> 2019 | B17: =+'Manual Inputs'!B17 -> 10 | C17: =MAX(IF('Expanded kW'!$A$2:$A$8785=$B17,IF('Expanded kW'!$C$2:$C$8785=C$8,'Expanded kW'!$F$2:$F$8785,0),0)) -> 38.87196732 | D17: =IF(C17=0,0,$P17/C17/COUNTIF('Expanded kW'!$A$2:$A$8785,'Monthly Data'!$B17)) -> 0.4920250907 | E17: =MAX(IF('Expanded kW'!$A$2:$A$8785=$B17,IF('Expanded kW'!$C$2:$C$8785=E$8,'Expanded kW'!$F$2:$F$8785,0),0)) -> 38.87196732 | F17: =IF(E17=0,0,$P17/E17/COUNTIF('Expanded kW'!$A$2:$A$8785,'Monthly Data'!$B17)) -> 0.4920250907 | H17: =+'LR Monthly'!G8 -> 38.87196864 | I17: =IF(H17=0,0,$P17/H17/COUNTIF('Expanded kW'!$A$2:$A$8785,'Monthly Data'!$B17)) -> 0.4920250739 | J17: =+'LR Monthly'!H8 -> 38.87196864 | K17: =IF(J17=0,0,$P17/J17/COUNTIF('Expanded kW'!$A$2:$A$8785,'Monthly Data'!$B17)) -> 0.4920250739 | M17: =VLOOKUP('Manual Inputs'!E33,'Expanded kW'!$D$2:$F$8785,3) -> 0 | N17: =SUMIFS('Expanded kW'!$F$2:$F$8785,'Expanded kW'!$A$2:$A$8785,$B17,'Expanded kW'!$C$2:$C$8785,C$8) -> 1624.200385 | O17: =SUMIFS('Expanded kW'!$F$2:$F$8785,'Expanded kW'!$A$2:$A$8785,$B17,'Expanded kW'!$C$2:$C$8785,E$8) -> 12605.53115 | P17: 14229.73153
A18: =+'Manual Inputs'!A18 -> 2019 | B18: =+'Manual Inputs'!B18 -> 11 | C18: =MAX(IF('Expanded kW'!$A$2:$A$8785=$B18,IF('Expanded kW'!$C$2:$C$8785=C$8,'Expanded kW'!$F$2:$F$8785,0),0)) -> 38.87196732 | D18: =IF(C18=0,0,$P18/C18/COUNTIF('Expanded kW'!$A$2:$A$8785,'Monthly Data'!$B18)) -> 0.5372916679 | E18: =MAX(IF('Expanded kW'!$A$2:$A$8785=$B18,IF('Expanded kW'!$C$2:$C$8785=E$8,'Expanded kW'!$F$2:$F$8785,0),0)) -> 38.87196732 | F18: =IF(E18=0,0,$P18/E18/COUNTIF('Expanded kW'!$A$2:$A$8785,'Monthly Data'!$B18)) -> 0.5372916679 | H18: =+'LR Monthly'!G9 -> 38.87196864 | I18: =IF(H18=0,0,$P18/H18/COUNTIF('Expanded kW'!$A$2:$A$8785,'Monthly Data'!$B18)) -> 0.5372916495 | J18: =+'LR Monthly'!H9 -> 38.87196864 | K18: =IF(J18=0,0,$P18/J18/COUNTIF('Expanded kW'!$A$2:$A$8785,'Monthly Data'!$B18)) -> 0.5372916495 | M18: =VLOOKUP('Manual Inputs'!E34,'Expanded kW'!$D$2:$F$8785,3) -> 0 | N18: =SUMIFS('Expanded kW'!$F$2:$F$8785,'Expanded kW'!$A$2:$A$8785,$B18,'Expanded kW'!$C$2:$C$8785,C$8) -> 2595.351692 | O18: =SUMIFS('Expanded kW'!$F$2:$F$8785,'Expanded kW'!$A$2:$A$8785,$B18,'Expanded kW'!$C$2:$C$8785,E$8) -> 12442.2689 | P18: 15037.62059
A19: =+'Manual Inputs'!A19 -> 2019 | B19: =+'Manual Inputs'!B19 -> 12 | C19: =MAX(IF('Expanded kW'!$A$2:$A$8785=$B19,IF('Expanded kW'!$C$2:$C$8785=C$8,'Expanded kW'!$F$2:$F$8785,0),0)) -> 38.87196732 | D19: =IF(C19=0,0,$P19/C19/COUNTIF('Expanded kW'!$A$2:$A$8785,'Monthly Data'!$B19)) -> 0.5608198933 | E19: =MAX(IF('Expanded kW'!$A$2:$A$8785=$B19,IF('Expanded kW'!$C$2:$C$8785=E$8,'Expanded kW'!$F$2:$F$8785,0),0)) -> 38.87196732 | F19: =IF(E19=0,0,$P19/E19/COUNTIF('Expanded kW'!$A$2:$A$8785,'Monthly Data'!$B19)) -> 0.5608198933 | H19: =+'LR Monthly'!G10 -> 38.87196864 | I19: =IF(H19=0,0,$P19/H19/COUNTIF('Expanded kW'!$A$2:$A$8785,'Monthly Data'!$B19)) -> 0.5608198741 | J19: =+'LR Monthly'!H10 -> 38.87196864 | K19: =IF(J19=0,0,$P19/J19/COUNTIF('Expanded kW'!$A$2:$A$8785,'Monthly Data'!$B19)) -> 0.5608198741 | M19: =VLOOKUP('Manual Inputs'!E35,'Expanded kW'!$D$2:$F$8785,3) -> 7.774393559 | N19: =SUMIFS('Expanded kW'!$F$2:$F$8785,'Expanded kW'!$A$2:$A$8785,$B19,'Expanded kW'!$C$2:$C$8785,C$8) -> 2960.100325 | O19: =SUMIFS('Expanded kW'!$F$2:$F$8785,'Expanded kW'!$A$2:$A$8785,$B19,'Expanded kW'!$C$2:$C$8785,E$8) -> 13259.22806 | P19: 16219.32839
A20: =+'Manual Inputs'!A20 -> 2020 | B20: =+'Manual Inputs'!B20 -> 1 | C20: =MAX(IF('Expanded kW'!$A$2:$A$8785=$B20,IF('Expanded kW'!$C$2:$C$8785=C$8,'Expanded kW'!$F$2:$F$8785,0),0)) -> 38.87196732 | D20: =IF(C20=0,0,$P20/C20/COUNTIF('Expanded kW'!$A$2:$A$8785,'Monthly Data'!$B20)) -> 0.5484094992 | E20: =MAX(IF('Expanded kW'!$A$2:$A$8785=$B20,IF('Expanded kW'!$C$2:$C$8785=E$8,'Expanded kW'!$F$2:$F$8785,0),0)) -> 38.87196732 | F20: =IF(E20=0,0,$P20/E20/COUNTIF('Expanded kW'!$A$2:$A$8785,'Monthly Data'!$B20)) -> 0.5484094992 | H20: =+'LR Monthly'!G11 -> 38.87196864 | I20: =IF(H20=0,0,$P20/H20/COUNTIF('Expanded kW'!$A$2:$A$8785,'Monthly Data'!$B20)) -> 0.5484094804 | J20: =+'LR Monthly'!H11 -> 38.87196864 | K20: =IF(J20=0,0,$P20/J20/COUNTIF('Expanded kW'!$A$2:$A$8785,'Monthly Data'!$B20)) -> 0.5484094804 | M20: =VLOOKUP('Manual Inputs'!E36,'Expanded kW'!$D$2:$F$8785,3) -> 8.422260284 | N20: =SUMIFS('Expanded kW'!$F$2:$F$8785,'Expanded kW'!$A$2:$A$8785,$B20,'Expanded kW'!$C$2:$C$8785,C$8) -> 2817.569786 | O20: =SUMIFS('Expanded kW'!$F$2:$F$8785,'Expanded kW'!$A$2:$A$8785,$B20,'Expanded kW'!$C$2:$C$8785,E$8) -> 13042.84077 | P20: 15860.41056
A21: =+'Manual Inputs'!A21 -> 2020 | B21: =+'Manual Inputs'!B21 -> 2 | C21: =MAX(IF('Expanded kW'!$A$2:$A$8785=$B21,IF('Expanded kW'!$C$2:$C$8785=C$8,'Expanded kW'!$F$2:$F$8785,0),0)) -> 38.87196732 | D21: =IF(C21=0,0,$P21/C21/COUNTIF('Expanded kW'!$A$2:$A$8785,'Monthly Data'!$B21)) -> 0.5089798863 | E21: =MAX(IF('Expanded kW'!$A$2:$A$8785=$B21,IF('Expanded kW'!$C$2:$C$8785=E$8,'Expanded kW'!$F$2:$F$8785,0),0)) -> 38.87196732 | F21: =IF(E21=0,0,$P21/E21/COUNTIF('Expanded kW'!$A$2:$A$8785,'Monthly Data'!$B21)) -> 0.5089798863 | H21: =+'LR Monthly'!G12 -> 38.87196864 | I21: =IF(H21=0,0,$P21/H21/COUNTIF('Expanded kW'!$A$2:$A$8785,'Monthly Data'!$B21)) -> 0.5089798689 | J21: =+'LR Monthly'!H12 -> 38.87196864 | K21: =IF(J21=0,0,$P21/J21/COUNTIF('Expanded kW'!$A$2:$A$8785,'Monthly Data'!$B21)) -> 0.5089798689 | M21: =VLOOKUP('Manual Inputs'!E37,'Expanded kW'!$D$2:$F$8785,3) -> 0 | N21: =SUMIFS('Expanded kW'!$F$2:$F$8785,'Expanded kW'!$A$2:$A$8785,$B21,'Expanded kW'!$C$2:$C$8785,C$8) -> 1849.657789 | O21: =SUMIFS('Expanded kW'!$F$2:$F$8785,'Expanded kW'!$A$2:$A$8785,$B21,'Expanded kW'!$C$2:$C$8785,E$8) -> 11920.73667 | P21: 13770.39446
A22: =+'Manual Inputs'!A22 -> 2020 | B22: =+'Manual Inputs'!B22 -> 3 | C22: =MAX(IF('Expanded kW'!$A$2:$A$8785=$B22,IF('Expanded kW'!$C$2:$C$8785=C$8,'Expanded kW'!$F$2:$F$8785,0),0)) -> 38.87196732 | D22: =IF(C22=0,0,$P22/C22/COUNTIF('Expanded kW'!$A$2:$A$8785,'Monthly Data'!$B22)) -> 0.4571684602 | E22: =MAX(IF('Expanded kW'!$A$2:$A$8785=$B22,IF('Expanded kW'!$C$2:$C$8785=E$8,'Expanded kW'!$F$2:$F$8785,0),0)) -> 38.87196732 | F22: =IF(E22=0,0,$P22/E22/COUNTIF('Expanded kW'!$A$2:$A$8785,'Monthly Data'!$B22)) -> 0.4571684602 | H22: =+'LR Monthly'!G13 -> 38.87196864 | I22: =IF(H22=0,0,$P22/H22/COUNTIF('Expanded kW'!$A$2:$A$8785,'Monthly Data'!$B22)) -> 0.4571684446 | J22: =+'LR Monthly'!H13 -> 38.87196864 | K22: =IF(J22=0,0,$P22/J22/COUNTIF('Expanded kW'!$A$2:$A$8785,'Monthly Data'!$B22)) -> 0.4571684446 | M22: =VLOOKUP('Manual Inputs'!E38,'Expanded kW'!$D$2:$F$8785,3) -> 0 | N22: =SUMIFS('Expanded kW'!$F$2:$F$8785,'Expanded kW'!$A$2:$A$8785,$B22,'Expanded kW'!$C$2:$C$8785,C$8) -> 1003.544643 | O22: =SUMIFS('Expanded kW'!$F$2:$F$8785,'Expanded kW'!$A$2:$A$8785,$B22,'Expanded kW'!$C$2:$C$8785,E$8) -> 12218.10721 | P22: 13221.65186
A24: NOTE: The data above is not expanded but instead is the output from Load Research data.

Sheet Summary
A1: ='Manual Inputs'!D1 -> Kentucky Power Co.
A2: =+'Manual Inputs'!D2 -> Kentucky
A3: Annual Summary of Sample Data
A4: =CustClass & " Customers" -> Street Lighting Customers
A5: =+'Monthly Data'!A5 -> For the Test Year Ended March 31, 2020
A6: =+'Monthly Data'!A6 -> Based on Sample Period Ended March 31, 2020
A8: On-Peak SNCP | B8: =+'Manual Inputs'!H11 -> 38.87196864
A9: Off-Peak SNCP | B9: =+'Manual Inputs'!I11 -> 38.87196864
A10: Total SNCP | B10: =+'Manual Inputs'!G11 -> 38.87196864
A12: On-Peak Energy | B12: =SUMIF('Expanded kW'!C2:C8785,"ON",'Expanded kW'!F2:F8785) -> 14067.11723 | C12: =+B12/$B$14 -> 0.0915349274 | E12: Off-Peak SNCP LF | F12: =+B$14/B8/(TYDays*24) -> 0.4500796763
A13: Off-Peak Energy | B13: =SUMIF('Expanded kW'!C2:C8785,"OFF",'Expanded kW'!F2:F8785) -> 139613.206 | C13: =+B13/$B$14 -> 0.9084650726 | E13: On-Peak SNCP LF | F13: =+B$14/B9/(TYDays*24) -> 0.4500796763
A14: Total Energy | B14: =SUM('Expanded kW'!F2:F8785) -> 153680.3232 | E14: Total SNCP LF | F14: =+B$14/B10/(TYDays*24) -> 0.4500796763
A16: NOTE: The data above is not expanded but instead is the output from Load Research data.

Sheet Peaks
A1: ='Manual Inputs'!D1 -> Kentucky Power Co.
A2: =+'Manual Inputs'!D2 -> Kentucky
A3: Peak and Off-Peak Statistics (kW)
A4: =CustClass & " Customers" -> Street Lighting Customers
A5: =+'Monthly Data'!A5 -> For the Test Year Ended March 31, 2020
A6: =+'Monthly Data'!A6 -> Based on Sample Period Ended March 31, 2020
A9: Year | B9: Month | C9: Total Sample | D9: Total Expanded | F9: Customers | G9: Coincident Peak | H9: NCP Peak | I9: NCP Off-Peak | J9: NCP Total | K9: SNCP Peak | L9: SNCP Off-Peak | M9: SNCP Total
A10: =+'Manual Inputs'!A11 -> 2019 | B10: =+'Manual Inputs'!B11 -> 4 | C10: =SUMIF('Expanded kW'!$A$2:$A$8785,B10,'Expanded kW'!$F$2:$F$8785) -> 11416.04896 | D10: =SUMIF('Expanded kW'!$A$2:$A$8785,B10,'Expanded kW'!$H$2:$H$8785) -> 630998.8783 | F10: =+'Manual Inputs'!D11 -> 11943 | G10: =ROUND(VLOOKUP('Manual Inputs'!E27,'Expanded kW'!$D$2:$H$8785,5),0) -> 1611 | H10: =IF(C10=0,0,ROUND(+$D10/C10*'Monthly Data'!C11,0)) -> 1325 | I10: =IF(C10=0,0,ROUND(+$D10/C10*'Monthly Data'!E11,0)) -> 2149 | J10: =MAX(H10:I10) -> 2149 | K10: =IF($C10=0,0,+$D10/$C10*'LR Monthly'!G2) -> 1324.950867 | L10: =IF($C10=0,0,+$D10/$C10*'LR Monthly'!H2) -> 2148.568974 | M10: =IF($C10=0,0,+$D10/$C10*'LR Monthly'!F2) -> 2148.568974
A11: =+'Manual Inputs'!A12 -> 2019 | B11: =+'Manual Inputs'!B12 -> 5 | C11: =SUMIF('Expanded kW'!$A$2:$A$8785,B11,'Expanded kW'!$F$2:$F$8785) -> 10525.88093 | D11: =SUMIF('Expanded kW'!$A$2:$A$8785,B11,'Expanded kW'!$H$2:$H$8785) -> 562916.8168 | F11: =+'Manual Inputs'!D12 -> 11943 | G11: =ROUND(VLOOKUP('Manual Inputs'!E28,'Expanded kW'!$D$2:$H$8785,5),0) -> 0 | H11: =IF(C11=0,0,ROUND(+$D11/C11*'Monthly Data'!C12,0)) -> 312 | I11: =IF(C11=0,0,ROUND(+$D11/C11*'Monthly Data'!E12,0)) -> 2079 | J11: =MAX(H11:I11) -> 2079 | K11: =IF($C11=0,0,+$D11/$C11*'LR Monthly'!G3) -> 311.8268911 | L11: =IF($C11=0,0,+$D11/$C11*'LR Monthly'!H3) -> 2078.845941 | M11: =IF($C11=0,0,+$D11/$C11*'LR Monthly'!F3) -> 2078.845941
A12: =+'Manual Inputs'!A13 -> 2019 | B12: =+'Manual Inputs'!B13 -> 6 | C12: =SUMIF('Expanded kW'!$A$2:$A$8785,B12,'Expanded kW'!$F$2:$F$8785) -> 9562.504005 | D12: =SUMIF('Expanded kW'!$A$2:$A$8785,B12,'Expanded kW'!$H$2:$H$8785) -> 507904.4596 | F12: =+'Manual Inputs'!D13 -> 11943 | G12: =ROUND(VLOOKUP('Manual Inputs'!E29,'Expanded kW'!$D$2:$H$8785,5),0) -> 0 | H12: =IF(C12=0,0,ROUND(+$D12/C12*'Monthly Data'!C13,0)) -> 0 | I12: =IF(C12=0,0,ROUND(+$D12/C12*'Monthly Data'!E13,0)) -> 2065 | J12: 2065 | K12: =IF($C12=0,0,+$D12/$C12*'LR Monthly'!G4) -> 0 | L12: =IF($C12=0,0,+$D12/$C12*'LR Monthly'!H4) -> 2064.652336 | M12: =IF($C12=0,0,+$D12/$C12*'LR Monthly'!F4) -> 2064.652336
A13: =+'Manual Inputs'!A14 -> 2019 | B13: =+'Manual Inputs'!B14 -> 7 | C13: =SUMIF('Expanded kW'!$A$2:$A$8785,B13,'Expanded kW'!$F$2:$F$8785) -> 10201.30002 | D13: =SUMIF('Expanded kW'!$A$2:$A$8785,B13,'Expanded kW'!$H$2:$H$8785) -> 541836.8099 | F13: =+'Manual Inputs'!D14 -> 11943 | G13: =ROUND(VLOOKUP('Manual Inputs'!E30,'Expanded kW'!$D$2:$H$8785,5),0) -> 0 | H13: =IF(C13=0,0,ROUND(+$D13/C13*'Monthly Data'!C14,0)) -> 0 | I13: =IF(C13=0,0,ROUND(+$D13/C13*'Monthly Data'!E14,0)) -> 2065 | J13: 2065 | K13: =IF($C13=0,0,+$D13/$C13*'LR Monthly'!G5) -> 0 | L13: =IF($C13=0,0,+$D13/$C13*'LR Monthly'!H5) -> 2064.664646 | M13: =IF($C13=0,0,+$D13/$C13*'LR Monthly'!F5) -> 2064.664646
A14: =+'Manual Inputs'!A15 -> 2019 | B14: =+'Manual Inputs'!B15 -> 8 | C14: =SUMIF('Expanded kW'!$A$2:$A$8785,B14,'Expanded kW'!$F$2:$F$8785) -> 11306.55958 | D14: =SUMIF('Expanded kW'!$A$2:$A$8785,B14,'Expanded kW'!$H$2:$H$8785) -> 613812.3372 | F14: =+'Manual Inputs'!D15 -> 11943 | G14: =ROUND(VLOOKUP('Manual Inputs'!E31,'Expanded kW'!$D$2:$H$8785,5),0) -> 0 | H14: =IF(C14=0,0,ROUND(+$D14/C14*'Monthly Data'!C15,0)) -> 950 | I14: =IF(C14=0,0,ROUND(+$D14/C14*'Monthly Data'!E15,0)) -> 2110 | J14: 2110 | K14: =IF($C14=0,0,+$D14/$C14*'LR Monthly'!G6) -> 949.6294772 | L14: =IF($C14=0,0,+$D14/$C14*'LR Monthly'!H6) -> 2110.287727 | M14: =IF($C14=0,0,+$D14/$C14*'LR Monthly'!F6) -> 2110.287727
A15: =+'Manual Inputs'!A16 -> 2019 | B15: =+'Manual Inputs'!B16 -> 9 | C15: =SUMIF('Expanded kW'!$A$2:$A$8785,B15,'Expanded kW'!$F$2:$F$8785) -> 12328.89235 | D15: =SUMIF('Expanded kW'!$A$2:$A$8785,B15,'Expanded kW'!$H$2:$H$8785) -> 677660.3675 | F15: =+'Manual Inputs'!D16 -> 11943 | G15: =ROUND(VLOOKUP('Manual Inputs'!E32,'Expanded kW'!$D$2:$H$8785,5),0) -> 0 | H15: =IF(C15=0,0,ROUND(+$D15/C15*'Monthly Data'!C16,0)) -> 2137 | I15: =IF(C15=0,0,ROUND(+$D15/C15*'Monthly Data'!E16,0)) -> 2137 | J15: 2137 | K15: =IF($C15=0,0,+$D15/$C15*'LR Monthly'!G7) -> 2136.606583 | L15: =IF($C15=0,0,+$D15/$C15*'LR Monthly'!H7) -> 2136.606583 | M15: =IF($C15=0,0,+$D15/$C15*'LR Monthly'!F7) -> 2136.606583
A16: =+'Manual Inputs'!A17 -> 2019 | B16: =+'Manual Inputs'!B17 -> 10 | C16: =SUMIF('Expanded kW'!$A$2:$A$8785,B16,'Expanded kW'!$F$2:$F$8785) -> 14229.73153 | D16: =SUMIF('Expanded kW'!$A$2:$A$8785,B16,'Expanded kW'!$H$2:$H$8785) -> 788916.1261 | F16: =+'Manual Inputs'!D17 -> 11943 | G16: =ROUND(VLOOKUP('Manual Inputs'!E33,'Expanded kW'!$D$2:$H$8785,5),0) -> 0 | H16: =IF(C16=0,0,ROUND(+$D16/C16*'Monthly Data'!C17,0)) -> 2155 | I16: =IF(C16=0,0,ROUND(+$D16/C16*'Monthly Data'!E17,0)) -> 2155 | J16: 2155 | K16: =IF($C16=0,0,+$D16/$C16*'LR Monthly'!G8) -> 2155.116057 | L16: =IF($C16=0,0,+$D16/$C16*'LR Monthly'!H8) -> 2155.116057 | M16: =IF($C16=0,0,+$D16/$C16*'LR Monthly'!F8) -> 2155.116057
A17: =+'Manual Inputs'!A18 -> 2019 | B17: =+'Manual Inputs'!B18 -> 11 | C17: =SUMIF('Expanded kW'!$A$2:$A$8785,B17,'Expanded kW'!$F$2:$F$8785) -> 15037.62059 | D17: =SUMIF('Expanded kW'!$A$2:$A$8785,B17,'Expanded kW'!$H$2:$H$8785) -> 841173.9089 | F17: =+'Manual Inputs'!D18 -> 11943 | G17: =ROUND(VLOOKUP('Manual Inputs'!E34,'Expanded kW'!$D$2:$H$8785,5),0) -> 0 | H17: =IF(C17=0,0,ROUND(+$D17/C17*'Monthly Data'!C18,0)) -> 2174 | I17: =IF(C17=0,0,ROUND(+$D17/C17*'Monthly Data'!E18,0)) -> 2174 | J17: 2174 | K17: =IF($C17=0,0,+$D17/$C17*'LR Monthly'!G9) -> 2174.418859 | L17: =IF($C17=0,0,+$D17/$C17*'LR Monthly'!H9) -> 2174.418859 | M17: =IF($C17=0,0,+$D17/$C17*'LR Monthly'!F9) -> 2174.418859
A18: =+'Manual Inputs'!A19 -> 2019 | B18: =+'Manual Inputs'!B19 -> 12 | C18: =SUMIF('Expanded kW'!$A$2:$A$8785,B18,'Expanded kW'!$F$2:$F$8785) -> 16219.32839 | D18: =SUMIF('Expanded kW'!$A$2:$A$8785,B18,'Expanded kW'!$H$2:$H$8785) -> 907138.4539 | F18: =+'Manual Inputs'!D19 -> 11943 | G18: =ROUND(VLOOKUP('Manual Inputs'!E35,'Expanded kW'!$D$2:$H$8785,5),0) -> 435 | H18: =IF(C18=0,0,ROUND(+$D18/C18*'Monthly Data'!C19,0)) -> 2174 | I18: =IF(C18=0,0,ROUND(+$D18/C18*'Monthly Data'!E19,0)) -> 2174 | J18: 2174 | K18: =IF($C18=0,0,+$D18/$C18*'LR Monthly'!G10) -> 2174.088637 | L18: =IF($C18=0,0,+$D18/$C18*'LR Monthly'!H10) -> 2174.088637 | M18: =IF($C18=0,0,+$D18/$C18*'LR Monthly'!F10) -> 2174.088637
A19: =+'Manual Inputs'!A20 -> 2020 | B19: =+'Manual Inputs'!B20 -> 1 | C19: =SUMIF('Expanded kW'!$A$2:$A$8785,B19,'Expanded kW'!$F$2:$F$8785) -> 15860.41056 | D19: =SUMIF('Expanded kW'!$A$2:$A$8785,B19,'Expanded kW'!$H$2:$H$8785) -> 890626.0323 | F19: =+'Manual Inputs'!D20 -> 11943 | G19: =ROUND(VLOOKUP('Manual Inputs'!E36,'Expanded kW'!$D$2:$H$8785,5),0) -> 473 | H19: =IF(C19=0,0,ROUND(+$D19/C19*'Monthly Data'!C20,0)) -> 2183 | I19: =IF(C19=0,0,ROUND(+$D19/C19*'Monthly Data'!E20,0)) -> 2183 | J19: 2183 | K19: =IF($C19=0,0,+$D19/$C19*'LR Monthly'!G11) -> 2182.817845 | L19: =IF($C19=0,0,+$D19/$C19*'LR Monthly'!H11) -> 2182.817845 | M19: =IF($C19=0,0,+$D19/$C19*'LR Monthly'!F11) -> 2182.817845
A20: =+'Manual Inputs'!A21 -> 2020 | B20: =+'Manual Inputs'!B21 -> 2 | C20: =SUMIF('Expanded kW'!$A$2:$A$8785,B20,'Expanded kW'!$F$2:$F$8785) -> 13770.39446 | D20: =SUMIF('Expanded kW'!$A$2:$A$8785,B20,'Expanded kW'!$H$2:$H$8785) -> 748999.8385 | F20: =+'Manual Inputs'!D21 -> 11943 | G20: =ROUND(VLOOKUP('Manual Inputs'!E37,'Expanded kW'!$D$2:$H$8785,5),0) -> 0 | H20: =IF(C20=0,0,ROUND(+$D20/C20*'Monthly Data'!C21,0)) -> 2114 | I20: =IF(C20=0,0,ROUND(+$D20/C20*'Monthly Data'!E21,0)) -> 2114 | J20: 2114 | K20: =IF($C20=0,0,+$D20/$C20*'LR Monthly'!G12) -> 2114.325652 | L20: =IF($C20=0,0,+$D20/$C20*'LR Monthly'!H12) -> 2114.325652 | M20: =IF($C20=0,0,+$D20/$C20*'LR Monthly'!F12) -> 2114.325652
A21: =+'Manual Inputs'!A22 -> 2020 | B21: =+'Manual Inputs'!B22 -> 3 | C21: =SUMIF('Expanded kW'!$A$2:$A$8785,B21,'Expanded kW'!$F$2:$F$8785) -> 13221.65186 | D21: =SUMIF('Expanded kW'!$A$2:$A$8785,B21,'Expanded kW'!$H$2:$H$8785) -> 749041.9084 | F21: =+'Manual Inputs'!D22 -> 11943 | G21: =ROUND(VLOOKUP('Manual Inputs'!E38,'Expanded kW'!$D$2:$H$8785,5),0) -> 0 | H21: =IF(C21=0,0,ROUND(+$D21/C21*'Monthly Data'!C22,0)) -> 2202 | I21: =IF(C21=0,0,ROUND(+$D21/C21*'Monthly Data'!E22,0)) -> 2202 | J21: 2202 | K21: =IF($C21=0,0,+$D21/$C21*'LR Monthly'!G13) -> 2202.200897 | L21: =IF($C21=0,0,+$D21/$C21*'LR Monthly'!H13) -> 2202.200897 | M21: =IF($C21=0,0,+$D21/$C21*'LR Monthly'!F13) -> 2202.200897
A23: Total | C23: =SUM(C10:C21) -> 153680.3232 | D23: =SUM(D10:D21) -> 8461025.938 | F23: =SUM(F10:F21) -> 143316 | G23: 2519 | H23: 17726 | I23: 25607 | J23: 25607 | K23: 17725.98177 | L23: 25606.59415 | M23: 25606.59415
A24: Average | C24: =+C23/12 -> 12806.6936 | D24: =+D23/12 -> 705085.4948 | F24: =+F23/12 -> 11943 | G24: 209.9166667 | H24: 1477.166667 | I24: 2133.916667 | J24: 2133.916667 | K24: 1477.165147 | L24: 2133.882846 | M24: 2133.882846
A25: Maximum | C25: =MAX(C10:C21) -> 16219.32839 | D25: =MAX(D10:D21) -> 907138.4539 | G25: =MAX(G10:G21) -> 1611 | H25: 2202 | I25: 2202 | J25: 2202 | K25: 2202.200897 | L25: 2202.200897 | M25: 2202.200897
A27: Annual SNCP | K27: =MAX(+Summary!B8*Peaks!D23/Peaks!C23,K25) -> 2202.200897 | L27: =MAX(+Summary!B9*Peaks!D23/Peaks!C23,L25) -> 2202.200897 | M27: =MAX(+Summary!B10*Peaks!D23/Peaks!C23,M25) -> 2202.200897

Sheet Load Factors
A1: ='Manual Inputs'!D1 -> Kentucky Power Co.
A2: =+'Manual Inputs'!D2 -> Kentucky
A3: Load Factor Report
A4: =CustClass & " Customers" -> Street Lighting Customers
A5: =+'Monthly Data'!A5 -> For the Test Year Ended March 31, 2020
A6: =+'Monthly Data'!A6 -> Based on Sample Period Ended March 31, 2020
D8: NCP | H8: SNCP
A9: Year | B9: Month | C9: Coincidence Ratio | D9: Peak LF | E9: Off-Peak LF | F9: Total LF | H9: Peak LF | I9: Off-Peak LF | J9: Total LF
A10: =+'Manual Inputs'!A11 -> 2019 | B10: =+'Manual Inputs'!B11 -> 4 | C10: =IF(Peaks!J10=0,0,+Peaks!G10/Peaks!J10) -> 0.7496510005 | D10: =IF(Peaks!H10=0,0,Peaks!$D10/Peaks!H10/COUNTIF('Expanded kW'!$A$2:$A$8785,'Load Factors'!$B10)) -> 0.6614244008 | E10: =IF(Peaks!I10=0,0,Peaks!$D10/Peaks!I10/COUNTIF('Expanded kW'!$A$2:$A$8785,'Load Factors'!$B10)) -> 0.4078116943 | F10: =IF(Peaks!J10=0,0,Peaks!$D10/Peaks!J10/COUNTIF('Expanded kW'!$A$2:$A$8785,'Load Factors'!$B10)) -> 0.4078116943 | H10: =IF(Peaks!K10=0,0,Peaks!$D10/Peaks!K10/COUNTIF('Expanded kW'!$A$2:$A$8785,'Load Factors'!$B10)) -> 0.6614489281 | I10: =IF(Peaks!L10=0,0,Peaks!$D10/Peaks!L10/COUNTIF('Expanded kW'!$A$2:$A$8785,'Load Factors'!$B10)) -> 0.4078935057 | J10: =IF(Peaks!M10=0,0,Peaks!$D10/Peaks!M10/COUNTIF('Expanded kW'!$A$2:$A$8785,'Load Factors'!$B10)) -> 0.4078935057
A11: =+'Manual Inputs'!A12 -> 2019 | B11: =+'Manual Inputs'!B12 -> 5 | C11: =IF(Peaks!J11=0,0,+Peaks!G11/Peaks!J11) -> 0 | D11: =IF(Peaks!H11=0,0,Peaks!$D11/Peaks!H11/COUNTIF('Expanded kW'!$A$2:$A$8785,'Load Factors'!$B11)) -> 2.425027643 | E11: =IF(Peaks!I11=0,0,Peaks!$D11/Peaks!I11/COUNTIF('Expanded kW'!$A$2:$A$8785,'Load Factors'!$B11)) -> 0.3639291124 | F11: =IF(Peaks!J11=0,0,Peaks!$D11/Peaks!J11/COUNTIF('Expanded kW'!$A$2:$A$8785,'Load Factors'!$B11)) -> 0.3639291124 | H11: =IF(Peaks!K11=0,0,Peaks!$D11/Peaks!K11/COUNTIF('Expanded kW'!$A$2:$A$8785,'Load Factors'!$B11)) -> 2.426373883 | I11: =IF(Peaks!L11=0,0,Peaks!$D11/Peaks!L11/COUNTIF('Expanded kW'!$A$2:$A$8785,'Load Factors'!$B11)) -> 0.3639560825 | J11: =IF(Peaks!M11=0,0,Peaks!$D11/Peaks!M11/COUNTIF('Expanded kW'!$A$2:$A$8785,'Load Factors'!$B11)) -> 0.3639560825
A12: =+'Manual Inputs'!A13 -> 2019 | B12: =+'Manual Inputs'!B13 -> 6 | C12: =IF(Peaks!J12=0,0,+Peaks!G12/Peaks!J12) -> 0 | D12: =IF(Peaks!H12=0,0,Peaks!$D12/Peaks!H12/COUNTIF('Expanded kW'!$A$2:$A$8785,'Load Factors'!$B12)) -> 0 | E12: =IF(Peaks!I12=0,0,Peaks!$D12/Peaks!I12/COUNTIF('Expanded kW'!$A$2:$A$8785,'Load Factors'!$B12)) -> 0.3416091335 | F12: =IF(Peaks!J12=0,0,Peaks!$D12/Peaks!J12/COUNTIF('Expanded kW'!$A$2:$A$8785,'Load Factors'!$B12)) -> 0.3416091335 | H12: =IF(Peaks!K12=0,0,Peaks!$D12/Peaks!K12/COUNTIF('Expanded kW'!$A$2:$A$8785,'Load Factors'!$B12)) -> 0 | I12: =IF(Peaks!L12=0,0,Peaks!$D12/Peaks!L12/COUNTIF('Expanded kW'!$A$2:$A$8785,'Load Factors'!$B12)) -> 0.3416666566 | J12: =IF(Peaks!M12=0,0,Peaks!$D12/Peaks!M12/COUNTIF('Expanded kW'!$A$2:$A$8785,'Load Factors'!$B12)) -> 0.3416666566
A13: =+'Manual Inputs'!A14 -> 2019 | B13: =+'Manual Inputs'!B14 -> 7 | C13: =IF(Peaks!J13=0,0,+Peaks!G13/Peaks!J13) -> 0 | D13: =IF(Peaks!H13=0,0,Peaks!$D13/Peaks!H13/COUNTIF('Expanded kW'!$A$2:$A$8785,'Load Factors'!$B13)) -> 0 | E13: =IF(Peaks!I13=0,0,Peaks!$D13/Peaks!I13/COUNTIF('Expanded kW'!$A$2:$A$8785,'Load Factors'!$B13)) -> 0.3526756814 | F13: =IF(Peaks!J13=0,0,Peaks!$D13/Peaks!J13/COUNTIF('Expanded kW'!$A$2:$A$8785,'Load Factors'!$B13)) -> 0.3526756814 | H13: =IF(Peaks!K13=0,0,Peaks!$D13/Peaks!K13/COUNTIF('Expanded kW'!$A$2:$A$8785,'Load Factors'!$B13)) -> 0 | I13: =IF(Peaks!L13=0,0,Peaks!$D13/Peaks!L13/COUNTIF('Expanded kW'!$A$2:$A$8785,'Load Factors'!$B13)) -> 0.352732965 | J13: =IF(Peaks!M13=0,0,Peaks!$D13/Peaks!M13/COUNTIF('Expanded kW'!$A$2:$A$8785,'Load Factors'!$B13)) -> 0.352732965
A14: =+'Manual Inputs'!A15 -> 2019 | B14: =+'Manual Inputs'!B15 -> 8 | C14: =IF(Peaks!J14=0,0,+Peaks!G14/Peaks!J14) -> 0 | D14: =IF(Peaks!H14=0,0,Peaks!$D14/Peaks!H14/COUNTIF('Expanded kW'!$A$2:$A$8785,'Load Factors'!$B14)) -> 0.8684385077 | E14: =IF(Peaks!I14=0,0,Peaks!$D14/Peaks!I14/COUNTIF('Expanded kW'!$A$2:$A$8785,'Load Factors'!$B14)) -> 0.3910031196 | F14: =IF(Peaks!J14=0,0,Peaks!$D14/Peaks!J14/COUNTIF('Expanded kW'!$A$2:$A$8785,'Load Factors'!$B14)) -> 0.3910031196 | H14: =IF(Peaks!K14=0,0,Peaks!$D14/Peaks!K14/COUNTIF('Expanded kW'!$A$2:$A$8785,'Load Factors'!$B14)) -> 0.8687773517 | I14: =IF(Peaks!L14=0,0,Peaks!$D14/Peaks!L14/COUNTIF('Expanded kW'!$A$2:$A$8785,'Load Factors'!$B14)) -> 0.3909498083 | J14: =IF(Peaks!M14=0,0,Peaks!$D14/Peaks!M14/COUNTIF('Expanded kW'!$A$2:$A$8785,'Load Factors'!$B14)) -> 0.3909498083
A15: =+'Manual Inputs'!A16 -> 2019 | B15: =+'Manual Inputs'!B16 -> 9 | C15: =IF(Peaks!J15=0,0,+Peaks!G15/Peaks!J15) -> 0 | D15: =IF(Peaks!H15=0,0,Peaks!$D15/Peaks!H15/COUNTIF('Expanded kW'!$A$2:$A$8785,'Load Factors'!$B15)) -> 0.4404281492 | E15: =IF(Peaks!I15=0,0,Peaks!$D15/Peaks!I15/COUNTIF('Expanded kW'!$A$2:$A$8785,'Load Factors'!$B15)) -> 0.4404281492 | F15: =IF(Peaks!J15=0,0,Peaks!$D15/Peaks!J15/COUNTIF('Expanded kW'!$A$2:$A$8785,'Load Factors'!$B15)) -> 0.4404281492 | H15: =IF(Peaks!K15=0,0,Peaks!$D15/Peaks!K15/COUNTIF('Expanded kW'!$A$2:$A$8785,'Load Factors'!$B15)) -> 0.440509246 | I15: =IF(Peaks!L15=0,0,Peaks!$D15/Peaks!L15/COUNTIF('Expanded kW'!$A$2:$A$8785,'Load Factors'!$B15)) -> 0.440509246 | J15: =IF(Peaks!M15=0,0,Peaks!$D15/Peaks!M15/COUNTIF('Expanded kW'!$A$2:$A$8785,'Load Factors'!$B15)) -> 0.440509246
A16: =+'Manual Inputs'!A17 -> 2019 | B16: =+'Manual Inputs'!B17 -> 10 | C16: =IF(Peaks!J16=0,0,+Peaks!G16/Peaks!J16) -> 0 | D16: =IF(Peaks!H16=0,0,Peaks!$D16/Peaks!H16/COUNTIF('Expanded kW'!$A$2:$A$8785,'Load Factors'!$B16)) -> 0.4920515718 | E16: =IF(Peaks!I16=0,0,Peaks!$D16/Peaks!I16/COUNTIF('Expanded kW'!$A$2:$A$8785,'Load Factors'!$B16)) -> 0.4920515718 | F16: =IF(Peaks!J16=0,0,Peaks!$D16/Peaks!J16/COUNTIF('Expanded kW'!$A$2:$A$8785,'Load Factors'!$B16)) -> 0.4920515718 | H16: =IF(Peaks!K16=0,0,Peaks!$D16/Peaks!K16/COUNTIF('Expanded kW'!$A$2:$A$8785,'Load Factors'!$B16)) -> 0.4920250739 | I16: =IF(Peaks!L16=0,0,Peaks!$D16/Peaks!L16/COUNTIF('Expanded kW'!$A$2:$A$8785,'Load Factors'!$B16)) -> 0.4920250739 | J16: =IF(Peaks!M16=0,0,Peaks!$D16/Peaks!M16/COUNTIF('Expanded kW'!$A$2:$A$8785,'Load Factors'!$B16)) -> 0.4920250739
A17: =+'Manual Inputs'!A18 -> 2019 | B17: =+'Manual Inputs'!B18 -> 11 | C17: =IF(Peaks!J17=0,0,+Peaks!G17/Peaks!J17) -> 0 | D17: =IF(Peaks!H17=0,0,Peaks!$D17/Peaks!H17/COUNTIF('Expanded kW'!$A$2:$A$8785,'Load Factors'!$B17)) -> 0.5373951682 | E17: =IF(Peaks!I17=0,0,Peaks!$D17/Peaks!I17/COUNTIF('Expanded kW'!$A$2:$A$8785,'Load Factors'!$B17)) -> 0.5373951682 | F17: =IF(Peaks!J17=0,0,Peaks!$D17/Peaks!J17/COUNTIF('Expanded kW'!$A$2:$A$8785,'Load Factors'!$B17)) -> 0.5373951682 | H17: =IF(Peaks!K17=0,0,Peaks!$D17/Peaks!K17/COUNTIF('Expanded kW'!$A$2:$A$8785,'Load Factors'!$B17)) -> 0.5372916495 | I17: =IF(Peaks!L17=0,0,Peaks!$D17/Peaks!L17/COUNTIF('Expanded kW'!$A$2:$A$8785,'Load Factors'!$B17)) -> 0.5372916495 | J17: =IF(Peaks!M17=0,0,Peaks!$D17/Peaks!M17/COUNTIF('Expanded kW'!$A$2:$A$8785,'Load Factors'!$B17)) -> 0.5372916495
A18: =+'Manual Inputs'!A19 -> 2019 | B18: =+'Manual Inputs'!B19 -> 12 | C18: =IF(Peaks!J18=0,0,+Peaks!G18/Peaks!J18) -> 0.2000919963 | D18: =IF(Peaks!H18=0,0,Peaks!$D18/Peaks!H18/COUNTIF('Expanded kW'!$A$2:$A$8785,'Load Factors'!$B18)) -> 0.5608427394 | E18: =IF(Peaks!I18=0,0,Peaks!$D18/Peaks!I18/COUNTIF('Expanded kW'!$A$2:$A$8785,'Load Factors'!$B18)) -> 0.5608427394 | F18: =IF(Peaks!J18=0,0,Peaks!$D18/Peaks!J18/COUNTIF('Expanded kW'!$A$2:$A$8785,'Load Factors'!$B18)) -> 0.5608427394 | H18: =IF(Peaks!K18=0,0,Peaks!$D18/Peaks!K18/COUNTIF('Expanded kW'!$A$2:$A$8785,'Load Factors'!$B18)) -> 0.5608198741 | I18: =IF(Peaks!L18=0,0,Peaks!$D18/Peaks!L18/COUNTIF('Expanded kW'!$A$2:$A$8785,'Load Factors'!$B18)) -> 0.5608198741 | J18: =IF(Peaks!M18=0,0,Peaks!$D18/Peaks!M18/COUNTIF('Expanded kW'!$A$2:$A$8785,'Load Factors'!$B18)) -> 0.5608198741
A19: =+'Manual Inputs'!A20 -> 2020 | B19: =+'Manual Inputs'!B20 -> 1 | C19: =IF(Peaks!J19=0,0,+Peaks!G19/Peaks!J19) -> 0.2166743014 | D19: =IF(Peaks!H19=0,0,Peaks!$D19/Peaks!H19/COUNTIF('Expanded kW'!$A$2:$A$8785,'Load Factors'!$B19)) -> 0.5483637198 | E19: =IF(Peaks!I19=0,0,Peaks!$D19/Peaks!I19/COUNTIF('Expanded kW'!$A$2:$A$8785,'Load Factors'!$B19)) -> 0.5483637198 | F19: =IF(Peaks!J19=0,0,Peaks!$D19/Peaks!J19/COUNTIF('Expanded kW'!$A$2:$A$8785,'Load Factors'!$B19)) -> 0.5483637198 | H19: =IF(Peaks!K19=0,0,Peaks!$D19/Peaks!K19/COUNTIF('Expanded kW'!$A$2:$A$8785,'Load Factors'!$B19)) -> 0.5484094804 | I19: =IF(Peaks!L19=0,0,Peaks!$D19/Peaks!L19/COUNTIF('Expanded kW'!$A$2:$A$8785,'Load Factors'!$B19)) -> 0.5484094804 | J19: =IF(Peaks!M19=0,0,Peaks!$D19/Peaks!M19/COUNTIF('Expanded kW'!$A$2:$A$8785,'Load Factors'!$B19)) -> 0.5484094804
A20: =+'Manual Inputs'!A21 -> 2020 | B20: =+'Manual Inputs'!B21 -> 2 | C20: =IF(Peaks!J20=0,0,+Peaks!G20/Peaks!J20) -> 0 | D20: =IF(Peaks!H20=0,0,Peaks!$D20/Peaks!H20/COUNTIF('Expanded kW'!$A$2:$A$8785,'Load Factors'!$B20)) -> 0.509058275 | E20: =IF(Peaks!I20=0,0,Peaks!$D20/Peaks!I20/COUNTIF('Expanded kW'!$A$2:$A$8785,'Load Factors'!$B20)) -> 0.509058275 | F20: =IF(Peaks!J20=0,0,Peaks!$D20/Peaks!J20/COUNTIF('Expanded kW'!$A$2:$A$8785,'Load Factors'!$B20)) -> 0.509058275 | H20: =IF(Peaks!K20=0,0,Peaks!$D20/Peaks!K20/COUNTIF('Expanded kW'!$A$2:$A$8785,'Load Factors'!$B20)) -> 0.5089798689 | I20: =IF(Peaks!L20=0,0,Peaks!$D20/Peaks!L20/COUNTIF('Expanded kW'!$A$2:$A$8785,'Load Factors'!$B20)) -> 0.5089798689 | J20: =IF(Peaks!M20=0,0,Peaks!$D20/Peaks!M20/COUNTIF('Expanded kW'!$A$2:$A$8785,'Load Factors'!$B20)) -> 0.5089798689
A21: =+'Manual Inputs'!A22 -> 2020 | B21: =+'Manual Inputs'!B22 -> 3 | C21: =IF(Peaks!J21=0,0,+Peaks!G21/Peaks!J21) -> 0 | D21: =IF(Peaks!H21=0,0,Peaks!$D21/Peaks!H21/COUNTIF('Expanded kW'!$A$2:$A$8785,'Load Factors'!$B21)) -> 0.4572101538 | E21: =IF(Peaks!I21=0,0,Peaks!$D21/Peaks!I21/COUNTIF('Expanded kW'!$A$2:$A$8785,'Load Factors'!$B21)) -> 0.4572101538 | F21: =IF(Peaks!J21=0,0,Peaks!$D21/Peaks!J21/COUNTIF('Expanded kW'!$A$2:$A$8785,'Load Factors'!$B21)) -> 0.4572101538 | H21: =IF(Peaks!K21=0,0,Peaks!$D21/Peaks!K21/COUNTIF('Expanded kW'!$A$2:$A$8785,'Load Factors'!$B21)) -> 0.4571684446 | I21: =IF(Peaks!L21=0,0,Peaks!$D21/Peaks!L21/COUNTIF('Expanded kW'!$A$2:$A$8785,'Load Factors'!$B21)) -> 0.4571684446 | J21: =IF(Peaks!M21=0,0,Peaks!$D21/Peaks!M21/COUNTIF('Expanded kW'!$A$2:$A$8785,'Load Factors'!$B21)) -> 0.4571684446
A23: Average | C23: =AVERAGE(Peaks!G10:G21)/AVERAGE(Peaks!J10:J21) -> 0.09837153903 | D23: =+Peaks!$D24/Peaks!H24/(TYDays*24/12) -> 0.6520804808 | E23: =+Peaks!$D24/Peaks!I24/(TYDays*24/12) -> 0.4513913619 | F23: =+Peaks!$D24/Peaks!J24/(TYDays*24/12) -> 0.4513913619 | H23: =+Peaks!$D24/Peaks!K24/(TYDays*24/12) -> 0.6520811516 | I23: =+Peaks!$D24/Peaks!L24/(TYDays*24/12) -> 0.4513985161 | J23: =+Peaks!$D24/Peaks!M24/(TYDays*24/12) -> 0.4513985161

Sheet On,Off Peak kWh
A1: ='Manual Inputs'!D1 -> Kentucky Power Co.
A2: =+'Manual Inputs'!D2 -> Kentucky
A3: On and Off Peak Energy Summary
A4: =CustClass & " Customers" -> Street Lighting Customers
A5: =+'Monthly Data'!A5 -> For the Test Year Ended March 31, 2020
A6: =+'Monthly Data'!A6 -> Based on Sample Period Ended March 31, 2020
C10: TY kWh | E10: kWh Peak | F10: % Peak | H10: kWh Off-Peak | I10: % Off-Peak
A11: =+'Manual Inputs'!A11 -> 2019 | B11: =+'Manual Inputs'!B11 -> 4 | C11: =SUMIF('Expanded kW'!$A$2:$A$8785,B11,'Expanded kW'!$H$2:$H$8785) -> 630998.8783 | E11: =SUMIFS('Expanded kW'!$H$2:$H$8785,'Expanded kW'!$A$2:$A$8785,$B11,'Expanded kW'!$C$2:$C$8785,"ON") -> 18907.40688 | F11: =IF(C11=0,0,+E11/C11) -> 0.029964248 | H11: =SUMIFS('Expanded kW'!$H$2:$H$8785,'Expanded kW'!$A$2:$A$8785,$B11,'Expanded kW'!$C$2:$C$8785,"OFF") -> 612091.4715 | I11: =IF(C11=0,0,+H11/C11) -> 0.970035752
A12: =+'Manual Inputs'!A12 -> 2019 | B12: =+'Manual Inputs'!B12 -> 5 | C12: =SUMIF('Expanded kW'!$A$2:$A$8785,B12,'Expanded kW'!$H$2:$H$8785) -> 562916.8168 | E12: =SUMIFS('Expanded kW'!$H$2:$H$8785,'Expanded kW'!$A$2:$A$8785,$B12,'Expanded kW'!$C$2:$C$8785,"ON") -> 1178.012674 | F12: =IF(C12=0,0,+E12/C12) -> 0.002092694052 | H12: =SUMIFS('Expanded kW'!$H$2:$H$8785,'Expanded kW'!$A$2:$A$8785,$B12,'Expanded kW'!$C$2:$C$8785,"OFF") -> 561738.8041 | I12: =IF(C12=0,0,+H12/C12) -> 0.9979073059
A13: =+'Manual Inputs'!A13 -> 2019 | B13: =+'Manual Inputs'!B13 -> 6 | C13: =SUMIF('Expanded kW'!$A$2:$A$8785,B13,'Expanded kW'!$H$2:$H$8785) -> 507904.4596 | E13: =SUMIFS('Expanded kW'!$H$2:$H$8785,'Expanded kW'!$A$2:$A$8785,$B13,'Expanded kW'!$C$2:$C$8785,"ON") -> 0 | F13: 0 | H13: =SUMIFS('Expanded kW'!$H$2:$H$8785,'Expanded kW'!$A$2:$A$8785,$B13,'Expanded kW'!$C$2:$C$8785,"OFF") -> 507904.4596 | I13: 1
A14: =+'Manual Inputs'!A14 -> 2019 | B14: =+'Manual Inputs'!B14 -> 7 | C14: =SUMIF('Expanded kW'!$A$2:$A$8785,B14,'Expanded kW'!$H$2:$H$8785) -> 541836.8099 | E14: =SUMIFS('Expanded kW'!$H$2:$H$8785,'Expanded kW'!$A$2:$A$8785,$B14,'Expanded kW'!$C$2:$C$8785,"ON") -> 0 | F14: 0 | H14: =SUMIFS('Expanded kW'!$H$2:$H$8785,'Expanded kW'!$A$2:$A$8785,$B14,'Expanded kW'!$C$2:$C$8785,"OFF") -> 541836.8099 | I14: 1
A15: =+'Manual Inputs'!A15 -> 2019 | B15: =+'Manual Inputs'!B15 -> 8 | C15: =SUMIF('Expanded kW'!$A$2:$A$8785,B15,'Expanded kW'!$H$2:$H$8785) -> 613812.3372 | E15: =SUMIFS('Expanded kW'!$H$2:$H$8785,'Expanded kW'!$A$2:$A$8785,$B15,'Expanded kW'!$C$2:$C$8785,"ON") -> 7597.035807 | F15: 0.01237680533 | H15: =SUMIFS('Expanded kW'!$H$2:$H$8785,'Expanded kW'!$A$2:$A$8785,$B15,'Expanded kW'!$C$2:$C$8785,"OFF") -> 606215.3014 | I15: 0.9876231947
A16: =+'Manual Inputs'!A16 -> 2019 | B16: =+'Manual Inputs'!B16 -> 9 | C16: =SUMIF('Expanded kW'!$A$2:$A$8785,B16,'Expanded kW'!$H$2:$H$8785) -> 677660.3675 | E16: =SUMIFS('Expanded kW'!$H$2:$H$8785,'Expanded kW'!$A$2:$A$8785,$B16,'Expanded kW'!$C$2:$C$8785,"ON") -> 39171.12037 | F16: 0.05780346948 | H16: =SUMIFS('Expanded kW'!$H$2:$H$8785,'Expanded kW'!$A$2:$A$8785,$B16,'Expanded kW'!$C$2:$C$8785,"OFF") -> 638489.2471 | I16: 0.9421965305
A17: =+'Manual Inputs'!A17 -> 2019 | B17: =+'Manual Inputs'!B17 -> 10 | C17: =SUMIF('Expanded kW'!$A$2:$A$8785,B17,'Expanded kW'!$H$2:$H$8785) -> 788916.1261 | E17: =SUMIFS('Expanded kW'!$H$2:$H$8785,'Expanded kW'!$A$2:$A$8785,$B17,'Expanded kW'!$C$2:$C$8785,"ON") -> 90047.93048 | F17: 0.1141413231 | H17: =SUMIFS('Expanded kW'!$H$2:$H$8785,'Expanded kW'!$A$2:$A$8785,$B17,'Expanded kW'!$C$2:$C$8785,"OFF") -> 698868.1957 | I17: 0.8858586769
A18: =+'Manual Inputs'!A18 -> 2019 | B18: =+'Manual Inputs'!B18 -> 11 | C18: =SUMIF('Expanded kW'!$A$2:$A$8785,B18,'Expanded kW'!$H$2:$H$8785) -> 841173.9089 | E18: =SUMIFS('Expanded kW'!$H$2:$H$8785,'Expanded kW'!$A$2:$A$8785,$B18,'Expanded kW'!$C$2:$C$8785,"ON") -> 145178.6946 | F18: 0.1725905821 | H18: =SUMIFS('Expanded kW'!$H$2:$H$8785,'Expanded kW'!$A$2:$A$8785,$B18,'Expanded kW'!$C$2:$C$8785,"OFF") -> 695995.2142 | I18: 0.8274094179
A19: =+'Manual Inputs'!A19 -> 2019 | B19: =+'Manual Inputs'!B19 -> 12 | C19: =SUMIF('Expanded kW'!$A$2:$A$8785,B19,'Expanded kW'!$H$2:$H$8785) -> 907138.4539 | E19: =SUMIFS('Expanded kW'!$H$2:$H$8785,'Expanded kW'!$A$2:$A$8785,$B19,'Expanded kW'!$C$2:$C$8785,"ON") -> 165556.8448 | F19: 0.1825044943 | H19: =SUMIFS('Expanded kW'!$H$2:$H$8785,'Expanded kW'!$A$2:$A$8785,$B19,'Expanded kW'!$C$2:$C$8785,"OFF") -> 741581.6091 | I19: 0.8174955057
A20: =+'Manual Inputs'!A20 -> 2020 | B20: =+'Manual Inputs'!B20 -> 1 | C20: =SUMIF('Expanded kW'!$A$2:$A$8785,B20,'Expanded kW'!$H$2:$H$8785) -> 890626.0323 | E20: =SUMIFS('Expanded kW'!$H$2:$H$8785,'Expanded kW'!$A$2:$A$8785,$B20,'Expanded kW'!$C$2:$C$8785,"ON") -> 158217.9093 | F20: 0.177647973 | H20: =SUMIFS('Expanded kW'!$H$2:$H$8785,'Expanded kW'!$A$2:$A$8785,$B20,'Expanded kW'!$C$2:$C$8785,"OFF") -> 732408.123 | I20: 0.822352027
A21: =+'Manual Inputs'!A21 -> 2020 | B21: =+'Manual Inputs'!B21 -> 2 | C21: =SUMIF('Expanded kW'!$A$2:$A$8785,B21,'Expanded kW'!$H$2:$H$8785) -> 748999.8385 | E21: =SUMIFS('Expanded kW'!$H$2:$H$8785,'Expanded kW'!$A$2:$A$8785,$B21,'Expanded kW'!$C$2:$C$8785,"ON") -> 100606.6594 | F21: 0.1343213366 | H21: =SUMIFS('Expanded kW'!$H$2:$H$8785,'Expanded kW'!$A$2:$A$8785,$B21,'Expanded kW'!$C$2:$C$8785,"OFF") -> 648393.1791 | I21: 0.8656786634
A22: =+'Manual Inputs'!A22 -> 2020 | B22: =+'Manual Inputs'!B22 -> 3 | C22: =SUMIF('Expanded kW'!$A$2:$A$8785,B22,'Expanded kW'!$H$2:$H$8785) -> 749041.9084 | E22: =SUMIFS('Expanded kW'!$H$2:$H$8785,'Expanded kW'!$A$2:$A$8785,$B22,'Expanded kW'!$C$2:$C$8785,"ON") -> 56853.48568 | F22: 0.07590160849 | H22: =SUMIFS('Expanded kW'!$H$2:$H$8785,'Expanded kW'!$A$2:$A$8785,$B22,'Expanded kW'!$C$2:$C$8785,"OFF") -> 692188.4227 | I22: 0.9240983915
A24: 12-Month Total | C24: =SUM(C11:C22) -> 8461025.938 | E24: =SUM(E11:E22) -> 783315.1 | F24: 0.09257921035 | H24: =SUM(H11:H22) -> 7677710.838 | I24: 0.9074207897
